{"text_format":"3","workbook":"xlsx","n_sheets":2,"sheets":["projects","summary of 2026 priorities"],"not_rendered":{"images":3,"defined_names":4},"read":"whole","date_system":"1900"}

{"sheet":"projects","index":0,"n_rows":400,"n_cols":22,"rows_kept":400,"merged":[[0,0,0,20],[1,0,1,20],[2,0,3,0],[2,1,3,1],[2,2,3,2],[2,3,3,3],[2,4,3,4],[2,5,3,5],[2,6,2,7],[2,8,3,8],[2,9,3,9],[2,10,2,12],[2,13,2,14],[2,15,3,15],[2,16,2,19],[2,20,3,20],[4,0,4,20],[4,21,4,22],[5,0,5,20],[6,0,49,0],[50,0,50,20],[51,0,145,0],[146,0,146,20],[147,0,197,0],[198,0,198,20],[199,0,204,0],[205,0,205,20],[206,0,212,0],[213,0,213,20],[214,0,234,0],[227,1,231,1],[227,2,231,2],[227,4,231,4],[235,0,235,20],[236,0,242,0],[243,0,243,20],[244,0,248,0],[252,0,252,20],[253,0,356,0],[357,0,357,20],[358,0,360,0],[361,0,361,20],[362,0,368,0],[369,0,369,20],[370,0,376,0],[377,0,377,20],[378,0,386,0],[387,0,387,20],[387,21,388,21],[388,0,399,0],[400,0,408,0]]}
[]
[" Project Priorities Matrix of the Economic and Social Development Plan for the year 2026"]
["    \nPillar","\nM."," \n    Project/ Program Name\n","\n               Components of the Project                               ","\n   Expected Goals","\n   Measurement Indicator   ","  Reference",null," \n   Location     ","    \n      Cost ($)    ","   Studies",null,null,"\nImplementation level",null,"  \nImplementation rate  \n                   ","    \nFunding Entity",{"$nulls":3},"\n\n\nPotential Implementing Entity \n     \n"]
[{"$nulls":6},"\nDevelopment\nPlan       ","\nEmergency\nplan",null,null,"\nIn preparation","\nReady","\nNot ready","\nNot implemented","\nOngoing",null,"\nGovernmental","\nLocal","\nPrivate sector ","\nExternal"]
["Pillar III: Integrated Basic and Social Services"]
["Local Corporation for Water and Sanitation "]
[" Integrated Basic and Social Services",1,"Replacement of the deteriorated concrete sewer main extending from Deluxe to the sand barrier of Osaifira","Excavation, installation, and backfilling works for the replacement of main lines, sub-lines, and house connections with a total length of 2,795 m.\n\nSupply, installation, and testing of Double-Wall Corrugated (DWC) Polyethylene pipes with a total length of 1,657 m.\n\nSupply, installation, and testing of UPVC plastic pipes with a total length of 1,139 m.\n\nOccupational Health and Safety (OHS) works and site preparation.\n\nConstruction of required concrete manholes and inspection chambers (101 units) with various diameters and depths.\n\nCutting and removal of stone pavements (Habash and Oman stones) with a length of 1,475 m.\n\nReinforced concrete works for a length of 150 m.\n\nAsphalt cutting and restoration for a length of 1,140 m.\n\nConnection and interlocking works for sewage lines at 29 locations.\n\nPipe protection works for a length of 60 m.\n\nDemolition and reconstruction of stone, block, and concrete walls.","Restoration and improvement of sewage infrastructure services in the city.\nReplacement of the sewerage network and any old concrete channels with modern UPVC piping.\nDevelopment of solutions to mitigate serious environmental problems, in line with the objectives of the national reform strategy for the water and sanitation sector.\nRemoval of the harmful environmental impact resulting from cracks and the overflow of sewage waste in streets and alleys.\nProtection of groundwater in the area from biological contamination.\nAdaptation to climate change.\nMitigating wastewater network blockages and restoring functionality to compromised or collapsed pipelines.\nEnhancing the capacity and efficiency of maintenance and operation works.","Number of beneficiaries (350 Thousand people) \n\nReducing the number of reports and complaints of overflowing sewage outlets and their flow in public streets, neighborhoods, and residential neighborhoods in the city.\n\nThe rate of renewal in the infrastructure components of sanitation services.\n\n The level of satisfaction with the services provided to citizens","√",null,"Al-Qahera District",{"v":960000,"d":"960,000"},null,"√",null,"√",null,null,{"v":0,"d":"0%"},null,null,"√","Local Authority | Local Partner"]
[null,2,"Internal sewage network and main trunk line project - Bir Basha area - behind Shuhada'a Al-Yemen stores","Excavation, installation, and backfilling works for the replacement of main lines, branch lines, and house connections with a total length of 3,646 m.\n\nSupply, installation, and testing of UPVC plastic pipes with a total length of 3,646 m.\n\nOccupational Health and Safety (OHS) works and site preparation.\n\nConstruction of required concrete manholes and inspection chambers (26 units) with various diameters and depths.\n\nAsphalt cutting and restoration for an area of 266 m².\n\nConnection and interlocking works for sewage lines.\n\nBackfilling and decommissioning of existing temporary sewage pits\n","Increasing the percentage of residents served by sewage systems by extending new lines to underserved and densely populated areas due to displacement.\nEliminating Cesspits Sewage next to houses, which significantly impact groundwater and surface water stock in the area.\nEliminating sewage overflow in the area, ending the suffering of residents and resolving community conflicts.","15,000 of beneficiaries\nIncrease sanitation service coverage\nReduce reports and complaints regarding sewage overflows\nImprove citizen satisfaction levels with services provided","√",null,"Al-Mudhaffar District",{"v":485000,"d":"485,000"},null,"√",null,"√",null,null,{"v":0,"d":"0%"},null,null,"√","Local Authority | Local Partner"]
[null,3,"Replacement of sewage lines in Al-Hussainiah area - Old City","Excavation, installation, and backfilling works for the replacement of main lines, sub-lines, and house connections with a total length of 1,320 m.\n\nSupply, installation, and testing of UPVC plastic pipes with a total length of 1,320 m.\n\nOccupational Health and Safety (OHS) works and site preparation.\n\nConstruction of required concrete manholes and inspection chambers (91 units) with various diameters and depths.\n\nCutting and restoration of reinforced concrete and asphalt.\n\nRemoval and restoration of stone paving.\n\nConnection and interlocking works for sewage lines.","Restoration and improvement of sewage infrastructure services in the city.\nReplacement of the aging and end-of-life sewerage infrastructure and old concrete channels with high-performance UPVC piping systems.\nMitigating the harmful environmental impacts resulting from cracks and sewage overflow in streets and alleys.\nProtecting regional groundwater from biological contamination.\nAdaptation to climate change.\nResolving sewerage network bottlenecks and rehabilitating the pipelines\nEnhancing the capacity and efficiency of maintenance and operational works.","30,000 of beneficiaries\nIncrease sanitation service coverage\nReduce reports and complaints regarding sewage overflows\nImprove citizen satisfaction levels with services provided","√",null,"Al-Mudhaffar District",{"v":87680,"d":"87,680"},null,"√",null,"√",null,null,{"v":0,"d":"0%"},null,null,"√","UNICEF"]
[null,4,"Rehabilitation of the sewage network in Al-Jazzarin area - behind Arafat market","Excavation, installation, and backfilling works for the replacement of main lines, sub-lines, and house connections.","Restoring and enhancing sanitation infrastructure services in the city","12,000 of beneficiaries\nReduce reports and complaints regarding sewage overflows\nimprove flow in public streets, neighborhoods, and residential areas.",null,"√","Al-Mudhaffar District",{"v":24726,"d":"24,726"},{"$nulls":3},"√",null,null,{"v":0,"d":"0%"},null,null,"√","UNICEF"]
[null,5,"Construction and implementation of septic tanks in Al-Dhuhrah and Al-Garagir areas - Thalatheen Street","Excavation, installation, and backfilling works for the replacement of main and sub-lines.\n\nExcavation works for sewage collection tank sites.\n\nExecution of 05 treatment units, each consisting of 3 double-chamber reinforced concrete septic tanks with a capacity of 250 m³ each, for the Al-Dhuhra and Al-Jarajeer areas.","Implementation of a temporary treatment plant to collect and treat sewage from the western and northern areas of the city, serving as an interim solution until the main treatment plant in Wadi Al-Multaqa is executed\nTree irrigation\nA clean environment\nDisease eradication.","85,000 of beneficiaries\nIncrease sanitation service coverage\nReduce reports and complaints regarding sewage overflows\nimprove flow in public streets, neighborhoods, and residential areas.","√",null,"At Ta'iziyah District\n\nAl-Mudhaffar District",{"v":480000,"d":"480,000"},null,"√",null,"√",null,null,{"v":0,"d":"0%"},null,null,"√","Local Authority | Local Partner"]
[null,6,"Replacement of sewage lines in Allujinat area","Excavation, installation, and backfilling works for the replacement of main lines, sub-lines, and house connections with a total length of 3,771 m.\n\nSupply, installation, and testing of UPVC plastic pipes with a total length of 3,771 m.\n\nOccupational Health and Safety (OHS) works and site preparation.\n\nConstruction of required concrete manholes and inspection chambers (267 units) with various diameters and depths.\n\nReinforced concrete works for an area of 120 m².\n\nAsphalt cutting and restoration for an area of 2,500 m².\n\nConnection and interlocking works for sewage lines.","Restoration and improvement of sewage infrastructure services in the city.\nReplacement of the sewerage network and any old concrete channels with modern UPVC piping.\nDevelopment of solutions to mitigate serious environmental problems, in line with the objectives of the national reform strategy for the water and sanitation sector.\nRemoval of the harmful environmental impact resulting from cracks and the overflow of sewage waste in streets and alleys.\nProtection of groundwater in the area from biological contamination.\nAdaptation to climate change.\nMitigating wastewater network blockages and restoring functionality to compromised or collapsed pipelines.\nEnhancing the capacity and efficiency of maintenance and operation works.","20,000 of beneficiaries\nReduce reports and complaints regarding sewage overflows\nimprove flow in public streets, neighborhoods, and residential areas.\nInfrastructure rehabilitation rate","√",null,"Al-Mudhaffar District",{"v":444928,"d":"444,928"},null,"√",null,"√",null,null,{"v":0,"d":"0%"},null,null,"√","Local Authority | Local Partner"]
[null,7,"Replacement of sewage lines in Al-Shamassi area","Excavation, installation, and backfilling works for the replacement of main lines, sub-lines, and house connections with a total length of 7,525 m.\n\nSupply, installation, and testing of UPVC plastic pipes with a total length of 7,525 m.\n\nOccupational Health and Safety (OHS) works and site preparation.\n\nConstruction of required concrete manholes and inspection chambers (484 units) with various diameters and depths.\n\nReinforced concrete works for an area of 640 m².\n\nAsphalt cutting and restoration for a length of 3,800 m.\n\nConnection and interlocking works for sewage lines.","Restoration and improvement of sewage infrastructure services in the city.\nReplacement of the sewerage network and any old concrete channels with modern UPVC piping.\nDevelopment of solutions to mitigate serious environmental problems, in line with the objectives of the national reform strategy for the water and sanitation sector.\nRemoval of the harmful environmental impact resulting from cracks and the overflow of sewage waste in streets and alleys.\nProtection of groundwater in the area from biological contamination.\nAdaptation to climate change.\nMitigating wastewater network blockages and restoring functionality to compromised or collapsed pipelines.\nEnhancing the capacity and efficiency of maintenance and operation works.","43,000 of beneficiaries\nReduce reports and complaints regarding sewage overflows\nimprove flow in public streets, neighborhoods, and residential areas.\nInfrastructure rehabilitation rate","√",null,"Al-Qahirah District \n\nSalah District",{"v":868207,"d":"868,207"},null,"√",null,"√",null,null,{"v":0,"d":"0%"},null,null,"√","Local Authority | Local Partner"]
[null,8,"Replacement of sewage lines in Al-Dhabooa'ah and Al-Salakhanah areas","Excavation, installation, and backfilling works for the replacement of main lines, sub-lines, and house connections with a total length of 3,783 m.\n\nSupply, installation, and testing of UPVC plastic pipes with a total length of 3,783 m.\n\nOccupational Health and Safety (OHS) works and site preparation.\n\nConstruction of required concrete manholes and inspection chambers (266 units) with various diameters and depths.\n\nCutting and removal of stone pavements (Habash and Oman stones) with a length of 2,100 m.\n\nReinforced concrete works for a length of 180 m.\n\nAsphalt cutting and restoration for a length of 1,505 m.\n\nConnection and interlocking works for sewage lines at 131 locations.\n\nSafety and protection works.","Restoration and improvement of sewage infrastructure services in the city.\nReplacement of the sewerage network and any old concrete channels with modern UPVC piping.\nDevelopment of solutions to mitigate serious environmental problems, in line with the objectives of the national reform strategy for the water and sanitation sector.\nRemoval of the harmful environmental impact resulting from cracks and the overflow of sewage waste in streets and alleys.\nProtection of groundwater in the area from biological contamination.\nAdaptation to climate change.\nMitigating wastewater network blockages and restoring functionality to compromised or collapsed pipelines.\nEnhancing the capacity and efficiency of maintenance and operation works.","18,000 of beneficiaries\nReduce reports and complaints regarding sewage overflows\nimprove flow in public streets, neighborhoods, and residential areas.\nInfrastructure rehabilitation rate",null,"√","Al-Qahirah District ",{"v":541621,"d":"541,621"},null,"√",null,"√",null,null,{"v":0,"d":"0%"},null,null,"√","Local Authority | Local Partner"]
[null,9,"Main sewage trunk line and sub-networks project - Taiz University Street - Habil Salman","Excavation, installation, and backfilling works for the replacement of main lines, sub-lines, and house connections with a total length of 1,683 m.\n\nSupply, installation, and testing of UPVC plastic pipes with a total length of 1,683 m.\n\nOccupational Health and Safety (OHS) works and site preparation.\n\nConstruction of required concrete manholes and inspection chambers (75 units) with various diameters and depths.\n\nAsphalt cutting and restoration for an area of 1,286 m².\n\nCutting, removal, and restoration of stone pavements (Habash and Oman stones) for an area of 40 m².\n\nConnection and interlocking works for sewage lines.\n\nBackfilling and decommissioning of existing cesspits.","Increasing the percentage of residents served by sewage systems by extending new lines to underserved and densely populated areas due to displacement.\nEliminating Cesspits Sewage next to houses, which significantly impact groundwater and surface water stock in the area.\nEliminating sewage overflow in the area, ending the suffering of residents and resolving community conflicts.","50,000 of beneficiaries\nReduce reports and complaints regarding sewage overflows\nimprove flow in public streets, neighborhoods, and residential areas.\nInfrastructure rehabilitation rate","√",null,"Al-Mudhaffar District",{"v":240000,"d":"240,000"},null,"√",null,"√",null,null,{"v":0,"d":"0%"},null,null,"√","Local Authority | Local Partner"]
[null,10,"Replacement of dilapidated sewage lines, Al-Jahmaliah area, near Al-Thulaya school - Phase II","Excavation, installation, and backfilling works for the replacement of main lines, sub-lines, and house connections with a total length of 5,266 m.\n\nSupply, installation, and testing of UPVC plastic pipes with a total length of 5,266 m.\n\nOccupational Health and Safety (OHS) works and site preparation.\n\nConstruction of required concrete manholes and inspection chambers (659 units) with various diameters and depths.\n\nReinforced concrete works for a length of 1,088 m.\n\nAsphalt cutting and restoration for a length of 886 m.\n\nCutting and removal of stone pavements (Habash and Oman stones) with a length of 3,081 m.\n\nConnection and interlocking works for sewage lines.","Restoration and improvement of sewage infrastructure services in the city.\nReplacement of the sewerage network and any old concrete channels with modern UPVC piping.\nDevelopment of solutions to mitigate serious environmental problems, in line with the objectives of the national reform strategy for the water and sanitation sector.\nRemoval of the harmful environmental impact resulting from cracks and the overflow of sewage waste in streets and alleys.\nProtection of groundwater in the area from biological contamination.\nAdaptation to climate change.\nMitigating wastewater network blockages and restoring functionality to compromised or collapsed pipelines.\nEnhancing the capacity and efficiency of maintenance and operation works.","36,000 of beneficiaries\nReduce reports and complaints regarding sewage overflows\nimprove flow in public streets, neighborhoods, and residential areas.\nInfrastructure rehabilitation rate","√",null,"مديرية صالة ",{"v":698111,"d":"698,111"},null,"√",null,"√",null,null,{"v":0,"d":"0%"},null,null,"√","UNICEF"]
[null,11,"Supply, execution, and installation of a solar energy system - for the sewage pumping station - in Wadi Al-Qadi","Supply and installation of an integrated solar energy system to power the main pumping station with a capacity of 185 kW.\n\nInstallation of steel structures and solar panels, including electrical wiring, control systems, operating units, protection systems, and CCTV surveillance.\n\nRehabilitation of the station buildings, raising the perimeter fences, and upgrading the electromechanical components of the stations.","Strengthening energy sources to ensure the operational continuity of facilities.\nEnsuring the operation of pumping stations for an average of 6 to 8 hours daily using solar power systems.\nReducing operational costs to ensure the sustainability of facility operations, and advancing a strategy to phase out reliance on diesel fuel.\nGetting rid of sewage floods \n Eliminating widespread diseases ","Number of beneficiaries (110 thousand people) Complete satisfaction for the residents of the area","√",null,"Al-Mudhaffar District",{"v":120010,"d":"120,010"},null,"√",null,"√",null,null,{"v":0,"d":"0%"},null,null,"√","UNICEF"]
[null,12,"Internal sewage network project - Wadi Al-Salamy area - Al-Hadiqa neighborhood - Phase III","Plastic pipes of various diameters.\n\nConcrete manholes of various diameters.\n\nExcavation, backfilling, and shoring works.\n\nAsphalt and pavements.","Increasing the percentage of residents served by sewage systems by extending new lines to underserved and densely populated areas due to displacement.\nEliminating Cesspits Sewage next to houses, which significantly impact groundwater and surface water stock in the area.\nEliminating sewage overflow in the area, ending the suffering of residents and resolving community conflicts.","17,000 of beneficiaries\nReduce reports and complaints regarding sewage overflows\nimprove flow in public streets, neighborhoods, and residential areas.\nInfrastructure rehabilitation rate","√",null,"Al-Mudhaffar District",{"v":305730,"d":"305,730"},"√",null,null,"√",null,null,{"v":0,"d":"0%"},null,null,"√","Local Authority | Local Partner"]
[null,13,"Drilling of six (6) wells within the city basin and connecting them to the water distribution collection tanks","Drilling of 06 artesian wells with a total depth of 2,400 m.\n\nSupply and installation of electromechanical equipment, including submersible pumps and their accessories.\n\nSupply and installation of integrated central solar energy systems to power the wells.\n\nExecution of main water transmission lines from the wells to the corporation's primary storage tanks.","Exploring new, safe, and sustainable water sources; enhancing existing water resources; increasing water production capacity; and narrowing the gap between available production and the city’s actual water demand in order to meet the city's needs \n\nAchieving an increase in the volume of water available for distribution by 2,140,000 liters per day, equivalent to 64,200 m³ per month.","Number of beneficiaries (400 thousand people)\nRaising the coverage rate for water services.\nReducing the water crisis in the city\nEnabling access to safe and clean water for the population.","√",null,"Al-Mudhaffar, Alqahira, Salah - ",{"v":1346094,"d":"1,346,094"},null,"√",null,"√",null,null,{"v":0,"d":"0%"},null,null,"√","Local Authority | Local Partner","Three wells will be drilled with funding frpm the Saudi Program"]
[null,14,"Implementing a 100 kW solar power system for Al-Markizi Well on Jamal Street","Supply and installation of an integrated 100 kW solar energy system to power the wells.\n\nConstruction of concrete foundations and installation of steel structures and mounting frames for solar panels.\n\nSupply and installation of DC/AC cables, solar inverters, electrical wiring, and control systems.\n\nExecution of operating units, protection systems, and surveillance monitoring systems.\n\nSupply, installation, and commissioning of submersible pumps, electric motors, and all necessary requirement.","Mitigating the impact of the long-term absence and failure of the primary power source (public electricity grid) which has been unavailable for over a decade.\nEnsuring the operation of pumping stations for an average of 6 to 8 hours daily using solar power systems.\nReducing operational costs to ensure the sustainability of facility operations, and advancing a strategy to phase out reliance on diesel fuel.","Reducing the operating expenses required to ensure the continuity of (diesel) wells \n\nDaily access to the equivalent of 200,000 liters of clean water to cover part of the city's water need, equivalent to 6,000 m3/month",null,"√","Al-Mudhaffar District",{"v":55000,"d":"55,000"},null,"√",null,"√",null,null,{"v":0,"d":"0%"},null,null,"√","Local Authority | Local Partner"]
[null,15,"Supply, execution, and installation of solar energy systems to operate three (3) wells in the Hithran Al-Dhabab field (Wells No. 1, 5, and 9) with a total capacity of 200 kW","Supply and installation of an integrated 200 kW solar energy system to power the wells.\n\nConstruction of concrete foundations and installation of steel mounting structures and support frames for solar panels.\n\nSupply and installation of power cables, solar inverters, electrical wiring, and control systems.\n\nExecution of operating units, protection systems, and surveillance monitoring systems.\n\nSupply, installation, and commissioning of submersible pumps, electric motors, and all associated requirements.","Mitigating the impact of the long-term absence and failure of the primary power source (public electricity grid) which has been unavailable for over a decade.\nEnsuring the operation of pumping stations for an average of 6 to 8 hours daily using solar power systems.\nReducing operational costs to ensure the sustainability of facility operations, and advancing a strategy to phase out reliance on diesel fuel.","Reducing the operating expenses required to ensure the continuity of (diesel) wells \n\nDaily access to the equivalent of 1,000,000  liters of clean water to cover part of the city's water need, equivalent to 34,000 m3/month",null,"√","Sabir Almawadim",{"v":220000,"d":"220,000"},null,"√",null,"√",null,null,{"v":0,"d":"0%"},null,null,"√","Local Authority | Local Partner"]
[null,16,"Supply, execution, and installation of solar energy systems for the Al-Mujaliyah water pumping station","Supply and installation of an integrated 100 kW solar energy system to power the wells.\n\nConstruction of reinforced concrete foundations and installation of steel mounting structures and support frames for solar panels.\n\nSupply and installation of power cables, solar pump inverters, and electrical distribution boards.\n\nExecution of electrical grid integration, control systems, operating units, and protection systems.\n\nInstallation of a comprehensive CCTV surveillance and system monitoring network.","Ensuring the operation of pumping stations for an average of 6 to 8 hours daily using solar power systems, for high-elevation regions as well as other districts\nReducing operational costs to ensure the sustainability of facility operations, and advancing a strategy to phase out reliance on diesel fuel.","Covering areas deprived of water, especially the high areas, gives it no less than 50 thousand people",null,"√","Al-Qahera",{"v":120000,"d":"120,000"},null,"√",null,"√",null,null,{"v":0,"d":"0%"},null,null,"√","Local Authority | Local Partner","Submitted To UNICEF"]
[null,17,"Replacement of the main water transmission line from the University Station to the collection and distribution tank center in Sinah - Political Security tanks","\nSupply, installation, and execution of Ductile Iron (DI) pipelines for the main water networks connecting the Western District Pumping Station (University Station) to the main collection and distribution tank center in Sinah area.\n\nExcavation, backfilling, asphalt cutting, and all associated civil works.","Ensuring the continuity of water pumping to the main center for storage and distribution, with a total capacity of 11 million liters, covering 60% of residential areas city-wide.\n\nReducing the acute water crisis facing the city due to the disruption of water pumping to residential neighborhoods, which has been exacerbated by the ongoing war and has impacted institutional capacity.\n\nRestoring the efficiency of water pumping infrastructure through replacement and renewal of obsolete assets.","Number of beneficiaries (450 thousand people) \nReducing the size of water loss.\nWater access to residents","√",null,"Al-Mudhaffar District",{"v":1080860,"d":"1,080,860"},null,"√",null,"√",null,null,{"v":0,"d":"0%"},null,null,"√","UNICEF"]
[null,18,"Extension of water pumping and distribution networks for Al-Dahi area - near Al-Shaibani factory","Excavation, backfilling, asphalt cutting, and all associated civil works.\n\nSupply, installation, and execution of main and branch water pumping and distribution networks for the newly developed residential blocks in those areas.\n\nSupply and installation of domestic water meters for residential connections.\n\nSupply and installation of valves, non-return valves (check valves), and air release valves.\n\nSupply and installation of spare parts and fittings for the distribution networks.\n\nPressure testing of the network system post-execution.","Implementation of infrastructure projects for water pumping and distribution networks, keeping pace with urban expansion in displacement areas and underserved regions.\n\nExpanding service coverage and ensuring secure access to safe water.\n\nGenerating sustainable revenue for the institution","Number of beneficiaries (25.3 thousand people)\nRaising the coverage rate for water services.\nThe size of the institution's monthly financial return\nEnabling access to safe and clean water for the population.","√",null,"Al-Mudhaffar District",{"v":350749,"d":"350,749"},null,"√",null,"√",null,null,{"v":0,"d":"0%"},null,null,"√","Local Authority | Local Partner"]
[null,19,"Complete the project of replacement  the main water transmission line - from the Central Prison to the University Station","Supply, installation, and execution of Ductile Iron (DI) transmission pipelines for water transport from the Hadran Al-Dhabab wells to the University Station.\n\nExcavation, backfilling, asphalt cutting, and all associated civil works.","Ensuring the continuity of water pumping to the main center \n\nReducing the acute water crisis facing the city due to the disruption of water pumping to residential neighborhoods, which has been exacerbated by the ongoing war and has impacted institutional capacity.\n\nRestoring the efficiency of water pumping infrastructure through replacement and renewal of obsolete assets.","Number of beneficiaries (300 thousand people) \nReducing the size of water loss.\nWater access to residents",null,"√","Al-Mudhaffar District",{"v":460000,"d":"460,000"},null,"√",null,"√",null,null,{"v":0,"d":"0%"},null,null,"√","UNICEF"]
[null,20,"Replacement of the water distribution line from Wadi Al-Qadi to the Electricity roundabout","Supply, installation, and execution of a large-diameter Polyethylene (HDPE) pipeline for water distribution.\n\nExcavation, backfilling, asphalt cutting, and all associated civil works.","Ensuring the continuity of water pumping \nReducing water loss and expanding coverage to the area\nRestoring the efficiency of water pumping infrastructure through replacement and renewal of obsolete assets.","Number of beneficiaries (25.5 thousand people)",null,"√","Al-Qahirah District ",{"v":57210,"d":"57,210"},null,"√",null,"√",null,null,{"v":0,"d":"0%"},null,null,"√","UNICEF"]
[null,21,"Replacement of the water distribution line from the Electricity roundabout to Iftihan roundabout","Supply, installation, and execution of a large-diameter Polyethylene (HDPE) pipeline for water distribution.\n\nExcavation, backfilling, asphalt cutting, and all associated civil works.","Ensuring the continuity of water pumping \nReducing water loss and expanding coverage to the area\nRestoring the efficiency of water pumping infrastructure through replacement and renewal of obsolete assets.","Number of beneficiaries (12.3 thousand people)",null,"√","Al-Qahirah District ",{"v":63365,"d":"63,365"},null,"√",null,"√",null,null,{"v":0,"d":"0%"},null,null,"√","UNICEF"]
[null,22,"Water distribution line project - transport station area , Al-Ba'rarah","Supply, installation, and execution of a large-diameter Polyethylene (HDPE) pipeline for water distribution.\n\nExcavation, backfilling, asphalt cutting, and all associated civil works.","Ensuring the continuity of water pumping \nReducing water loss and expanding coverage to the area\nRestoring the efficiency of water pumping infrastructure through replacement and renewal of obsolete assets.","Number of beneficiaries (21,560 people)",null,"√","Al-Mudhaffar District",{"v":82625,"d":"82,625"},null,"√",null,"√",null,null,{"v":0,"d":"0%"},null,null,"√","UNICEF"]
[null,23,"Water distribution line project - transport station area , Sinah AlOlya","Supply, installation, and execution of a large-diameter Polyethylene (HDPE) pipeline for water distribution.\n\nExcavation, backfilling, asphalt cutting, and all associated civil works.","Ensuring the continuity of water pumping \nReducing water loss and expanding coverage to the area\nRestoring the efficiency of water pumping infrastructure through replacement and renewal of obsolete assets.","Number of beneficiaries (15,000 thousand people)",null,"√","Al-Mudhaffar District",{"v":51795,"d":"51,795"},null,"√",null,"√",null,null,{"v":0,"d":"0%"},null,null,"√","UNICEF"]
[null,24,"Water Distribution Network Supply and Installation Project – Al-Masbah Area (from Badr Mosque to Najd Allahu Akbar Mosque).","Supply and installation of a 10\" (250mm) High-Density Polyethylene (HDPE) water distribution pipeline, including all necessary fittings and requirements, with a total length of 480 meters.","Ensuring the continuity of water pumping \nReducing water loss and expanding coverage to the area\nRestoring the efficiency of water pumping infrastructure through replacement and renewal of obsolete assets.","Number of beneficiaries (27,300 people)","√",null,"Al-Qahirah District ",{"v":65000,"d":"65,000"},null,"√",null,"√",null,null,{"v":0,"d":"0%"},null,null,"√","UNICEF"]
[null,25,"Supply and Installation of Water Distribution Pipeline,  from Al-Jahouri Well to High-Altitude Areas.","Supply and installation of High-Density Polyethylene (HDPE) water distribution pipelines with diameters of 3\", 2\", and 1.5\", including all necessary fittings and requirements, with a total length of 400 meters.","Ensuring the continuity of water pumping \nReducing water loss and expanding coverage to the area\nRestoring the efficiency of water pumping infrastructure through replacement and renewal of obsolete assets.","Number of beneficiaries (10,000 people)","√",null,"Al-Qahirah District ",{"v":25000,"d":"25,000"},null,"√",null,"√",null,null,{"v":0,"d":"0%"},null,null,"√","UNICEF"]
[null,26,"Supply and Installation of Water Distribution Pipeline – Al-Dharbah Area (Extending Pipeline from the Governorate Office to Al-Muntazah Gate, Al-Masbah).","Supply and installation of a 250mm (10\") High-Density Polyethylene (HDPE) water distribution pipeline, including all necessary fittings and requirements, with a total length of 900 meters.","Ensuring the continuity of water pumping \nReducing water loss and expanding coverage to the area\nRestoring the efficiency of water pumping infrastructure through replacement and renewal of obsolete assets.","Number of beneficiaries (12,000 people)","√",null,"Al-Qahirah District ",{"v":110000,"d":"110,000"},null,"√",null,"√",null,null,{"v":0,"d":"0%"},null,null,"√","UNICEF"]
[null,27,"A project to construct a concrete tank with a capacity of 6,000 m3 to collect Al-Dhabab and Talouq water then-  distributing, ( inside the Political Security building - Sinah Area)","Civil works for the construction and execution of a reinforced concrete water reservoir with a capacity of 6,000 cubic meters","Increasing the water carrying capacity to accommodate the current water inflows from Al-Dhabab, Talouq, and Hithran wells, as well as future seawater desalination\n\nReducing the water supply cycle from 112 days to a stabilized frequency of 26–37 days.\n\nExpanding the distribution network to incorporate 33 new distribution blocks.\n\nFacilitating the efficient supply and distribution of water to residential areas in sufficient pressure and shorter supply intervals","Number of beneficiaries (143 thousand people)\nRaising the coverage rate for water services.\nIncreasing the size of the water capacity\nEnabling water distribution at sufficient pressures and for shorter periods of time","√",null,"Al-Mudhaffar District",{"v":1537148,"d":"1,537,148"},null,"√",null,"√",null,null,{"v":0,"d":"0%"},null,null,"√","Local Authority | Local Partner"]
[null,28,"Water Network Rehabilitation Project for Al-Qahira and Al-Suwais Areas.","Supply, installation, and execution of High-Density Polyethylene (HDPE) water distribution networks of various diameters.\n\nExcavation, backfilling, asphalt and pavement cutting and restoration, and all associated civil works.","Ensuring the continuity of water pumping \nReducing water loss and expanding coverage to the area\nRestoring the efficiency of water pumping infrastructure through replacement and renewal of obsolete assets.","Number of beneficiaries (4,735 thousand people)\nRaising the coverage rate for water services.\nIncreasing the size of the water capacity\nEnabling water distribution at sufficient pressures and for shorter periods of time",null,"√","Al-Mocha District",{"v":110000,"d":"110,000"},null,"√",null,"√",null,null,{"v":0,"d":"0%"},null,null,"√","UNICEF","The site has been handded over"]
[null,29,"Water Network Rehabilitation Project for Al-Hali and Al-Zuhaira Areas.","Supply, installation, and execution of High-Density Polyethylene (HDPE) water distribution networks of various diameters.\n\nExcavation, backfilling, asphalt and pavement cutting and restoration, and all associated civil works.","Ensuring the continuity of water pumping \nReducing water loss and expanding coverage to the area\nRestoring the efficiency of water pumping infrastructure through replacement and renewal of obsolete assets.","Number of beneficiaries (6,000 thousand people)\nRaising the coverage rate for water services.\nIncreasing the size of the water capacity\nEnabling water distribution at sufficient pressures and for shorter periods of time",null,"√","Al-Mocha District",{"v":80000,"d":"80,000"},null,null,"√","√",null,null,{"v":0,"d":"0%"},null,null,"√","Local Authority | Local Partner"]
[null,30,"Supply of Laboratory Equipment and Materials","Equipment & Instrumentation","Clean, healthy water free from pollution","Number of beneficiaries (10,000 thousand people)",null,"√","Al-Mocha District",{"v":40000,"d":"40,000"},null,null,"√","√",null,null,{"v":0,"d":"0%"},null,null,"√","Local Authority | Local Partner"]
[null,31,"Supply of Smart Meters and Billing System ","Bulk water meters (central) and domestic water meters.","Network maintenance - covering the population with water","Number of beneficiaries (10,000 thousand people)",null,"√","Al-Mocha District",{"v":300000,"d":"300,000"},null,null,"√","√",null,null,{"v":0,"d":"0%"},null,null,"√","Local Authority | Local Partner"]
[null,32,"Supply of Lithium Batteries for Solar-Powered Water Well Systems","batteries","Continued water pumping - fuel reduction","Number of beneficiaries (10,000 thousand people)",null,"√","Al-Mocha District",{"v":200000,"d":"200,000"},null,null,"√","√",null,null,{"v":0,"d":"0%"},null,null,"√","Local Authority | Local Partner"]
[null,33,"Supply of Maintenance Materials for Generators","Batteries, filters, lubricants, and spare parts.","Ensuring that generators continue to operate with high efficiency","Number of beneficiaries (300,000 thousand people) - Water access to the population","√",null,"Al-Qahirah District, Al-Mudhaffar District \n\nSalah District",{"v":127700,"d":"127,700"},null,"√",null,"√",null,null,{"v":0,"d":"0%"},null,null,"√","Local Authority | Local Partner"]
[null,34,"Supply of HDPE Pipes of Various Diameters and Fittings – Pressure Rating: 16 Bar ","Polyethylene (HDPE) pipes of various diameters.","Network maintenance - covering the population with water","Number of beneficiaries (350,000 thousand people) - Water access to the population","√",null,"Al-Qahirah District, Al-Mudhaffar District \n\nSalah District",{"v":450000,"d":"450,000"},null,"√",null,"√",null,null,{"v":0,"d":"0%"},null,null,"√","Local Authority | Local Partner"]
[null,35,"Supply of Galvanized Iron (GI) Pipes in various Diameters with all necessary Fittings","Galvanized steel pipes of various diameters.","Network maintenance - covering the population with water","Number of beneficiaries (210,000 thousand people) - Water access to the population","√",null,"Al-Qahirah District, Al-Mudhaffar District \n\nSalah District",{"v":180000,"d":"180,000"},null,"√",null,"√",null,null,{"v":0,"d":"0%"},null,null,"√","Local Authority | Local Partner"]
[null,36,"Supply of Ductile Iron (DI) Pipes of Various Diameters and Fittings – Pressure Rating: 25 Bar ","Supply of Ductile Iron (DI) pipes of various diameters with spare parts and fittings for main water network maintenance.","Network maintenance - covering the population with water","Number of beneficiaries (350,000 thousand people) - Water access to the population","√",null,"Al-Qahirah District, Al-Mudhaffar District \n\nSalah District",{"v":700000,"d":"700,000"},null,"√",null,"√",null,null,{"v":0,"d":"0%"},null,null,"√","Local Authority | Local Partner"]
[null,37,"Supply of PVC Pipes of Various Diameters – Flexible Joint System (Rubber Gasket) – Pressure Rating: 16 Bar","Supply of PVC (Pressure 16 Bar) pipes of various diameters with spare parts and fittings for maintenance of secondary distribution pipelines in existing water networks.","Network maintenance - covering the population with water","Number of beneficiaries (350,000 thousand people) - Water access to the population","√",null,"Al-Qahirah District, Al-Mudhaffar District \n\nSalah District",{"v":160000,"d":"160,000"},null,"√",null,"√",null,null,{"v":0,"d":"0%"},null,null,"√","Local Authority | Local Partner"]
[null,38,"Supply of DI Valves of various diameters – Pressure Rating: 25 Bar ","Ductile Iron (DI) valves of various diameters for the purpose of reducing technical losses in the water network system.","Network maintenance - covering the population with water","Number of beneficiaries (350,000 thousand people) - Water access to the population","√",null,"Al-Qahirah District, Al-Mudhaffar District \n\nSalah District",{"v":155000,"d":"155,000"},null,"√",null,"√",null,null,{"v":0,"d":"0%"},null,null,"√","Local Authority | Local Partner"]
[null,39,"Supply of central and domestic water meters and various types and size of valves","Central and domestic water meters, and valves.","Network maintenance - covering the population with water","Number of beneficiaries (350,000 thousand people) - Water access to the population","√",null,"Al-Qahirah District, Al-Mudhaffar District \n\nSalah District",{"v":850000,"d":"850,000"},null,"√",null,"√",null,null,{"v":0,"d":"0%"},null,null,"√","Local Authority | Local Partner"]
[null,40,"Supply of Laboratory Equipment and Materials","Equipment & Instrumentation","Clean, healthy water free from pollution","Number of beneficiaries (600,000 thousand people)","√",null,"Al-Qahirah District, Al-Mudhaffar District \n\nSalah District",{"v":146694,"d":"146,694"},null,"√",null,"√",null,null,{"v":0,"d":"0%"},null,null,"√","Local Authority | Local Partner"]
[null,41,"Increasing the production Yield of Al-Dhabab water well.","Relocation of the electrical generator, construction of a generator room, and installation of electric poles and transformers.","Increase the production capacity of Al-Dhabab field wells by operating them at night","Increase production capacity to approximately one million five hundred thousand liters per day","√",null,"Al-Dhabab , Saber Al-Mawadim ",{"v":243300,"d":"243,300"},null,"√",null,"√",null,null,{"v":0,"d":"0%"},null,null,"√","Local Authority | Local Partner"]
[null,42,"Rehabilitation of Al-Ashrafiyah Water Spring System ","Rehabilitation of Al-Mia'yan and establishment of a distribution line for beneficiaries for drinking water and irrigation uses","Optimizing the utilization of Al-Mia'yan water resources for both drinking purposes and irrigation needs","Rehabilitation of Al-Mia'yan and establishment of a distribution line for beneficiaries for drinking water and irrigation uses","√",null,"Al-Mudhaffar District",null,"√",null,null,"√",null,null,{"v":0,"d":"0%"},null,null,"KFW","IOM"]
[null,43,"Rehabilitation of Al-Oushani Water Spring System - Al-Mudhaffar","Rehabilitation of the Al-Mia’yan ","Optimizing the utilization of Al-Mia'yan water resources ","Al-Mia'yan Rehabilitation","√",null,"Al-Mudhaffar District",null,"√",null,null,"√",null,null,{"v":0,"d":"0%"},null,null,"KFW","IOM"]
[null,44,"Desalination Project of Al-Mokha Seawater ","\n1. Civil Works \nConstruction of the main station buildings and boundary walls.\n\nConstruction of 3 booster pumping stations (buildings and boundary walls) distributed along the transmission pipeline route.\n\nConstruction of the receiving station buildings and boundary walls in Taiz city.\n\n2. Mechanical Works\nSupply and installation of the 132 km main Ductile Iron (DI) transmission pipeline.\n\nSupply and installation of high-capacity pumps and motors.\n\nConstruction of collection and balancing reservoirs, including all necessary fittings and requirements.\n\n3. Electrical Works \nSupply and installation of power generators, electrical systems, control panels, and outdoor/indoor lighting systems.","Providing safe and sustainable drinking water to reduce the water crisis in Taiz ","Providing potable water to the residents of Taiz Governorate in a sustainable manner","√",null,"Taiz Governorate",null,"√",null,null,"√",null,null,{"v":0,"d":"0%"},null,null,"√","Local Authority | Local Partner"]
["Rural Water"]
[" Integrated Basic and Social Services",1,"Rehabilitation of Al-A'aloom Government Water Project","Drilling of a deep artesian well, including casing, screen installation, and well development.","providing safe water","Water access for 13,350 people","√",null,"Al- Mawasit",{"v":369420,"d":"369,420"},null,"√",null,"√",null,{"v":0,"d":"0%"},{"$nulls":3},"√","Local Authority | Local Partner"]
[null,2,"Complete the Rehabilitation of Al-Mukeishah Government Water Project ","Construction of a 200m³ reinforced concrete reservoir, including excavation, structural works, internal food-grade waterproofing, and installation of inlet, outlet, overflow, and washout pipes","providing safe water","Water access for 7,800 people",null,"√","Al- Mawasit",{"v":335754,"d":"335,754"},null,"√",null,"√",null,{"v":0,"d":"0%"},{"$nulls":3},"√","Local Authority | Local Partner"]
[null,3,"Rehabilitation of the Al-Masrakh Water Center project","Drilling of an artesian well, installation of a solar-powered pumping unit, supply of a steel pumping main, and rehabilitation of the water distribution network.","providing safe water","Water access for 10,000 people",null,"√","Al-Misrakh",{"v":240000,"d":"240,000"},null,"√",null,"√",null,{"v":0,"d":"0%"},{"$nulls":3},"√","Local Authority | Local Partner"]
[null,4,"Completion of Hayda and Al-Mihdad Water Project","Implementation of a solar-powered pumping unit.\n\nSteel pipes for water network completion and rehabilitation of the existing network.\n\nCompletion of reservoir finishing works.","providing safe water","Water access for 7,180 people",null,"√","Al-Misrakh",{"v":50000,"d":"50,000"},null,"√",null,"√",null,{"v":0,"d":"0%"},{"$nulls":3},"√","Local Authority | Local Partner"]
[null,5,"Rehabilitation of Jaba and Musfir Water Project","Drilling of an artesian well.\n\nImplementation of a solar-powered pumping unit.\n\nSteel pipes for the pumping main and rehabilitation of the water distribution network.","providing safe water","Water access for 8,900 people",null,"√","Al-Misrakh",{"v":230000,"d":"230,000"},null,null,"√","√",null,{"v":0,"d":"0%"},{"$nulls":3},"√","Local Authority | Local Partner"]
[null,6,"Completion of the Awzma water project","\nImplementation of a solar power system.\n\nSteel pipes for water network completion.","providing safe water","Water access for 3,200 people","√",null,"Al-Shamayatain",{"v":70000,"d":"70,000"},null,"√",null,"√",null,{"v":0,"d":"0%"},{"$nulls":3},"√","Local Authority | Local Partner"]
[null,7,"Complete the rehabilitation of the Western Shama Water Project","Implementation of a solar-powered pumping unit.\n\nSteel pipes for water distribution network rehabilitation.","providing safe water","Water access for 3,700 people","√",null,"Al-Shamayatain",{"v":69180,"d":"69,180"},null,"√",null,"√",null,{"v":0,"d":"0%"},{"$nulls":3},"√","Local Authority | Local Partner"]
[null,8,"Rehabilitation of Bandah Water Project","\nConstruction of a 150m³ reinforced concrete reservoir.\n\nSteel pipes for water distribution network rehabilitation.","providing safe water","Water access for 3,800 people",null,"√","Al-Shamayatain",{"v":104338,"d":"104,338"},null,"√",null,"√",null,{"v":0,"d":"0%"},{"$nulls":3},"√","Local Authority | Local Partner"]
[null,9,"Completion of Al-Shariq Water Project","Supply and installation of 2 solar-powered pumping units\n\nSteel pipes (for water network/pumping main)\n\nConstruction of a 100m³ reinforced concrete reservoir\n\nConstruction of a pump room","providing safe water","Water access for 1,200 people","√",null,"Jabal Habashi",{"v":383000,"d":"383,000"},null,null,"√","√",null,{"v":0,"d":"0%"},{"$nulls":3},"KFW","IOM"]
[null,10,"Rehabilitation of Al-Bookara Water Project","Implementation of a solar-powered pumping unit.\n\nSteel pipes for water distribution network rehabilitation and pumping main.\n\nConstruction of a 4×5m pump room.","providing safe water","Water access for 6,400 people","√",null,"Al-Wazi'iyah District",{"v":273000,"d":"273,000"},null,null,"√","√",null,{"v":0,"d":"0%"},{"$nulls":3},"√","Local Authority | Local Partner"]
[null,11,"Rehabilitation of Al-Soufi Water Project","Steel pipes for water distribution network rehabilitation","providing safe water","Water access for 4,600 people","√",null,"Al-Wazi'iyah District",{"v":78000,"d":"78,000"},null,null,"√","√",null,{"v":0,"d":"0%"},{"$nulls":3},"√","Local Authority | Local Partner"]
[null,12,"Rehabilitation of Al-Joma'ah Water Project","Implementation of a solar-powered pumping unit.\n\nPolyethylene (PE) pipes for the water distribution network.\n\nPumping main line.","providing safe water","Water access for 4,800 people","√",null,"Al-Mocha ",{"v":65000,"d":"65,000"},null,"√",null,"√",null,{"v":0,"d":"0%"},{"$nulls":3},"KFW","IOM"]
[null,13,"Rehabilitation of Al-Sha'ab and Al-A'adoof Water Project","Steel pipes for water distribution network rehabilitation.\n\nConstruction of a reinforced concrete reservoir.","providing safe water","Water access for 4,500 people","√",null,"Saber Al-Mawadim",{"v":80000,"d":"80,000"},null,null,"√","√",null,{"v":0,"d":"0%"},{"$nulls":3},"√","Local Authority | Local Partner"]
[null,14,"Construction of a Rainwater Harvesting Tank for Al-Najadah Area","Construction of a 500m³ stone masonry rainwater harvesting tank.","providing safe water","Water reaches 1,800 people","√",null,"Saber Al-Mawadim",{"v":70000,"d":"70,000"},null,null,"√","√",null,{"v":0,"d":"0%"},{"$nulls":3},"√","Local Authority | Local Partner"]
[null,15,"Complete the rehabilitation of Al-Qudhat Water Project ","Implementation of a solar-powered pumping unit.\n\nSteel pipes for water distribution network rehabilitation.","providing safe water","Water access for 1,400 people","√",null,"Ash Shamayatayn District",{"v":59800,"d":"59,800"},null,"√",null,"√",null,{"v":0,"d":"0%"},{"$nulls":3},"√","Local Authority | Local Partner"]
[null,16,"Conducting a Comprehensive Survey of Water Projects","Formation of the survey team.\n\nCapacity building for the team.\n\nFieldwork.\n\nData analysis.","تقييم الوضع الحالي لمشاريع المياه في المناطق المستهدفة","Survey  report",null,"√","13 Districts",{"v":35000,"d":"35,000"},"√",null,null,"√",null,{"v":0,"d":"0%"},{"$nulls":3},"√","Local Authority | Local Partner"]
[null,17,"Completion of Al-Kadarah Water Project ","Pipes","providing safe water","Water access for 4,300 people","√",null,"Al-Mawasit",{"v":20000,"d":"20,000"},null,"√",null,"√",null,{"v":0,"d":"0%"},{"$nulls":3},"√","Local Authority | Local Partner"]
[null,18,"Completion of Hazman Asfal Water Project ","Pipes.\n\nSolar-powered submersible pumping unit.\n\nWater reservoir.","providing safe water","Water access for 4,400 people","√",null,"Al-Mawasit",{"v":136360,"d":"136,360"},null,"√",null,"√",null,{"v":0,"d":"0%"},{"$nulls":3},"√","Local Authority | Local Partner"]
[null,19,"Bani Jaber Water Project ","Pipes.\n\nSolar-powered pumping unit.\n\n","providing safe water","Water access for 3,200 people","√",null,"Al-Mawasit",{"v":135000,"d":"135,000"},null,"√",null,"√",null,{"v":0,"d":"0%"},{"$nulls":3},"√","Local Authority | Local Partner"]
[null,20,"Completion of Bani Al-Abbas Water Project ","Well.\n\nPump room.\n\nPipes.\n\nSolar-powered pumping unit.","providing safe water","Water access for 7,300 people",null,"√","Al-Mawasit",{"v":250000,"d":"250,000"},"√",null,null,"√",null,{"v":0,"d":"0%"},{"$nulls":3},"√","Local Authority | Local Partner"]
[null,21,"Al-Ashrooh Water Project ","\nPipes.\n\nSolar-powered pumping unit.","providing safe water","Water access for 10,000 people","√",null,"Al-Mawasit",{"v":70000,"d":"70,000"},"√",null,null,"√",null,{"v":0,"d":"0%"},{"$nulls":3},"√","Local Authority | Local Partner"]
[null,22,"Al-Akdan Water Project ","\n\nSolar-powered pumping unit.","providing safe water","Water reaches 3,500 people",null,"√","Al-Missrakh",{"v":130000,"d":"130,000"},"√",null,null,"√",null,{"v":0,"d":"0%"},{"$nulls":3},"√","Local Authority | Local Partner"]
[null,23,"Al-Omair Water Project ","\nPipes.\n\nSolar-powered pumping unit.","providing safe water","Water access for 1,600 people",null,"√","Ash Shamayatayn District",{"v":75000,"d":"75,000"},"√",null,null,"√",null,{"v":0,"d":"0%"},{"$nulls":3},"√","Local Authority | Local Partner"]
[null,24,"Al-Safiya Water Project ","Well deepening.\n\nSolar-powered pumping unit","providing safe water","Water access for 4,600 people","√",null,"Ash Shamayatayn District",{"v":50000,"d":"50,000"},"√",null,null,"√",null,{"v":0,"d":"0%"},{"$nulls":3},"√","Local Authority | Local Partner"]
[null,25,"Al-Musainia'ah Water Project ","\nSolar-powered pumping unit.","providing safe water","Water access for 2,400 people","√",null,"Ash Shamayatayn District",{"v":97000,"d":"97,000"},"√",null,null,"√",null,{"v":0,"d":"0%"},{"$nulls":3},"√","Local Authority | Local Partner"]
[null,26,"Karabah Water Project ","\nPipes.\n\nSolar-powered pumping unit.","providing safe water","Water access for 4,300 people","√",null,"Ash Shamayatayn District",{"v":160162,"d":"160,162"},"√",null,null,"√",null,{"v":0,"d":"0%"},{"$nulls":3},"√","Local Authority | Local Partner"]
[null,27,"Completion of Al-Ma'aool  Water Project ","Pipes","providing safe water","Water access for 3,900 people","√",null,"Ash Shamayatayn District",{"v":110000,"d":"110,000"},"√",null,null,"√",null,{"v":0,"d":"0%"},{"$nulls":3},"√","Local Authority | Local Partner"]
[null,28,"Hajafat Water Project ","Pipes  ","providing safe water","Water reaches 3,500 people","√",null,"Ash Shamayatayn District",{"v":700000,"d":"700,000"},"√",null,null,"√",null,{"$f":"W79/J79","v":{"v":0,"d":"0%"}},{"$nulls":3},"√","Local Authority | Local Partner"]
[null,29,"Bani Massan Water Project ","Pipes.\n\nSolar-powered pumping unit.\n\nReservoir rehabilitation.","providing safe water","Water access for 4,100 people","√",null,"Ash Shamayatayn District",{"v":98388,"d":"98,388"},{"$nulls":3},"√",null,{"v":0,"d":"0%"},{"$nulls":3},"√","Local Authority | Local Partner"]
[null,30,"Completion of Al-jibzya Water Project ","Well drilling.\n\nSolar energy system unit.","providing safe water","Water access for 13,600 people","√",null,"Al-Ma'affer",{"v":220000,"d":"220,000"},{"$nulls":3},"√",null,{"v":0,"d":"0%"},{"$nulls":3},"√","Local Authority | Local Partner"]
[null,31,"Completion of Al-Mashariqa Water Project ","Pipes","providing safe water","Water access for 4,700 people","√",null,"Ash Shamayatayn District",{"v":50000,"d":"50,000"},"√",null,null,"√",null,{"$f":"W82/J82","v":{"v":0,"d":"0%"}},{"$nulls":3},"√","Local Authority | Local Partner"]
[null,32,"Bani Bukari Water Project ","Supply and installation of pipes with different diameters.","providing safe water","Water access for 4,300 people","√",null,"Jabal Habashi",{"v":60000,"d":"60,000"},"√",null,null,"√",null,{"v":0,"d":"0%"},{"$nulls":3},"√","Local Authority | Local Partner"]
[null,33,"Wahar Water Project ","Supply and installation of a solar power system.\n\nSupply of the main pumping line.\n\nSupply of the domestic internal water distribution network.\n\nConstruction of a 100m³ reinforced concrete reservoir.","providing safe water","Water access for 29,000 people","√",null,"Jabal Habashi",{"v":70375,"d":"70,375"},null,"√",null,"√",null,{"v":0,"d":"0%"},{"$nulls":3},"√","Local Authority | Local Partner"]
[null,34,"Rehabilitation of Al-Jazar Water Project","Well drilling.\n\nSupply and installation of a solar power system.\n\nSupply of the main pumping line.\n\nSupply of the domestic internal water distribution network.\n\nConstruction of a 150m³ reinforced concrete reservoir.","providing safe water","Water reaches 18,650 people",null,"√","Jabal Habashi",{"v":180640,"d":"180,640"},null,"√",null,"√",null,{"v":0,"d":"0%"},{"$nulls":3},"√","Local Authority | Local Partner"]
[null,35,"Drilling of an Artesian Well in Al-Janad Al-Asfal.","Artesian well drilling.\n\nSupply and installation of a solar power system.\n\nSupply of the main pumping line.\n\nSupply of the domestic internal water distribution network.\n\nConstruction of a 100m³ reinforced concrete reservoir.","providing safe water","Water access for 3,456 people","√",null,"Jabal Habashi",{"v":239745,"d":"239,745"},null,"√",null,"√",null,{"v":0,"d":"0%"},{"$nulls":3},"√","Local Authority | Local Partner"]
[null,36,"Rehabilitation of Namira Water Project","Solar power system. (Solar panels + mounting structures + cables + control panels/DBs)","providing safe water","Water access for 11,800 people","√",null,"Jabal Habashi",{"v":180000,"d":"180,000"},null,"√",null,"√",null,{"v":0,"d":"0%"},{"$nulls":3},"√","Local Authority | Local Partner"]
[null,37,"Drilling of a Supplementary Well to Cover Water Needs of Al-Nowayhah and Al-Dhabat","Artesian well drilling.\n\nSupply and installation of a solar power system (PV panels, mounting structures, cables, and control panels).\n\nSupply of the main pumping line.\n\nSupply of the domestic internal water distribution network.\n\nConstruction of a 100m³ reinforced concrete reservoir.","providing safe water","Water access for 10,485 people",null,"√","Jabal Habashi",{"v":65000,"d":"65,000"},null,"√",null,"√",null,{"v":0,"d":"0%"},{"$nulls":3},"√","Local Authority | Local Partner"]
[null,38,"Construction of a Water Tank for Al-Quway'a Sub-district","Construction of a 160m³ reinforced concrete water reservoir.","providing safe water","Water access for 1,400 people","√",null,"Saber Al-Mawadim",{"v":20180,"d":"20,180"},"√",null,null,"√",null,{"v":0,"d":"0%"},{"$nulls":3},"√","Local Authority | Local Partner"]
[null,39,"Al-Koraifa Water Project ","Supply and installation of pipes with different diameters.","providing safe water","Water access for 2,000 people","√",null,"Saber Al-Mawadim",{"v":4303,"d":"4,303"},"√",null,null,"√",null,{"v":0,"d":"0%"},{"$nulls":3},"√","Local Authority | Local Partner"]
[null,40,"Completion of Al-Malika Water Project","Pipes.\n\nWater reservoir.","providing safe water","Water access for 7,000 people",null,"√","Al-Ma'affer",{"v":200000,"d":"200,000"},null,"√",null,"√",null,{"v":0,"d":"0%"},{"$nulls":3},"√","Local Authority | Local Partner"]
[null,41,"Rehabilitation of the Al-Dhuraifa Water Project","Well.\n\nSolar-powered pumping unit.\n\nPipes.\n\nPump room.","providing safe water","Water access for 8,216 people",null,"√","Al-Wazi'iyah District ",{"v":220000,"d":"220,000"},null,"√",null,"√",null,{"v":0,"d":"0%"},{"$nulls":3},"√","Local Authority | Local Partner"]
[null,42,"Rehabilitation of the Al-Raddf water project","Pipes.\n\nSolar-powered pumping unit.","providing safe water","Water access for 4,160 people","√",null,"Al-Wazi'iyah District",{"v":120000,"d":"120,000"},null,"√",null,"√",null,{"v":0,"d":"0%"},{"$nulls":3},"√","Local Authority | Local Partner"]
[null,43,"Rehabilitation of the Al-Khadhra'a water project","Pipes.\n\nWater reservoir.\n\nSolar-powered pumping unit.\n\nPump room.","providing safe water","Water access for 3,600 people",null,"√","Al-Mohka",{"v":140000,"d":"140,000"},null,"√",null,"√",null,{"v":0,"d":"0%"},{"$nulls":3},"√","Local Authority | Local Partner"]
[null,44,"Complete the rehabilitation of Thubhan Water Project ","Solar-powered pumping unit.\n\nWater reservoir.\n\nPipes.","providing safe water","Water reaches 15,000 people","√",null,"Ash Shamayatayn District",{"v":352942,"d":"352,942"},null,"√",null,"√",null,{"v":0,"d":"0%"},{"$nulls":3},"√","Local Authority | Local Partner"]
[null,45,"Complete the rehabilitation of Al-Mashawilah Water Project ","Solar-powered pumping unit.\n\nWater reservoir.\n\nPipes.","providing safe water","Water access for 16,000 people","√",null,"Al-Ma'affer",{"v":184097,"d":"184,097"},null,"√",null,"√",null,{"v":0,"d":"0%"},{"$nulls":3},"√","Local Authority | Local Partner"]
[null,46,"Rehabilitation of Haraz water project","Pipes.\n\nWell.\n\nSolar-powered pumping unit.\n\nPump room.","providing safe water","Water access for 4,789 people",null,"√","Jabal Habashi",{"v":200000,"d":"200,000"},null,"√",null,"√",null,{"$f":"W97/J97","v":{"v":0,"d":"0%"}},{"$nulls":3},"√","Local Authority | Local Partner"]
[null,47,"Rehabilitation of the Al-Moaina water project","\n\nSolar-powered pumping unit.\n","providing safe water","Water access for 1,600 people","√",null,"Ash Shamayatayn District",{"v":65000,"d":"65,000"},null,"√",null,"√",null,{"v":0,"d":"0%"},{"$nulls":3},"√","Local Authority | Local Partner"]
[null,48,"Al-Ghabeeb Water Project - Bakayan","Pipes.\n\nWater reservoir.\n\nSolar-powered pumping unit.\n.","providing safe water","Water access for 2,500 people",null,"√","Sama' District",{"v":87000,"d":"87,000"},null,null,"√","√",null,{"v":0,"d":"0%"},{"$nulls":3},"√","Local Authority | Local Partner"]
[null,49,"Humman Al-Jabal Well and Spring Project","Solar-powered pumping unit.\n\nWater reservoir.\n\nPipes.","providing safe water","Water reaches 1,800 people","√",null,"Sama' District",{"v":80000,"d":"80,000"},null,null,"√","√",null,{"v":0,"d":"0%"},{"$nulls":3},"√","Local Authority | Local Partner"]
[null,50,"Al-Ghuwayl Spring Water Project - Al-Salaf Al-Jabal","Water reservoir.\n\nPipes.","providing safe water","Water access for 1,600 people",null,"√","Sama' District",{"v":76000,"d":"76,000"},null,null,"√","√",null,{"v":0,"d":"0%"},{"$nulls":3},"√","Local Authority | Local Partner"]
[null,51,"Al-Selw Main Water Project","2 Wells.\n\nSolar-powered pumping units.\n\nPipes.\n\nPump rooms.","providing safe water","Water access for 25,000 people","√",null,"Al-Silw",{"v":450000,"d":"450,000"},null,null,"√","√",null,{"v":0,"d":"0%"},{"$nulls":3},"√","Local Authority | Local Partner"]
[null,52,"Al-Ashoob Water Project","Well.\n\nSolar-powered pumping units.\n\nPipes.\n\nWater reservoir.\n\nPump rooms.","providing safe water","Water access for 5,000 people","√",null,"Al-Silw",{"v":230000,"d":"230,000"},null,null,"√","√",null,{"v":0,"d":"0%"},{"$nulls":3},"√","Local Authority | Local Partner"]
[null,53,"Al-Awdiya Water Project","Well.\n\nSolar-powered pumping units.\n\nPipes.\n\nWater reservoir.\n\nPump rooms.","providing safe water","Water access for 3,000 people","√",null,"Al-Silw",{"v":20000,"d":"20,000"},null,null,"√","√",null,{"v":0,"d":"0%"},{"$nulls":3},"√","Local Authority | Local Partner"]
[null,54,"Al-Qutain Water Project","2 Wells.\n\nSolar-powered pumping units.\n\nPipes.\n\nPump rooms.","providing safe water","Water access for 20,000 people",null,"√","Al-Silw",{"v":380000,"d":"380,000"},null,null,"√","√",null,{"v":0,"d":"0%"},{"$nulls":3},"√","Local Authority | Local Partner"]
[null,55,"Al-Howaidh Water Project","Water reservoir.\n\nPipes.","providing safe water","Water access for 3,000 people","√",null,"Al-Silw",{"v":70000,"d":"70,000"},null,null,"√","√",null,{"v":0,"d":"0%"},{"$nulls":3},"√","Local Authority | Local Partner"]
[null,56,"Al-Hariqiya Water Project","Well.\n\nSolar-powered pumping units.\n\nPipes.\n\nWater reservoir.\n\nPump rooms.","providing safe water","Water access for 3,800 people",null,"√","Dhubab",{"v":280000,"d":"280,000"},null,null,"√","√",null,{"v":0,"d":"0%"},{"$nulls":3},"√","Local Authority | Local Partner"]
[null,57,"Al-Jadeed Water Project","Well.\n\nSolar-powered pumping units.\n\nPipes.\n\nWater reservoir.\n\nPump rooms.","providing safe water","Water reaches 1,700 people",null,"√","Dhubab",{"v":190000,"d":"190,000"},null,null,"√","√",null,{"v":0,"d":"0%"},{"$nulls":3},"KFW","IOM"]
[null,58,"Al-Ma'ania Water Project","Well.\n\nSolar-powered pumping units.\n\nPipes.\n\nWater reservoir.\n\nPump rooms.","providing safe water","Water access for 1,100 people","√",null,"Dhubab",{"v":120000,"d":"120,000"},null,null,"√","√",null,{"v":0,"d":"0%"},{"$nulls":3},"√","Local Authority | Local Partner"]
[null,59,"Al-Hajaria Water Project","Well.\n\nSolar-powered pumping units.\n\nPipes.\n\nWater reservoir.\n\nPump rooms.","providing safe water","Water reaches 1,700 people","√",null,"Dhubab",{"v":180000,"d":"180,000"},null,null,"√","√",null,{"v":0,"d":"0%"},{"$nulls":3},"√","Local Authority | Local Partner"]
[null,60,"Sibin Water Project","Solar-powered pumping unit.\n\nWater reservoir.\n\nPipes.","providing safe water","Water access for 6,000 people",null,"√","Al-Mawasit",{"v":200000,"d":"200,000"},null,"√",null,"√",null,{"v":0,"d":"0%"},{"$nulls":3},"√","Local Authority | Local Partner"]
[null,61,"Implementation of Rainwater Harvesting Tank","2 Rainwater harvesting tanks, Mashra'ah","providing safe water","Water access for 6,400 people","√",null,"Mashra'ah Wa Hadnan District",{"v":160000,"d":"160,000"},null,null,"√","√",null,{"v":0,"d":"0%"},{"$nulls":3},"KFW","IOM"]
[null,62,"Kharisha Rainwater Harvesting Tank ","Rainwater harvesting tank.","providing safe water","Water access for 2,600 people",null,"√","Al-Missrakh",{"v":80000,"d":"80,000"},null,null,"√","√",null,{"v":0,"d":"0%"},{"$nulls":3},"√","Local Authority | Local Partner"]
[null,63,"Jarah Rainwater Harvesting Tank ","Rainwater harvesting tank.","providing safe water","Water reaches 1,800 people","√",null,"Al-Missrakh",{"v":70000,"d":"70,000"},null,null,"√","√",null,{"v":0,"d":"0%"},{"$nulls":3},"√","Local Authority | Local Partner"]
[null,64,"Waraqah Rainwater Harvesting Tank Project","Rainwater harvesting tank.","providing safe water","Water access for 1,100 people",null,"√","Al-Missrakh",{"v":90000,"d":"90,000"},null,null,"√","√",null,{"v":0,"d":"0%"},{"$nulls":3},"√","Local Authority | Local Partner"]
[null,65,"Al-Adhhoor Water Project","Solar-powered pumping unit.\n\nWater reservoir.\n\nPipes.","providing safe water","Water access for 3,200 people",null,"√","Al-Missrakh",{"v":190000,"d":"190,000"},"√",null,null,"√",null,{"v":0,"d":"0%"},{"$nulls":3},"√","Local Authority | Local Partner"]
[null,66,"Complete the rehabilitation of Al-Fawade Water Project ","Water reservoir.\n\nPipes.","providing safe water","Water access for 5,400 people","√",null,"Al-Mawasit",{"v":207427,"d":"207,427"},"√",null,null,"√",null,{"v":0,"d":"0%"},{"$nulls":3},"√","Local Authority | Local Partner"]
[null,67,"Complete the rehabilitation of Wadi Arafa Water Project ","Pipes.\n\nSolar-powered pumping unit.","providing safe water","Water access for 6,773 people","√",null,"Al-Ma'affer",{"v":126910,"d":"126,910"},"√",null,null,"√",null,{"v":0,"d":"0%"},{"$nulls":3},"√","Local Authority | Local Partner"]
[null,68,"Complete the rehabilitation of Al-Shaooba Water Project ","Pipes.\n\nWater meters.","providing safe water","Water access for 23,332 people","√",null,"Al-Ma'affer",{"v":208174,"d":"208,174"},null,"√",null,"√",null,{"v":0,"d":"0%"},{"$nulls":3},"√","Local Authority | Local Partner"]
[null,69,"Complete the rehabilitation of Mawza Water Project ","2 Booster wells.\n\n2 Solar-powered pumping units.\n\nPipes.\n\nCollection tank.","providing safe water","Water access for 12,000 people","√",null,"Mowza",{"v":160000,"d":"160,000"},"√",null,null,"√",null,{"v":0,"d":"0%"},{"$nulls":3},"√","Local Authority | Local Partner"]
[null,70,"Complete the rehabilitation of Al-Qaraisha Water Project ","Pipes ","providing safe water","Water access for 7,500 people",null,"√","Ash Shamayatayn District",{"v":103510,"d":"103,510"},"√",null,null,"√",null,{"v":0,"d":"0%"},{"$nulls":3},"√","Local Authority | Local Partner"]
[null,71,"Complete the rehabilitation of Al-Sinah Water Project ","Solar-powered pumping unit.\n\nWater reservoir.\n\nPipes.","providing safe water","Water access for 22,395 people","√",null,"Al-Ma'affer",{"v":236000,"d":"236,000"},"√",null,null,"√",null,{"v":0,"d":"0%"},{"$nulls":3},"√","Local Authority | Local Partner"]
[null,72,"Complete the rehabilitation of Al-Shamayah Al-Sharqiyah Water Project ","2 Wells.\n\nSolar-powered pumping units.\n\nPipes.\n\nPump rooms.","providing safe water","Water access for 2,248 people","√",null,"Ash Shamayatayn District",{"v":121822,"d":"121,822"},null,"√",null,"√",null,{"v":0,"d":"0%"},{"$nulls":3},"√","Local Authority | Local Partner"]
[null,73,"Complete the rehabilitation of Al-Sawa Water Project ","Pipes","providing safe water","Water access for 35,584 people","√",null,"Al-Ma'affer",{"v":513038,"d":"513,038"},"√",null,null,"√",null,{"v":0,"d":"0%"},{"$nulls":3},"√","Local Authority | Local Partner"]
[null,74,"Complete the rehabilitation of Samadan Water Project ","Solar-powered pumping unit.\n\nWater reservoir.\n\nPipes and room pump","providing safe water","Water access for 14,382 people","√",null,"Ash Shamayatayn District",{"v":237985,"d":"237,985"},null,"√",null,"√",null,{"v":0,"d":"0%"},{"$nulls":3},"√","Local Authority | Local Partner"]
[null,75,"Complete the rehabilitation of Al-Akhmoor Al-Khareg Water Project ","Well.\n\nSolar-powered pumping unit.\n\nPipes.","providing safe water","Water access for 4,500 people","√",null,"Al-Mawasit",{"v":239000,"d":"239,000"},null,"√",null,"√",null,{"v":0,"d":"0%"},{"$nulls":3},"√","Local Authority | Local Partner"]
[null,76,"Complete the rehabilitation of Al-Nashama Water Project ","Pipes.\n\nWater reservoir.\n\nPower generator.","providing safe water","Water access for 16,549 people",null,"√","Al-Ma'affer",{"v":220000,"d":"220,000"},null,"√",null,"√",null,{"v":0,"d":"0%"},{"$nulls":3},"√","Local Authority | Local Partner"]
[null,77,"Complete the rehabilitation of Al-Aswadi Water Project ","Pipes","providing safe water","Water access for 16,800 people",null,"√","Al-Mawasit",{"v":400000,"d":"400,000"},null,"√",null,"√",null,{"v":0,"d":"0%"},{"$nulls":3},"√","Local Authority | Local Partner"]
[null,78,"Al-Thawra Water Project ","Artesian well.\n\nSolar-powered pumping unit.\n\nPipes.\n\nRehabilitation of the existing reservoir.\n\nPump room.","providing safe water","Water access for 4,918 people",null,"√","Ash Shamayatayn District",{"v":340000,"d":"340,000"},null,"√",null,"√",null,{"v":0,"d":"0%"},{"$nulls":3},"√","Local Authority | Local Partner"]
[null,79,"Himyar Water Project ","Solar-powered pumping unit.\n\nPipes.\n\nNew concrete reservoir.\n\nRehabilitation of the existing reservoir.","providing safe water","Water access for 4,434 people",null,"√","Maqbana",{"v":350000,"d":"350,000"},null,"√",null,"√",null,{"v":0,"d":"0%"},{"$nulls":3},"√","Local Authority | Local Partner"]
[null,80,"Al-Sowaiqa Water Project ","Solar-powered pumping unit.\n\nPipes.\n\nNew concrete reservoir.\n\nRehabilitation of the existing reservoir.","providing safe water","Water access for 6,870 people",null,"√","Ash Shamayatayn District",{"v":180000,"d":"180,000"},null,"√",null,"√",null,{"v":0,"d":"0%"},{"$nulls":3},"√","Local Authority | Local Partner"]
[null,81,"Shwhat Water Project ","Solar-powered pumping unit.","providing safe water","Access to safe water for 6,500 residents",null,"√","Ash Shamayatayn District",{"v":320000,"d":"320,000"},{"$nulls":3},"√",null,{"v":0,"d":"0%"},{"$nulls":3},"√","Local Authority | Local Partner"]
[null,82,"Heeb Asabeh Water Project ","Pipes.\n\nSolar-powered pumping unit.","providing safe water","Water access for 5,400 people",null,"√","Al-Mawasit",{"v":173541,"d":"173,541"},null,"√",null,"√",null,{"v":0,"d":"0%"},{"$nulls":3},"√","Local Authority | Local Partner"]
[null,83,"Doba Al-Khareg Water Project ","Solar-powered pumping unit.\n\nPipes.","providing safe water","Water access for 22,000 people",null,"√","Ash Shamayatayn District",{"v":670000,"d":"670,000"},null,"√",null,"√",null,{"v":0,"d":"0%"},{"$nulls":3},"√","Local Authority | Local Partner"]
[null,84,"Rehabilitation of 5 Water Supply Project in Mawza District","Rehabilitation of existing pumping units.\n\nNew pumping unit.\n\nElevated water tanks (Tower tanks).\n\nPipes.\n\nWater treatment plants.","providing safe water","Water access for 6,000 people",null,"√","Mowza",{"v":640001,"d":"640,001"},null,"√",null,"√",null,{"v":0,"d":"0%"},{"$nulls":3},"√","Local Authority | Local Partner"]
[null,85,"Rehabilitation of Al-Miqab Water - Jabal Saber","Solar-powered pumping unit.\n\nPipes.\n\nWater distribution points (Water Tap Stands).","providing safe water","Solar powered pumping unit - pipes - water distribution points ","√",null,"Saber Al-Mawadim",null,"√",null,null,"√",null,{"v":0,"d":"0%"},{"$nulls":3},"KFW","IOM"]
[null,86,"Rehabilitation of Sharjab Water Supply Project","Solar-powered pumping unit.\n\nWater network (Distribution & Transmission).","providing safe water","Solar powered pumping unit - water network ","√",null,"Sharjab- Ash Shamayatayn ",null,"√",null,null,"√",null,{"v":0,"d":"0%"},{"$nulls":3},"KFW","IOM"]
[null,87,"Rehabilitation of Al-Sawri Water Supply Project","Rehabilitation of Al-Souri spring source (Ghail).\n\n2 Ground concrete reservoirs (Capacity: 40m³ each).\n\n3 Collection tanks.\n\nRehabilitation of the gravity-fed water network (Liquefaction network).","providing safe water","Rehabilitation of the Ghail Al-Sourisource \n2 collection tanks \nRehabilitation of the liquefaction network","√",null,"Saber Al-Mawadim",{"v":73973,"d":"73,973"},null,"√",null,"√",null,{"v":0,"d":"0%"},{"$nulls":3},"KFW","IOM"]
[null,88,"Rehabilitation of Al-Qhurafi Water Supply Project","Installation of a solar-powered pumping unit.\n\nInstallation of a rising main (Pumping line) to the collection tank.\n\nWater distribution points (Tap stands).\n\nRehabilitation of existing distribution lines.","providing safe water","  Solar powered pumping unit - pumping line - water distribution points - rehabilitation of existing water distribution lines.","√",null,"Al-Mokha",null,"√",null,null,"√",null,{"v":0,"d":"0%"},{"$nulls":3},"KFW","IOM"]
[null,89,"Rehabilitation of Al-Ma'amera Water Supply Project","Rehabilitation of the existing well.\n\nInstallation of a solar-powered pumping unit.\n\nRising main (Pumping line).\n\nNew water lines and distribution points.","providing safe water","Rehabilitation of the existing well - solar-powered pumping unit, - pumping line - new water lines and distribution points","√",null,"Al-Mokha",null,"√",null,null,"√",null,{"v":0,"d":"0%"},{"$nulls":3},"KFW","IOM"]
[null,90,"Rehabilitation of Dar Al-Qamoos & Al-Mahalis Water Project (Al-Swaihrah Village – Barashah Sub-district)","Rehabilitation of the solar-powered pumping system, including the pump and solar panels, along with the rehabilitation and expansion of the water network to neighboring sites and the construction of water distribution points in Maqbanah District, Taiz Governorate","Providing a sustainable and safe water supply to the residents of Al-Swaihrah  and  Al-Mahalis villages by rehabilitating the Water Network Project using solar-powered pumping systems, thereby contributing to public health improvement and reducing the daily burden on families, through:\nRestoring the water system's high-efficiency operation to meet daily residential needs.\nIncreasing the number of families benefiting from clean and accessible water on a regular basis.\nReducing reliance on conventional fuels through solar energy usage, thereby decreasing operational costs.\nPromoting community participation and awareness regarding Water Network Project preservation and maintenance to ensure sustainability.","% of families to whom water reached regularly after the project's rehabilitation\nThe amount of water produced daily in cubic meters compared to the design capacity of the project\n# days of water outage during a specific period (the less outage, the better)\nEnergy saving ratio compared to the previous system (fuel consumption versus solar energy use)","√",null,"Dar Al-Qamous and Al-Mahalis (Al-Suwaihirah Village -Barashah Subdistrict), Maqbana",{"v":25000,"d":"25,000"},null,"√",null,"√",null,{"v":0,"d":"0%"},{"$nulls":3},"YHF","GWQ"]
[null,91,"Rehabilitation of Al-Salb Water Supply Project","1. Construction/Rehabilitation of a solar-powered water supply system.\n2. Installation of a water pumping and storage system.\n3. Improving safe and sustainable access to drinking water for the target community.","Ensuring the provision of safe and sustainable drinking water to beneficiary families.\nReduce dependence on unsafe or expensive water sources.\nStrengthening community resilience through sustainable solutions powered by renewable energy.","# of solar water supply systems constructed or rehabilitated.\n# of households/individuals with improved access to safe drinking water.\n% Low failure rate or operating costs compared to traditional systems.","√",null,"Al-Wazi'iyah District",{"v":39000,"d":"39,000"},"√",null,null,"√",null,{"v":0,"d":"0%"},{"$nulls":3},"HIP- ECHO","GWQ"]
[null,92,"Rehabilitation of Al-Wadheefa Water Supply Project","1. Implementation of an integrated solar-powered water pumping system.\n2. Improvement of the distribution network connected to the water source.\n3. Supporting the operational sustainability of the system through low-cost solutions.","Improving the continuity of water services in the target area.\nPromoting the use of clean energy in the water sector.\nReducing the economic burden on local communities.","# of beneficiaries of the service on a regular basis.\n# of hours of water availability per day after project implementation.","√",null,"Al-Wazi'iyah District",{"v":50000,"d":"50,000"},null,"√",null,"√",null,{"v":0,"d":"0%"},{"$nulls":3},"HIP- ECHO","GWQ"]
[null,93,"Rehabilitation of Al-Hanishya Water Supply Project","1. Construction or rehabilitation of a solar-powered water pumping system.\n2. Installation of solar panels, pumping equipment, and storage facilities.\n3. Connecting the system to the target local community.","Ensuring the provision of safe and sustainable drinking water to beneficiary families.\nReducing health risks associated with the use of unsafe water.\nSupport early recovery and improve living conditions.","# of water systems implemented or eligible.\n% Improved access to safe water.\nReduced community complaints about water scarcity.","√",null,"Al-Wazi'iyah District",{"v":38000,"d":"38,000"},null,"√",null,"√",null,{"v":0,"d":"0%"},{"$nulls":3},"HIP- ECHO","GWQ"]
[null,94,"Water Supply Networks Project – Al-Mujayliyah Water Project","1. Construction or rehabilitation of a water distribution network.\n2. Connecting the network to households or communal collection points.\n3. Improving water transmission efficiency and reducing water loss.","Improving the efficiency and sustainability of water distribution networks.\nReduce the time and effort spent fetching water.\nPromoting equity in water distribution within the community.","Length of implemented or qualified water network.\n# of households connected to the water network.\n% of decrease in water loss in the network.","√",null,"Al-Wazi'iyah District",{"v":26000,"d":"26,000"},null,"√",null,"√",null,{"v":0,"d":"0%"},{"$nulls":3},"HIP- ECHO","GWQ"]
[null,95,"Rehabilitation of Al-Murra'a Al-Ulya Water Source - Mawza, Taiz","1. Implementation of an integrated solar-powered water pumping system.\n2. Improvement of the distribution network connected to the water source.\n3. Supporting the operational sustainability of the system through low-cost solutions.","Ensuring the provision of safe and sustainable drinking water to beneficiary families.\nReducing health risks associated with the use of unsafe water.\nSupport early recovery and improve living conditions.","# of water systems implemented or eligible.\n% Improved access to safe water.\nReduced community complaints about water scarcity.","√",null,"Mawza",{"v":42000,"d":"42,000"},null,"√",null,"√",null,{"v":0,"d":"0%"},{"$nulls":3},"YHF","GWQ"]
["Public Works and Roads"]
[" Integrated Basic and Social Services",1,"Complete the Rehabilitation and Restoration Project for War-Damaged Houses (Partial & Total Damage)","1. Rehabilitation of 4,243 partially damaged houses.\n2. Reconstruction of 600 totally destroyed houses.","Providing a suitable environment for the IDPS to return to their original residence and alleviating the burdens of displacement for them","4243 partially destroyed house\n 600 completely destroyed homes","√","√","Al-Qahirah , Salah, Al-Mudhaffar",{"v":48297509,"d":"48,297,509"},"√",null,null,"√",null,{"v":0,"d":"0%"},{"$nulls":3},"√","Local Authority | Local Partner"]
[null,2,"Restoration and Asphalt Overlaying of Al-Muroor Street (L+R) from Al-Moroor Roundabout, AlHasab to Sinah (opposite the Water Corporation Branch)","Rehabilitation and asphalt overlaying","Rehabilitation of road and streets to facilitate mobility for residents and streamline the flow of commercial goods.","Restoration and addition of an asphalt layer with a length of 1580 m and a width of 22 m","√",null,"Al-Mudhaffar District",{"v":301327,"d":"301,327"},null,"√",null,"√",null,{"v":0,"d":"0%"},{"$nulls":3},"√","Local Authority | Local Partner"]
[null,3,"Restoration and Asphalt Overlaying of Al-Awadhi Street (L+R) from Al-Awadhi Roundabout to Bab Musa Roundabout.","Rehabilitation and asphalt overlaying","Rehabilitation of road and streets to facilitate mobility for residents and streamline the flow of commercial goods.","Restoration and addition of an asphalt layer with a length of 397 and a width of 195  ","√",null,"Al-Mudhaffar District",{"v":85955,"d":"85,955"},null,"√",null,"√",null,{"v":0,"d":"0%"},{"$nulls":3},"√","Local Authority | Local Partner"]
[null,4,"Restoration and Asphalt Overlaying of Bab Musa - Sinah Street (L+R) from Bab Musa Roundabout to Collection Basin- Sinah ","Rehabilitation and asphalt overlaying","Rehabilitation of road and streets to facilitate mobility for residents and streamline the flow of commercial goods."," Restoration and addition of an asphalt layer with a length of 1158 m and a width of 15 m","√",null,"Al-Mudhaffar District",{"v":337424,"d":"337,424"},null,"√",null,"√",null,{"v":0,"d":"0%"},{"$nulls":3},"√","Local Authority | Local Partner"]
[null,5,"Restoration and Asphalt Overlaying of the Street in front of Abdu Saif Market (from Al-Saqr Roundabout to Bir Basha Roundabout) - Both Sides","Rehabilitation and asphalt overlaying","Rehabilitation of road and streets to facilitate mobility for residents and streamline the flow of commercial goods."," Restoration and addition of an asphalt layer 460 m long and 28 m wide  ","√",null,"Al-Mudhaffar District",{"v":277011,"d":"277,011"},null,"√",null,"√",null,{"v":0,"d":"0%"},{"$nulls":3},"√","Local Authority | Local Partner"]
[null,6,"Rehabilitation and Asphalt Overlaying of the Second St. of Al-Daeri(from Wadi Al-Qadhi Roundabout to Al-Shahid Al-Hajari School), (L+R)","Rehabilitation and asphalt overlaying","Rehabilitation of road and streets to facilitate mobility for residents and streamline the flow of commercial goods."," Restoration and addition of an asphalt layer with a length of 965 m and a width of 225 m","√",null,"Al-Mudhaffar District",{"v":420000,"d":"420,000"},null,"√",null,"√",null,{"v":0,"d":"0%"},{"$nulls":3},"√","Local Authority | Local Partner"]
[null,7,"Rehabilitation and Asphalt Overlaying of the Street from Al-Shahid Al-Hajari school to Osaifrah Roundabout (Agriculture Office) , (L+R).","Rehabilitation and asphalt overlaying","Rehabilitation of road and streets to facilitate mobility for residents and streamline the flow of commercial goods."," Restoration and addition of an asphalt layer with a length of 1785 m and a width of 30 m ","√",null,"Al-Qahirah",{"v":780000,"d":"780,000"},null,"√",null,"√",null,{"v":0,"d":"0%"},{"$nulls":3},"√","Local Authority | Local Partner"]
[null,8,"Restoration and Asphalt Overlaying of Al-Masbah Street( The A part of Al-Masbah Roundabout to Al-Yousifi Fridge)","Rehabilitation and asphalt overlaying","Rehabilitation of road and streets to facilitate mobility for residents and streamline the flow of commercial goods.","Restoration and addition of an asphalt layer 633 m long and 8 m wide","√",null,"Al-Qahirah",{"v":74877,"d":"74,877"},null,"√",null,"√",null,{"v":0,"d":"0%"},{"$nulls":3},"√","Local Authority | Local Partner"]
[null,9,"Restoration and Asphalt Overlaying of Al-Masbah Street (The Part B of Al-Yousifi fridge passing to Al-Wahda School to Wadi Al-Qadhi Roundabout ( The second street of Al-Daeri )","Rehabilitation and asphalt overlaying","Rehabilitation of road and streets to facilitate mobility for residents and streamline the flow of commercial goods."," Restoration and addition of an asphalt layer 858 m long and 16 m wide ","√",null,"Al-Qahirah",{"v":158847,"d":"158,847"},null,"√",null,"√",null,{"v":0,"d":"0%"},{"$nulls":3},"√","Local Authority | Local Partner"]
[null,10,"Restoration and Asphalt Overlaying of the Parallel Street to Jamal Street (passing Ne’ma Rassam School to Mohammed Ali Osman Street Intersection).","Rehabilitation and asphalt overlaying","Rehabilitation of road and streets to facilitate mobility for residents and streamline the flow of commercial goods."," Restoration and addition of an asphalt layer 551 m long and 10 m wide","√",null,"Al-Mudhaffar District",{"v":60790,"d":"60,790"},null,"√",null,"√",null,{"v":0,"d":"0%"},{"$nulls":3},"√","Local Authority | Local Partner"]
[null,11,"Restoration and Asphalt Overlay for Al-Tahrir  AlAsfal Street (L + R) (The part B of the street): From Jamal Street Intersection to Sinan Roundabout.","Rehabilitation and asphalt overlaying","Rehabilitation of road and streets to facilitate mobility for residents and streamline the flow of commercial goods."," Restoration and addition of an asphalt layer with a length of 1397 m and a width of 18 m  ","√",null,"Al-Qahirah",{"v":297029,"d":"297,029"},null,"√",null,"√",null,{"v":0,"d":"0%"},{"$nulls":3},"√","Local Authority | Local Partner"]
[null,12,"Restoration and Asphalt Overlay of Al-Saeed Street (Connecting Al-Tahrir Alasfal St. and the Second street of Al-Daeri) - Next to the former Restaurant of Al-Rasni ","Rehabilitation and asphalt overlaying","Rehabilitation of road and streets to facilitate mobility for residents and streamline the flow of commercial goods."," Restoration and addition of an asphalt layer 941 m long and 30 m wide  ","√",null,"Al-Qahirah",{"v":1197720,"d":"1,197,720"},null,"√",null,"√",null,{"v":0,"d":"0%"},{"$nulls":3},"√","Local Authority | Local Partner"]
[null,13,"Renovation and Asphalt Overlay of Al-Jahmaliyah - Al-Askari Street (From Al-Jahmaliyah R/A to  Al-Askari Hospital)","Rehabilitation and asphalt overlaying","Rehabilitation of road and streets to facilitate mobility for residents and streamline the flow of commercial goods."," Restoration and addition of an asphalt layer 800 m long and 10 m wide  ","√",null,"Salah",{"v":112151,"d":"112,151"},null,"√",null,"√",null,{"v":0,"d":"0%"},{"$nulls":3},"√","Local Authority | Local Partner"]
[null,14,"Renovation and Asphalt Overlay of Jamal Street (L+R), Part A of Al-Qubbah R/A to Al-Awadhi R/A)","Rehabilitation and asphalt overlaying","Rehabilitation of road and streets to facilitate mobility for residents and streamline the flow of commercial goods."," Restoration and addition of an asphalt layer 910 m long and 24 m wide","√",null,"Al-Mudhaffar District ــ Al-Qahirah",{"v":295409,"d":"295,409"},null,"√",null,"√",null,{"v":0,"d":"0%"},{"$nulls":3},"√","Local Authority | Local Partner"]
[null,15,"Renovation and Asphalt Overlay of Jamal Street (L+R), Part B of Al-Awadhi R/A to Al-Ekhwa R/A","Rehabilitation and asphalt overlaying","Rehabilitation of road and streets to facilitate mobility for residents and streamline the flow of commercial goods.","Restoration and addition of an asphalt layer 1000 m long and 24 m wide ","√",null,"Al-Mudhaffar District ــ Al-Qahirah",{"v":300202,"d":"300,202"},null,"√",null,"√",null,{"v":0,"d":"0%"},{"$nulls":3},"√","Local Authority | Local Partner"]
[null,16,"Renovation and Asphalt Overlay of the Street (From Sinan R/A to Zaid Al-Mowshaki R/A)","Rehabilitation and asphalt overlaying","Rehabilitation of road and streets to facilitate mobility for residents and streamline the flow of commercial goods."," Restoration and addition of an asphalt layer 1200 m long and 24 m wide","√",null,"Salah",{"v":324407,"d":"324,407"},null,"√",null,"√",null,{"v":0,"d":"0%"},{"$nulls":3},"√","Local Authority | Local Partner"]
[null,17,"Renovation and Asphalt Overlay of the Southern Road of Al-Daeri  (From Hawdh Sinah, passing through Al-Moa'asil R/A, to Al-Mujaliyah/Al-Shaybani Mosque","Rehabilitation and asphalt overlaying","Rehabilitation of road and streets to facilitate mobility for residents and streamline the flow of commercial goods."," Restoration and addition of an asphalt layer with a length of 2974 m and a width of 14 m","√",null,"Al-Mudhaffar District ــ Al-Qahirah , Salah ــ",{"v":56550,"d":"56,550"},null,"√",null,"√",null,{"v":0,"d":"0%"},{"$nulls":3},"√","Local Authority | Local Partner"]
[null,18,"Renovation and Asphalt Overlay of the Street (From the Swedish Hospital R/A, passing to Taiz Police Security Building, to Al-Jahmaliyah R/A)","Rehabilitation and asphalt overlaying","Rehabilitation of road and streets to facilitate mobility for residents and streamline the flow of commercial goods."," Restoration and addition of an asphalt layer 578 m long and 8 m wide","√",null,"Salah",{"v":171100,"d":"171,100"},null,null,"√","√",null,{"v":0,"d":"0%"},{"$nulls":3},"√","Local Authority | Local Partner"]
[null,19,"Renovation and Asphalt Overlay of Al-Huraish Street (From Sinan R/A to Al-Sha'ab School)","Rehabilitation and asphalt overlaying","Rehabilitation of road and streets to facilitate mobility for residents and streamline the flow of commercial goods."," Restoration and addition of an asphalt layer 1200 m long and 14 m wide","√",null,"Al-Qahirah , Salah",{"v":212142,"d":"212,142"},"√",null,null,"√",null,{"v":0,"d":"0%"},{"$nulls":3},"√","Local Authority | Local Partner"]
[null,20,"Renovation and Asphalt Overlay of Jamal Street (L+R) (From Al-Ekhwa R/A to the entrance of Al-Huraish Street)","Rehabilitation and asphalt overlaying","Rehabilitation of road and streets to facilitate mobility for residents and streamline the flow of commercial goods."," Restoration and addition of an asphalt layer 450 m long and 18 m wide","√",null,"Al-Qahirah ",{"v":49283,"d":"49,283"},null,"√",null,"√",null,{"v":0,"d":"0%"},{"$nulls":3},"√","Local Authority | Local Partner"]
[null,21,"Renovation and Asphalt Overlay of Al-Rawdah Street (From Ossifera/Agriculture R/A to Al-Mowshaki R/A)","Rehabilitation and asphalt overlaying","Rehabilitation of road and streets to facilitate mobility for residents and streamline the flow of commercial goods."," Restoration and addition of an asphalt layer with a length of 1146 m and a width of 30 m","√",null,"Al-Qahirah ",{"v":321791,"d":"321,791"},"√",null,null,"√",null,{"v":0,"d":"0%"},{"$nulls":3},"√","Local Authority | Local Partner"]
[null,22,"Renovation and Asphalt Overlay of Highland Park - Al-Zunqal Street (Linking Al-Hasab Street/Al-Ghannami Building and Al-Arba'een Street/Al-Zunqal Market R/A)","Rehabilitation and asphalt overlaying","Rehabilitation of road and streets to facilitate mobility for residents and streamline the flow of commercial goods."," Restoration and addition of an asphalt layer 220 m long and 14 m wide","√",null,"Al-Mudhaffar District",{"v":61219,"d":"61,219"},null,"√",null,"√",null,{"v":0,"d":"0%"},{"$nulls":3},"√","Local Authority | Local Partner"]
[null,23,"Renovation and Asphalt Overlay of the Road from Al-Zunqal R/A to Al-Moroor R/A","Rehabilitation and asphalt overlaying","Rehabilitation of road and streets to facilitate mobility for residents and streamline the flow of commercial goods."," Restoration and addition of an asphalt layer with a length of 1126 m and a width of 30 m","√",null,"Al-Mudhaffar District",{"v":912060,"d":"912,060"},null,null,"√","√",null,{"v":0,"d":"0%"},{"$nulls":3},"√","Local Authority | Local Partner"]
[null,24,"Renovation and Asphalt Overlay of the Road from Al-Moroor R/A to Qubbat Al-Ma'sour R/A (Opposite Al-Bayhani Mosque)","Rehabilitation and asphalt overlaying","Rehabilitation of road and streets to facilitate mobility for residents and streamline the flow of commercial goods."," Restoration and addition of an asphalt layer 934 m long and 14 m wide","√",null,"Al-Mudhaffar District",{"v":51464,"d":"51,464"},null,"√",null,"√",null,{"v":0,"d":"0%"},{"$nulls":3},"√","Local Authority | Local Partner"]
[null,25,"Renovation and Asphalt Overlay of the Road from Bir Basha R/A to Al-Zunqal R/A","Rehabilitation and asphalt overlaying","Rehabilitation of road and streets to facilitate mobility for residents and streamline the flow of commercial goods.","Restoration and addition of an asphalt layer with a length of 1145 m and a width of 24 m ","√",null,"Al-Mudhaffar District",{"v":742020,"d":"742,020"},null,"√",null,"√",null,{"v":0,"d":"0%"},{"$nulls":3},"√","Local Authority | Local Partner"]
[null,26,"Renovation and Asphalt Overlay of the Road from Qubbat Al-Ma'sour R/A to Bab Musa R/A","Rehabilitation and asphalt overlaying","Rehabilitation of road and streets to facilitate mobility for residents and streamline the flow of commercial goods."," Restoration and addition of an asphalt layer 934 m long and 14 m wide","√",null,"Al-Mudhaffar District",{"v":353106,"d":"353,106"},null,"√",null,"√",null,{"v":0,"d":"0%"},{"$nulls":3},"√","Local Authority | Local Partner"]
[null,27,"Renovation and Asphalt Overlay of the Road from Bab Musa to Nasser School R/A","Rehabilitation and asphalt overlaying","Rehabilitation of road and streets to facilitate mobility for residents and streamline the flow of commercial goods."," Restoration and addition of an asphalt layer 670 m long and 10 m wide","√",null,"Al-Mudhaffar District",{"v":248000,"d":"248,000"},null,"√",null,"√",null,{"v":0,"d":"0%"},{"$nulls":3},"√","Local Authority | Local Partner"]
[null,28,"Renovation and Asphalt Overlay of Aqabat Mufareh Street (From Nasser school R/A, passing through Wadi Al-Madam R/A - Aqabat Mufareh, to the west of Al-Gomhouri Hospital)","Rehabilitation and asphalt overlaying","Rehabilitation of road and streets to facilitate mobility for residents and streamline the flow of commercial goods."," Restoration and addition of an asphalt layer 741 m long and 10 m wide","√",null,"Al-Qahirah ",{"v":19065,"d":"19,065"},null,"√",null,"√",null,{"v":0,"d":"0%"},{"$nulls":3},"√","Local Authority | Local Partner"]
[null,29,"Renovation and Asphalt Overlay of Al-Gomhouri Street (From Al-Gomhouri Hospital down to Wadi Al-Madam R/A)","Rehabilitation and asphalt overlaying","Rehabilitation of road and streets to facilitate mobility for residents and streamline the flow of commercial goods."," Restoration and addition of an asphalt layer 582 m long and 8 m wide","√",null,"Al-Qahirah ",{"v":36958,"d":"36,958"},null,"√",null,"√",null,{"v":0,"d":"0%"},{"$nulls":3},"√","Local Authority | Local Partner"]
[null,30,"Renovation and Asphalt Overlay of the Road from Nasser Complex R/A to the Swedish Hospital R/A","Rehabilitation and asphalt overlaying","Rehabilitation of road and streets to facilitate mobility for residents and streamline the flow of commercial goods."," Restoration and addition of an asphalt layer with a length of 1058 m and a width of 12 m  ","√",null,"Al-Qahirah ",{"v":41958,"d":"41,958"},null,"√",null,"√",null,{"v":0,"d":"0%"},{"$nulls":3},"√","Local Authority | Local Partner"]
[null,31,"Renovation and Asphalt Overlay of Mohammed Ali Othman Street (From Al-Masbah R/A to Al-Nusayriyah R/A)","Rehabilitation and asphalt overlaying","Rehabilitation of road and streets to facilitate mobility for residents and streamline the flow of commercial goods."," Restoration and addition of an asphalt layer 170 m long and 20 m wide","√",null,"Al-Mudhaffar District",{"v":41947,"d":"41,947"},null,"√",null,"√",null,{"v":0,"d":"0%"},{"$nulls":3},"√","Local Authority | Local Partner"]
[null,32,"Al-Thalatheen Street (30m Street)","Rehabilitation and asphalt overlaying","Rehabilitation of road and streets to facilitate mobility for residents and streamline the flow of commercial goods."," Restoration and addition of an asphalt layer 600 m long and 30 m wide","√",null,"At Ta'iziyah",{"v":417000,"d":"417,000"},null,null,"√","√",null,{"v":0,"d":"0%"},{"$nulls":3},"√","Local Authority | Local Partner"]
[null,33,"Mawza Junction Road – Mawza  District Center ","Rehabilitation, maintenance, asphalt overlaying, and maintenance of structural works.","Maintaining road continuity and facilitating transportation "," Maintenance and restoration of the street, 1.4 km long","√",null,"Mowza",{"v":218400,"d":"218,400"},null,"√",null,"√",null,{"v":0,"d":"0%"},{"$nulls":3},"√","Local Authority | Local Partner"]
[null,34,"Renovation, Maintenance, and Rehabilitation of Al-Nashamah – Huban Qadas Road (including Al-Aibah Entrance Road)","Rehabilitation, Maintenance, and Civil Works.","Rehabilitation of road and streets to facilitate mobility for residents and streamline the flow of commercial goods.","  Restoration of a road 31,964 m long and 8 m wide","√",null,"Al-Mawasit",{"v":358694,"d":"358,694"},null,"√",null,"√",null,{"v":0,"d":"0%"},{"$nulls":3},"√","Local Authority | Local Partner"]
[null,35,"Renovation, Maintenance, and Rehabilitation of Huban Qadas – AlSamsarah Road","Rehabilitation, Maintenance, and Civil Works.","Rehabilitation of road and streets to facilitate mobility for residents and streamline the flow of commercial goods."," Restoration of a road 25,000 m long and 8 m wide","√",null,"Al-Mawasit",{"v":578250,"d":"578,250"},null,"√",null,"√",null,{"v":0,"d":"0%"},{"$nulls":3},"√","Local Authority | Local Partner"]
[null,36,"Road Surveying and Rehabilitation of Taluq Road – Mashra'ah Wa Hadnan District","Resurveying and Rehabilitation","Rehabilitation of road and streets to facilitate mobility for residents and streamline the flow of commercial goods.","Rehabilitation and surveying of the road, 4000 m long and 5 m wide","√",null,"Mashra'ah Wa Hadnan",{"v":272000,"d":"272,000"},null,null,"√","√",null,{"v":0,"d":"0%"},{"$nulls":3},"√","Local Authority | Local Partner"]
[null,37,"Completion of Excavation and Asphalt Paving of Al-Daeri Road – Alturbah – Ash-Shamayatayn District","Road Cutting and Asphalting","Rehabilitation of road and streets to facilitate mobility for residents and streamline the flow of commercial goods."," Slit and asphalt, 1700 m long and 24 m wide","√",null,"Ash Shamayatayn",{"v":631579,"d":"631,579"},"√",null,null,"√",null,{"v":0,"d":"0%"},{"$nulls":3},"√","Local Authority | Local Partner"]
[null,38,"Maintenance and Renovation Project of the Asphalt Road: Al- Dhabab – Al-Mun'am","Rehabilitation, Maintenance, and Civil Works.","Rehabilitation of road and streets to facilitate mobility for residents and streamline the flow of commercial goods."," Restoration and maintenance, 12,000 m long and 6 m wide","√",null,"Jabal Habashi",{"v":333098,"d":"333,098"},null,null,"√","√",null,{"v":0,"d":"0%"},{"$nulls":3},"√","Local Authority | Local Partner"]
[null,39,"Road Project from the Eastern Entrance of At-Turbah City to the top of Heijat Al-Abd","Rehabilitation, Maintenance, and Civil Works.","Rehabilitation of road and streets to facilitate mobility for residents and streamline the flow of commercial goods."," Restoration and maintenance, 7000 m long and 7 m wide","√",null,"Ash Shamayatayn",{"v":382000,"d":"382,000"},null,null,"√","√",null,{"v":0,"d":"0%"},{"$nulls":3},"√","Local Authority | Local Partner"]
[null,40,"Main Road of Mashra'ah Wa Hadnan District","Rehabilitation, Maintenance, and Civil Works.","Rehabilitation of road and streets to facilitate mobility for residents and streamline the flow of commercial goods.","Restoration and maintenance, 10,000 m long and 6 m wide","√",null,"Mashra'ah Wa Hadnan",{"v":450974,"d":"450,974"},"√",null,null,"√",null,{"v":0,"d":"0%"},{"$nulls":3},"√","Local Authority | Local Partner"]
[null,41,"Completion of Al-Misrakh – Anbiyan – Watir – Al-Arous Road","Rehabilitation, Maintenance, and Civil Works.","Rehabilitation of road and streets to facilitate mobility for residents and streamline the flow of commercial goods."," Restoration and maintenance, 10,000 m long and 6 m wide ","√",null,"Al-Missrakh ــ Saber AlMawadim",{"v":870000,"d":"870,000"},"√",null,null,"√",null,{"v":0,"d":"0%"},{"$nulls":3},"√","Local Authority | Local Partner"]
[null,42,"Completion of Al-Misrakh – Dhi Al-Barah – Al-Sarari – Al-Arous Road","Rehabilitation, Maintenance, and Civil Works.","Rehabilitation of road and streets to facilitate mobility for residents and streamline the flow of commercial goods."," Restoration and maintenance, 7500 m long and 7 m wide","√",null,"Al-Missrakh ــ Saber AlMawadim",{"v":1150933,"d":"1,150,933"},null,null,"√","√",null,{"v":0,"d":"0%"},{"$nulls":3},"√","Local Authority | Local Partner"]
[null,43,"Maintenance and Renovation Project of the Asphalt Road: Sabir Al-Mawadim – Al Damghah – Al-Muntazah – Al-Arous and its sub-roads","Rehabilitation, Maintenance, and Civil Works.","Rehabilitation of road and streets to facilitate mobility for residents and streamline the flow of commercial goods."," Restoration and maintenance of a length of 20,000 m and a width of 7 m ","√",null,"Saber AlMawadim",{"v":264000,"d":"264,000"},"√",null,null,"√",null,{"v":0,"d":"0%"},{"$nulls":3},"√","Local Authority | Local Partner"]
[null,44,"Execution of Excavation and Construction Works for Al-Zajrah Flood Channel ","Rehabilitation, Maintenance, and Civil Works.","Rehabilitation of road and streets to facilitate mobility for residents and streamline the flow of commercial goods."," Restoration and maintenance, 3,300 m long and 15 m wide","√",null,"Jabal Habashi",{"v":1176428,"d":"1,176,428"},"√",null,null,"√",null,{"v":0,"d":"0%"},{"$nulls":3},"√","Local Authority | Local Partner"]
[null,45,"Excavation of Al-Marfad – Siy'ah – Al-Abra' Road","1. Completion of road cutting works.\n2. Construction of retaining walls.\n3. Construction of culverts.","Rehabilitation of road and streets to facilitate mobility for residents and streamline the flow of commercial goods.","Number of beneficiaries: 10,000 ","√",null,"Siea'ah - Saber AlMawadim",{"v":160836,"d":"160,836"},null,"√",null,"√",null,{"v":0,"d":"0%"},{"$nulls":3},"√","Local Authority | Local Partner"]
[null,46,"Al-Mukha Junction - AlMukha City Road ","Pothole patching, applying a 3cm thick asphalt overlay, and installation of curbstones.","Rehabilitation of road and streets to facilitate mobility for residents and streamline the flow of commercial goods.","Patching potholes and adding an asphalt layer (4,000m length, 7m width).","√",null,"Al-Mokha",{"v":1601600,"d":"1,601,600"},null,null,"√","√",null,{"v":0,"d":"0%"},{"$nulls":3},"√","Local Authority | Local Partner"]
[null,47,"City Streets Lighting ","Lighting  the Eastern Entrance of Hawdh Al-Ashraf Roundabout to the Palace Gate (200W Solar-powered LED lighting, 10 poles and 75 luminaires)\n\nLighting  the street of the Al-Arba'een (From Wadi Al-Qadi Intersection passing to the of Al-Bi’rara neigborhood to Al-Hasib Intersection: 80W LED lighting, 34 double-arm poles with 86 luminaires, 30 single-arm poles with 30 luminaires)\n\nLighting the street of Al-Saqr Roundabout to Oqqaqa Entrance from the Al-Dhabab side: 80W Solar-powered LED lighting, 32 poles and 64 luminaires)\n\nLighting the street from Wadi Al-Qadi Roundabout to Al-Ikhwa Hotel Roundabout: 80W Solar-powered LED lighting, 95 double-arm poles with 90 luminaires)","Re-Normalizing life of the city streets and mitigating the risks resulting by the prolonged street lighting outages","Lighted streets.","√",null,"Al-Qahirah , Salah, Al-Mudhaffar, Saber AlMawadim",{"v":294000,"d":"294,000"},null,"√",null,"√",null,{"v":0,"d":"0%"},{"$nulls":3},"√","Local Authority | Local Partner"]
[null,48,"Provision of Machinery and Equipment for the Public Works Office","Heavy Machinery & Equipment List:\n(2) 6x4 Dump Trucks: 18-ton capacity\n(2) Dump Trucks: 4-ton capacity\n(1) Komatsu Excavator\n(2) Komatsu Wheel Loaders: Model W320\n(1) Caterpillar Bulldozer: Model D7R\n(1) Mitsubishi Motor Grader\n(2) Mini Skid-Steer Loaders (Bobcat)\nHaulage Vehicles\n(2) Mitsubishi or Hyundai 6x4 Dump Trucks: 18-ton capacity\n(2) Mitsubishi or Hyundai Dump Trucks: 4-ton capacity\n(1) Crawler Excavator with Hydraulic Breaker (Hammer)\n(1) Caterpillar Bulldozer: Model D7R\n(1) Komatsu Motor Grader: Model 705","Preparedness and resource allocation for emergency  excavation","(2) 6x4 Dump Trucks: 18-ton capacity\n(2) Dump Trucks: 4-ton capacity\n(1) Komatsu Excavator\n(2) Komatsu Wheel Loaders: Model W320\n(1) Caterpillar Bulldozer: Model D7R\n(1) Mitsubishi Motor Grader\n(2) Mini Skid-Steer Loaders (Bobcat)\nHaulage Vehicles\n(2) Mitsubishi or Hyundai 6x4 Dump Trucks: 18-ton capacity\n(2) Mitsubishi or Hyundai Dump Trucks: 4-ton capacity\n(1) Crawler Excavator with Hydraulic Breaker (Hammer)\n(1) Caterpillar Bulldozer: Model D7R\n(1) Komatsu Motor Grader: Model 705\"","√",null,"Public Works and Roads Office ",{"v":1327000,"d":"1,327,000"},null,"√",null,"√",null,{"v":0,"d":"0%"},null,"√",null,"√","Local Authority | Local Partner"]
[null,49,"Provision of a Solar Energy System for the Public Works Office","Integrated Solar Power System","Improving the efficiency of institutional performance ","Integrated solar power system.","√",null,"Public Works and Roads Office ",{"v":4000,"d":"4,000"},{"$nulls":3},"√",null,{"v":0,"d":"0%"},{"$nulls":3},"√","Local Authority | Local Partner"]
[null,50,"Renovation and Maintenance of the Public Works Office building ","Building Renovation","Providing an appropriate environment for employees to return to work","Rehabilitated building.","√",null,"Al-Mudhaffar District",{"v":53621,"d":"53,621"},null,"√",null,"√",null,{"v":0,"d":"0%"},null,"√",null,null,"Local Authority | Local Partner"]
[null,51,"Renovation and Maintenance of the lower floor of Public Works Office ","Renovation of the lower floor ","Providing an appropriate environment for employees to return to work","lower floor is rehabilitated ","√",null,"Al-Mudhaffar District",{"v":20566,"d":"20,566"},null,"√",null,"√",null,{"v":0,"d":"0%"},null,"√",null,null,"Local Authority | Local Partner"]
["Energy"]
[" Integrated Basic and Social Services",1,"Rehabilitation and Repair Project of the 13 MW Power Plant","Renovation and Rehabilitation","Restoring electrical power services to liberated districts in the city center and surrounding areas, addressing a seven-year service outage, and ensuring the long-term preservation of the network components.","Raising the electricity coverage rate (government network) to 30%","√",null,"Al-Qahirah District",{"v":7500000,"d":"7,500,000"},null,"√",null,"√",null,{"v":0,"d":"0%"},null,"√","√","√","Local Authority | Local Partner"]
[null,2,"Rehabilitation and Replacement Project of All High and Low Voltage Networks Damaged by the War","Replacement  of All High and Low Voltage Networks ","Restoring electrical power services to liberated districts in the city center and surrounding areas, addressing a seven-year service outage, and ensuring the long-term preservation of the network components.","Raising the electricity coverage rate (government network) to 30%","√",null,"Al-Qahirah District",{"v":9285888,"d":"9,285,888"},null,"√",null,"√",null,{"v":0,"d":"0%"},{"$nulls":3},"Saudi Program for development and reconstruction of Yemen","Local Authority | Local Partner"]
[null,3,"Urgent Assessment Project for the Current Status of the Electricity Sector in Taiz and Developing an Urgent Priority Plan for Sector Reform","Contracting with consultants to work with local authorities on an urgent assessment of the electricity sector and the development of an urgent priority plan.","Assess the current status of the electricity sector and develop an urgent priority plan","1 Need Assessment Report with a priority plan","√",null,"Governorate Center",{"v":50000,"d":"50,000"},null,"√",null,"√",null,{"v":0,"d":"0%"},{"$nulls":3},"International Bank","Local Authority | Local Partner"]
[null,4,"Installation and Operation Project of New 30 MW Heavy Fuel Oil (HFO) Power Generators - Ossaifra","Installation and operation of generators.","Restoring electrical power services to liberated districts in the city center and surrounding areas, addressing a seven-year service outage, and ensuring the long-term preservation of the network components.","Raising the electricity coverage rate (government network) to 30%","√",null,"Al-Qahirah District",{"v":33000000,"d":"33,000,000"},null,"√",null,"√",null,{"v":0,"d":"0%"},{"$nulls":3},"Saudi Program for development and reconstruction of Yemen","Local Authority | Local Partner"]
[null,5,"Rehabilitation Project of the Public Electricity Corporation Buildings Damaged by the War","Renovation and maintenance of buildings + equipment + furnishing.","Restoring electrical power services to liberated districts in the city center and surrounding areas, addressing a seven-year service outage, and ensuring the long-term preservation of the network components.","Raising the electricity coverage rate (government network) to 30%","√",null,"Governorate Center",{"v":2000000,"d":"2,000,000"},null,"√",null,"√",null,{"v":0,"d":"0%"},{"$nulls":3},"√","Local Authority | Local Partner"]
[null,6,"Alternative Energy Source Provision Project (Solar Energy Project) for Districts in the Governorate Center and Sub-Cities","Support for a project to conduct a complete technical and financial feasibility study for the project, provide supplies and equipment according to the technical study, and provide technical support for the alternative energy unit.","Improving access to electricity service for beneficiaries at the governorate level","A report on the technical study and the provision of the necessary equipment according to the study","√",null,"Governorate Center and Sub-District",{"v":1500000,"d":"1,500,000"},null,"√",null,"√",null,{"v":0,"d":"0%"},{"$nulls":3},"  IFC","Local Authority | Local Partner"]
["Cleaning and Improvement Fund"]
[" Integrated Basic and Social Services",1,"Supply of Vehicles and Equipment for the Cleaning and Improvement Fund and its Sectors - Phase II","Provision of necessary machinery and equipment for cleaning works and improvements, such as trucks, containers, and other equipment.\n\nIntroduction of GPS monitoring systems.","Strengthening the Fund's operational capacity and improving the quality of performance in safe waste disposal and public health protection","Providing 10 equipment","√",null,"Taiz Districts (Al-Qahirah District - Salah - Al-Mudhaffar District)",{"v":906863,"d":"906,863"},null,"√",null,"√",null,{"v":0,"d":"0%"},{"$nulls":3},"√","Cleaning and Improvement Fund"]
[null,2,"Construction of Main Landfills and Associated Transfer Stations in Taiz Governorate","Construction of a main waste dump in the districts of Taiz city.\n\nConstruction of a main waste dump in the Ash Shamayatayn district.\n\nConstruction of a transfer dump in the Ossaifrah area.\n\nConstruction of a transfer dump in the Bir Basha area.\n\nProvision of necessary equipment and machinery for waste treatment.","Improving public health and the environment in Taiz Governorate by removing and transporting waste in a sustainable manner.","2 main  waste dump \n2 transfer dump\nProvides waste treatment machines and equipment","√",null,"Al-Mudhaffar District- Al-Qahirah District - Salah - Saber AlMawadim - Almissrakh - Al-Ma'affer -  Jabal Habashi - Al-shimayatain - Al-Mokha",{"v":1801680,"d":"1,801,680"},null,"√",null,"√",null,{"v":0,"d":"0%"},null,null,"HDP","Saudi Program for development and reconstruction of Yemen","Local Council of the Governorate\n\nCleaning and Improvement Fund\n\nContracting Company"]
[null,3,"Recycling of Paper and Cardboard Waste, and Developing an Emergency Plan for Leachate Treatment and Removal from the Landfill","Awareness, waste collection, waste sorting, recycling, and marketing.","Protecting the environment by reducing and utilizing waste and preserving natural resources to achieve public health protection","3 equipment + 100 machines","√",null,"Taiz Districts (Al-Qahirah District - Salah - Al-Mudhaffar District)",{"v":652000,"d":"652,000"},null,"√",null,"√",null,{"v":0,"d":"0%"},{"$nulls":3},"√","Cleaning and Improvement Fund"]
[null,4,"Supply of (930) Waste Containers (1m³ capacity)","Provision of 930 waste barrels (1 cubic meter capacity) for distribution near sedimentation basins, sewage streams, and various collection points in the city streets and districts.","Improving the quality of services provided in the field of hygiene and improvement, and enhancing the operational capacity of the Cleaning and Improvement Fund in the field of collecting, transporting and disposing of waste to prevent the spread of diseases and epidemics.","Provision of 930 waste barrels","√",null,"Taiz Districts (Al-Qahirah District - Salah - Al-Mudhaffar District)",{"v":390600,"d":"390,600"},null,"√",null,"√",null,{"v":0,"d":"0%"},{"$nulls":3},"√","Cleaning and Improvement Fund"]
[null,5,"Renovation of Agricultural Basins in City Streets, Landscaping, and Implementing Improvement Works","Renovation and renewal of agricultural basins in the streets of Taiz city.\n\nPlanting trees in the streets and enhancing the city's aesthetic value.","Strengthening and showcasing the city's beauty to create an environment that contributes to alleviating the suffering of citizens affected by the conflict","Planting 5,400 trees and restoring ponds","√",null,"Taiz Districts (Al-Qahirah District - Salah - Al-Mudhaffar District)",{"v":401221,"d":"401,221"},null,"√",null,"√",null,{"v":0,"d":"0%"},{"$nulls":3},"√","Cleaning and Improvement Fund"]
[null,6,"Emergency Intervention for Solid Waste Management","Waste collection from IDP camps and host communities - transporting waste to the specified site - unloading - spreading waste in loose layers (0.5 meters thick) - compaction - daily covering (15-20 cm of native soil) - spraying and pest control.","Implement emergency removal of accumulated waste and establish temporary and safe disposal operations - reduce the risks of disease vectors and smoke ","Solid waste was disposed of in an environmentally and healthily safe manner",null,"√","Ash Shamayatayn - Al Turbah",{"v":45000,"d":"45,000"},null,"√",null,"√",null,{"v":0,"d":"0%"},null,"√","√","√","Local Authority | Local Partner"]
[null,7,"Construction of a Waste Recycling Factory","Studies and design - facility construction and outfitting - supply and installation of equipment - staff training.","Reducing the environmental and health impacts of waste, which contributes to improving public cleanness, protecting the environment, and strengthening the local economy by reusing resources and providing sustainable job opportunities","One Waste recycling plant is ready","√",null,"Taiz Governorate",null,"√",{"$nulls":4},{"v":0,"d":"0%"},null,null,"√","√","Local Authority | Local Partner"]
["General Education   "]
[" Integrated Basic and Social Services",1,"School Book Printer ","Provide a Printer to print the School Books ","Improving the educational process by providing school books to all students","A Book printer","√",null,"Governorate Center",{"v":3200000,"d":"3,200,000"},null,"√",null,"√",null,{"v":0,"d":"0%"},{"$nulls":3},"√","Local Authority | Local Partner"]
[null,2,"School Bags","Provide 262544 school bag","Improving the educational process","262544 bags","√",null,"several distircts ",{"v":2625440,"d":"2,625,440"},null,"√",null,"√",null,{"v":0,"d":"0%"},{"$nulls":3},"√","Local Authority | Local Partner"]
[null,3,"Supply and Installation of Double Chairs","  Provide 17360  Double Chairs","Improving the educational process","17,360 double seats","√",null,"several distircts ",{"v":1388800,"d":"1,388,800"},null,"√",null,"√",null,{"v":0,"d":"0%"},{"$nulls":3},"√","Local Authority | Local Partner"]
[null,4,"Solar Energy Systems","Provide 160 Solar Energy Systems","Improving the educational process","173 schools equipped with an integrated system ","√",null,"several distircts ",{"v":193450,"d":"193,450"},null,"√",null,"√",null,{"v":0,"d":"0%"},{"$nulls":3},"√","Local Authority | Local Partner"]
[null,5,"Temporary Classrooms","72 class","Improving the educational process","72 temporary classrooms",null,"√","several distircts ",{"v":720000,"d":"720,000"},null,"√",null,"√",null,{"v":0,"d":"0%"},{"$nulls":3},"√","Local Authority | Local Partner"]
[null,6,"Construction of 5 Educational Complexes","24 class for each complex","Improving the educational process","5 complexes ","√",null,"several distircts ",{"v":1500000,"d":"1,500,000"},null,null,"√","√",null,{"v":0,"d":"0%"},{"$nulls":3},"√","Local Authority | Local Partner"]
[null,7,"Construction Project of Six New Classrooms for Saba Girls' School - AlA'aloom - AlMawasit","Construction of 6 classrooms in two floors + 4 toilets.","Improving the educational process"," 6 classrooms + 4 bathrooms  ",null,"√","Al-A'loom - Al-Mawasit.",{"v":137871,"d":"137,871"},null,"√",null,"√",null,{"v":0,"d":"0%"},{"$nulls":3},"√","Local Authority | Local Partner"]
[null,8,"Renovation of \"26 of September School\"","Renovation of 16 classrooms with facilities.","School restoration ","16 classes with related facilities","√",null,"Sama'",{"v":50000,"d":"50,000"},null,null,"√","√",null,{"v":0,"d":"0%"},{"$nulls":3},"√","CARE International"]
[null,9,"Renovation of Al-Majd Al-Khadhra School","Renovation of 16 classrooms with facilities.","School restoration ","16 classes with related facilities","√",null,"Sama'",{"v":50000,"d":"50,000"},null,null,"√","√",null,{"v":0,"d":"0%"},{"$nulls":3},"√","Local Authority | Local Partner"]
[null,10,"Renovation of Ali bin Abi Talib School","Renovation of 24 classrooms with their associated facilities.","School restoration ","24 classes with related facilities","√",null,"Al-Silw",{"v":120000,"d":"120,000"},null,null,"√","√",null,{"v":0,"d":"0%"},{"$nulls":3},"√","Local Authority | Local Partner"]
[null,11,"Renovation of \" 22 May School\"","Renovation of 16 classrooms with facilities.","School restoration ","16 classes  with related facilities","√",null,"Al-Silw",{"v":50000,"d":"50,000"},null,null,"√","√",null,{"v":0,"d":"0%"},{"$nulls":3},"√","Local Authority | Local Partner"]
[null,12,"Renovation of Al-Sharaf School","Renovation of 12 classrooms with facilities.","School restoration ","12 classes with related facilities","√",null,"Al-Silw",{"v":40000,"d":"40,000"},null,null,"√","√",null,{"v":0,"d":"0%"},{"$nulls":3},"√","Local Authority | Local Partner"]
[null,13,"Renovation of Othman bin Affan School","Renovation of 9 classrooms with facilities.","School restoration ","9 classes with related facilities","√",null,"Al-Silw",{"v":30000,"d":"30,000"},null,null,"√","√",null,{"v":0,"d":"0%"},{"$nulls":3},"√","Local Authority | Local Partner"]
[null,14,"Academic Performance Development Program for Teachers and Supervisors, and Improving Education Quality, Assessment, Instructional Materials, and Effective Educational Leadership and Management","Training 500 teachers in modern teaching strategies.","Enhancing the quality of teaching in primary and secondary education.\nEmpowering supervisors with supportive supervision techniques to improve school performance.\nImproving student learning outcomes through the implementation of effective pedagogical methods.\nProvision of improved teaching and learning materials adapted to local needs.\nEnhancing teachers' capacity to continuously and accurately measure student progress.\nIdentifying learning gaps and developing effective remedial plans at both school and district levels.\nStrengthening the leadership capacity of school principals in managing the educational process.\nImproving monitoring systems and evidence-based decision-making.\nStrengthening organizational communication between schools and educational authorities to enhance the quality of educational management.\n","500 teachers trained in modern teaching strategies.","√",null,"Sabir Al-Mawadim - Salah - Al-Qahirah District  - Al-Mudhaffar District - Ash Shamayatayn",{"v":7000,"d":"7,000"},"√",null,null,"√",null,{"v":0,"d":"0%"},{"$nulls":3},"√","Local Authority | Local Partner"]
[{"$nulls":3},"Training 120 supervisors on supportive monitoring and formative assessment skills.",null,"  120 educational supervisor trained in supportive follow-up skills and structural evaluation.","√",null,"Taiz city",{"v":2500,"d":"2,500"},"√",null,null,"√",null,{"v":0,"d":"0%"},{"$nulls":3},"√","Local Authority | Local Partner"]
[{"$nulls":3},"Development of 10 training manuals and local educational materials responsive to the governorate context.",null,"Provides 10 training manuals and local educational materials that respond to the governorate context.","√",null,"Taiz city",{"v":10000,"d":"10,000"},"√",null,null,"√",null,{"v":0,"d":"0%"},{"$nulls":3},"√","Local Authority | Local Partner"]
[{"$nulls":3},"Training 300 teachers on modern measurement and evaluation tools.",null,"300 trainee teachers trained on modern measurement and evaluation tools.","√",null,"Sabir Al-Mawadim - Salah - Al-Qahirah District  - Al-Mudhaffar District ",{"v":5600,"d":"5,600"},"√",null,null,"√",null,{"v":0,"d":"0%"},{"$nulls":3},"√","Local Authority | Local Partner"]
[{"$nulls":3},"Training 250 school leaders on strategic planning and performance management.",null,"  250 school leadership trainees in strategic planning and performance management.","√",null,"Sabir Al-Mawadim - Salah - Al-Qahirah District  - Al-Mudhaffar District ",{"v":5000,"d":"5,000"},"√",null,null,"√",null,{"v":0,"d":"0%"},{"$nulls":3},"√","Local Authority | Local Partner"]
[null,15,"School Meals and Healthy Nutrition Project for Students","Distribution of health meals to 5,000 students (male and female).","Contributing to enhancing students' physical activity and raising students' abilities and skills in academic achievement ","5000 breakfasts , Reducing the rate of malnutrition among school students","√",null,"All districts",{"v":1325000,"d":"1,325,000"},"√",null,null,"√",null,{"v":0,"d":"0%"},{"$nulls":3},"√","RAYAHEEN For Development and Human Rights"]
[null,16,"Sports and Peace Project for School Students","Training of female teachers and sports coaches, organizing school sports activities, awareness campaigns within schools, and providing sports equipment. ","Promoting a culture of security, peace and tolerance among students through sports activities \nImproving students' mental and physical health through regular physical activity  \nIncreasing social awareness on the importance of sports in building societies","The number of targeted schools is 20, Number of students: 3000 male and female students , The number of teachers and trainers was 20 , Number of events: 10 events","√",null,"All districts",{"v":60000,"d":"60,000"},null,"√",null,"√",null,{"v":0,"d":"0%"},null,"√","√","√","RAYAHEEN For Development and Human Rights"]
[null,17,"Improving Learning Outcomes for Out-of-School and In-School Children: (Strengthening Education - Accelerated Learning) Program and Preventive Educational Support Pathway","Provision of teaching materials for students and teachers\nimplementation of back-to-school activities\nsocial behavior change to promote child enrollment\nimplementation of an early warning system including a referral pathway to register children and retain them in primary school\nremedial education and alternative learning pathways.","Improving access to quality learning and learning outcomes for children by creating an enabling learning environment in communities and schools","The number of beneficiary students is 4,629 male and female students","√",null,"several distircts ",{"$nulls":3},"√","√",null,{"v":0,"d":"0%"},{"$nulls":3},"√","Local Authority | Local Partner"]
["Technical Education"]
[" Integrated Basic and Social Services",1,"Renovation, Rehabilitation, and Equipping of Al-Hasab Industrial Technical Institute Buildings and Departments","9 workshops - 12 buildings - 18 departments - accommodation - restaurant - mosque - service facilities.","Contributing to the absorption of 15% of secondary school graduates into higher education/vocational training programs","12 buildings","√",null,"Al-Hasib  / Al-Mudhaffar District",{"v":697630,"d":"697,630"},null,"√",null,"√",null,{"v":0,"d":"0%"},{"$nulls":3},"اليابان","IOM"]
[null,2,"Renovation, Rehabilitation, and Equipping of Al-Khayami Agricultural and Industrial Institute Buildings and Departments","2 workshops - 3 buildings - 8 departments - service facilities.","Contributing to the absorption of 15% of secondary school graduates into higher education/vocational training programs","3 buildings","√",null,"Al-Khiyami/ Al-Ma'afir",{"v":118000,"d":"118,000"},null,"√",null,"√",null,{"v":0,"d":"0%"},{"$nulls":3},"√","Local Authority | Local Partner"]
[null,3,"Renovation and Equipping of At-Turbah Industrial Technical Institute","Renovation of 7 buildings - 4 workshops - 8 departments - service facilities.","Contributing to the absorption of 15% of secondary school graduates into higher education/vocational training programs","7 buildings","√",null,"At-Turbah /  Ash Shamayatayn",{"v":279390,"d":"279,390"},null,null,"√","√",null,{"v":0,"d":"0%"},{"$nulls":3},"اليابان","IOM"]
[null,4,"Completion of Tha'abat Commercial Technical Institute Buildings and Renovation of the Existing Building","3 buildings.","Contributing to the absorption of 15% of secondary school graduates into higher education/vocational training programs","3 buildings","√",null,"Tha'bat /  Salah District",{"v":900000,"d":"900,000"},null,"√",null,"√",null,{"v":0,"d":"0%"},{"$nulls":3},"Saudi Program for development and reconstruction of Yemen","Local Authority | Local Partner"]
[null,5,"Fencing and Equipping of Al-Hasib Commercial Technical Institute Departments","1 boundary wall - 6 departments.","Preserving existing educational building while expanding student accommodating capacity."," Fencing the institute's courtyard - equipping 6 departments ","√",null,"Al-Hasab / Al-Mudhaffar District",{"v":108550,"d":"108,550"},null,"√",null,"√",null,{"v":0,"d":"0%"},{"$nulls":3},"√","Local Authority | Local Partner"]
[null,6,"Equipping of Al-Khansa'a Commercial Institute","Equipping  of 7 departments","Contributing to the absorption of 15% of secondary school graduates into higher education/vocational training programs","Equipping 7 departments","√",null,"Al-Qahirah District",{"v":180000,"d":"180,000"},null,"√",null,"√",null,{"v":0,"d":"0%"},{"$nulls":3},"√","Local Authority | Local Partner"]
[null,7,"Equipping of Tha'abat Commercial Technical Institute","Equipping of 10 departments","Contributing to the absorption of 15% of secondary school graduates into higher education/vocational training programs","Equipping 10 departments","√",null,"  Salah District",{"v":600000,"d":"600,000"},null,"√",null,"√",null,{"v":0,"d":"0%"},{"$nulls":3},"Saudi Program for development and reconstruction of Yemen","Local Authority | Local Partner"]
["Higher Education  "]
[" Integrated Basic and Social Services",1,"Internal Roads and Sidewalks Rehabilitation of the university Project","Maintenance and repair of 3 km of internal asphalt roads and pedestrian sidewalks.","Facilitating access and mobility for students, faculty members, and University visitors.","3 km restoration","√",null,"Governorate Center",{"v":274770,"d":"274,770"}," ","√",null,"√",null,{"v":0,"d":"0%"},{"$nulls":3},"√","Local Authority | Local Partner"]
[null,2,"Gardening","Planting the areas that have not yet been grown, including the preservation and maintenance of existing greenery, in accordance with the general site layout.","Enhancing the beauty of the university facilities.\nExpanding green coverage within the university to provide fresh air , due to its ocated under a semi-hot area\nImproving the university beauty through paving the central medians of internal streets; this reduces irrigation water consumption and evaporation, while also serving as a fire prevention measure.\nIncreasing the use of roadside spaces through paving and gardening, this will show the university beauty, minimizing water loss, and reducing fire hazards.","Adding the expected aesthetic appearance to the cultivated areas and a good impression on the visitor and resident ","√",null,"Governorate Center",{"v":17159,"d":"17,159"},null,"√",null,"√",null,{"v":0,"d":"0%"},{"$nulls":3},"√","Local Authority | Local Partner"]
[null,3,"Completion of the University Presidency Building Project","Completing the implementation of the remaining works within the project","Facilitating the return of university leadership in Habil Salman University to resume operations and foster the normalization of academic and institutional life.","Ready-built Building","√",null,"Governorate Center",{"v":530722,"d":"530,722"},null,"√",null,"متعثر",null,{"v":0.6,"d":"60%"},"√",{"$nulls":3},"Local Authority | Local Partner"]
[null,4,"Completion of the General Secretariat Building Project","Completing the implementation of the remaining works within the project","Facilitating the return of university leadership and staff in Habil Salman University to resume operations and foster the normalization of academic and institutional life.","Ready-built Building","√",null,"Governorate Center",{"v":560953,"d":"560,953"},null,"√",null,"متعثر",null,{"v":0.6,"d":"60%"},"√",{"$nulls":3},"Local Authority | Local Partner"]
[null,5,"Completion of the University Land Demarcation and Fencing Project","Completing the implementation of the remaining works within the project","Reducing Encroachments on University Lands","Reservation and fencing of university lands","√",null,"Governorate Center",{"v":352000,"d":"352,000"},null,"√",null,"متعثر",null,{"v":0.4,"d":"40%"},"√",{"$nulls":3},"Local Authority | Local Partner"]
[null,6,"Updating and Developing the University Printing and Publishing House ","Poster printer, stamp-making machine, woodworking engraver, heat press for fabric printing, supply and installation of a 30KW BARKEM generator.","Enhancing the quality and efficiency of academic printing and publishing services, and supporting the educational and research process.","Provides a new, unused 3.2m poster printer with modern specifications","√",null,"Habil Salman- Taiz City Center",{"v":45000,"d":"45,000"},null,null,"√","√",null,{"v":0,"d":"0%"},{"$nulls":3},"√","Local Authority | Local Partner"]
[null,7,"Surveillance System for the General Site","internal 6MP cameras, 150 external 8MP IP cameras. \nCat 6 connection cables\nconduits and installation accessories.","Providing internal security to protect university assets, students, faculty, and administrative staff.","Provides a network system of internal and external cameras for the university","√",null,"Taiz City Center (Habil Salman and Al-Ordi)+ Ash Shamayatayn (At-Turbah)",{"v":65000,"d":"65,000"},null,null,"√","√",null,{"v":0,"d":"0%"},{"$nulls":3},"√","Local Authority | Local Partner"]
[null,8,"Regulating student entry by electronic card","Electronic gate with a server and access control system for 4 entrances, as there are two main gates.","Regulating the university entry and exit points to ensure a secure environment for students, visitors, and staff.","Provides four electronic Portal in Habil Salman, Al-Ordi and Al-Turbah ","√",null,"Taiz City Center (Habil Salman 2 and Al-Ordi 2 )+ Ash Shamayatayn (At-Turbah 2)",{"v":130000,"d":"130,000"},null,null,"√","√",null,{"v":0,"d":"0%"},{"$nulls":3},"√","Local Authority | Local Partner"]
["Health"]
[" Integrated Basic and Social Services",1,"Construction of \"26 September\" Maternal and Childhood Center","Construction of a two-floor building consisting of 12 rooms with associated facilities and equipment as per the attached study.","Qualifying the infrastructure of existing health facilities and equipping them to improve their use","Increase infrastructure expansion at targeted facilities by 30%","√",null,"Al-Qahirah District",{"v":207000,"d":"207,000"},null,"√",null,"√",null,{"v":0,"d":"0%"},{"$nulls":3},"√","Local Authority | Local Partner"]
[null,2,"Construction of Al-Qahira Health Center","Construction of a two-floor building consisting of 12 rooms with associated facilities and equipment as per the attached study.","Qualifying the infrastructure of existing health facilities and equipping them to improve their use","Increase infrastructure expansion at targeted facilities by 30%","√",null,"Al-Qahirah District",{"v":207000,"d":"207,000"},null,"√",null,"√",null,{"v":0,"d":"0%"},{"$nulls":3},"√","Local Authority | Local Partner"]
[null,3,"Expansion of Al-Rawai Health Center","Building expansion: adding 5 rooms, a warehouse, generator room, guard room, and doctors accommodation with equipment.","Qualifying the infrastructure of existing health facilities and equipping them to improve their use","Increase infrastructure expansion at targeted facilities by 30%","√",null,"Dhubab",{"v":70000,"d":"70,000"},null,null,"√","√",null,{"v":0,"d":"0%"},{"$nulls":3},"√","Local Authority | Local Partner"]
[null,4,"Expansion of Al-Ordhi Health Unit","Construction of Health Workers accommodation with 3 service rooms, guard room, equipment, and furniture.","Qualifying the infrastructure of existing health facilities and equipping them to improve their use","Increase infrastructure expansion at targeted facilities by 30%","√",null,"Dhubab",{"v":70000,"d":"70,000"},null,null,"√","√",null,{"v":0,"d":"0%"},{"$nulls":3},"√","Local Authority | Local Partner"]
[null,5,"Expansion of \"22 May\"  Maternal and Childhood Center in Al-Duminah","Construction of a third floor as per the attached study.","Qualifying the infrastructure of existing health facilities and equipping them to improve their use","Increase infrastructure expansion at targeted facilities by 30%","√",null,"Al-Mudhaffar District ",{"v":229000,"d":"229,000"},null,"√",null,"√",null,{"v":0,"d":"0%"},{"$nulls":3},"√","Local Authority | Local Partner"]
[null,6,"Expansion of Sinah Health Center","Construction of a third floor as per the attached study.","Qualifying the infrastructure of existing health facilities and equipping them to improve their use","Increase infrastructure expansion at targeted facilities by 30%","√",null,"Al-Mudhaffar District ",{"v":88000,"d":"88,000"},null,"√",null,"√",null,{"v":0,"d":"0%"},{"$nulls":3},"√","Local Authority | Local Partner"]
[null,7,"Supply and Installation of Solar Energy Systems for 7 General Hospitals and 1 Rural Hospital","Supply and installation of solar power systems for 7 general hospitals (Al-Thawra General Hospital, Al-Jumhoori Hospital, Khalifa General Hospital, Al-Mudhaffar Hospital, Al-Ta'awun Hospital, Skin and Venereal Diseases Hospital, Psychiatric Hospital) and 1 rural hospital (Al-Nashma Rural Hospital).","Improve continuity of energy supply and enhance energy efficiency - reduce diesel consumption","Providing 7 public hospitals and 1 rural hospital with solar energy systems","√",null,"Taiz Governorate",{"v":2302360,"d":"2,302,360"},null,"√",null,"√",null,{"v":0,"d":"0%"},{"$nulls":3},"√","Local Authority | Local Partner"]
[null,8,"Expansion of Al-Arous Rural Hospital","Expansion and equipment as per the attached study.","Qualifying the infrastructure of existing health facilities and equipping them to improve their use","Increase infrastructure expansion at targeted facilities by 30%","√",null,"Sabir Al-Mawadim ",{"v":181000,"d":"181,000"},null,"√",null,"√",null,{"v":0,"d":"0%"},{"$nulls":3},"√","Local Authority | Local Partner"]
[null,9,"Expansion of May 22 Al-Marzouh Health Unit","Expansion and equipment as per the attached study.","Qualifying the infrastructure of existing health facilities and equipping them to improve their use","Increase infrastructure expansion at targeted facilities by 30%","√",null,"Sabir Al-Mawadim ",{"v":122000,"d":"122,000"},null,"√",null,"√",null,{"v":0,"d":"0%"},{"$nulls":3},"√","Local Authority | Local Partner"]
[null,10,"Expansion of Bardad Health Unit","Expansion, construction of a boundary wall, incinerator, warehouse, generator room, guard room, doctors accommodation , and additional rooms (upgrading to a center) as per the attached study.","Qualifying the infrastructure of existing health facilities and equipping them to improve their use","Increase infrastructure expansion at targeted facilities by 30%","√",null,"Sabir Al-Mawadim ",{"v":130000,"d":"130,000"},null,"√",null,"√",null,{"v":0,"d":"0%"},{"$nulls":3},"√","Local Authority | Local Partner"]
[null,11,"Equipping and Furnishing of Al-Fath Rural Hospital","Integrated equipment and outfitting for a rural hospital.","Qualifying the infrastructure of existing health facilities and equipping them to improve their use","Increase infrastructure expansion at targeted facilities by 30%","√",null,"Mashra'ah Wa Hadnan",{"v":220000,"d":"220,000"},null,"√",null,"√",null,{"v":0,"d":"0%"},{"$nulls":3},"√","Local Authority | Local Partner"]
[null,12,"Construction of Al-Shifa Health Center","Construction of a two-floor building with its associated facilities (replacement/reconstruction) as per the attached study.","Qualifying the infrastructure of existing health facilities and equipping them to improve their use","Increase infrastructure expansion at targeted facilities by 30%","√",null,"Mashra'ah Wa Hadnan",{"v":150000,"d":"150,000"},null,"√",null,"√",null,{"v":0,"d":"0%"},{"$nulls":3},"√","Local Authority | Local Partner"]
[null,13,"Expansion of Al-Khalifa Omar Health Center","Construction of three service rooms and an incinerator as per the attached study.","Qualifying the infrastructure of existing health facilities and equipping them to improve their use","Increase infrastructure expansion at targeted facilities by 30%","√",null,"Al-Silw",{"v":24000,"d":"24,000"},null,"√",null,"√",null,{"v":0,"d":"0%"},{"$nulls":3},"√","Local Authority | Local Partner"]
[null,14,"Construction of Al-Baraiha Health Unit","Construction of a single-floor building consisting of six rooms with its  associated facilities  (replacement/reconstruction) as per the attached study.","Qualifying the infrastructure of existing health facilities and equipping them to improve their use","Increase infrastructure expansion at targeted facilities by 30%","√",null,"Jabal Habashi",{"v":70000,"d":"70,000"},null,"√",null,"√",null,{"v":0,"d":"0%"},{"$nulls":3},"√","Local Authority | Local Partner"]
[null,15,"Construction of Qubbat Al-Shraja Health Unit","Construction of a two-floor building and upgrading it to a health center as per the attached study.","Qualifying the infrastructure of existing health facilities and equipping them to improve their use","Increase infrastructure expansion at targeted facilities by 30%","√",null,"Jabal Habashi",{"v":150000,"d":"150,000"},null,"√",null,"√",null,{"v":0,"d":"0%"},{"$nulls":3},"√","Local Authority | Local Partner"]
[null,16,"Expansion of Al-Durrah Rural Hospital","Expansion and equipment as per the attached study.","Qualifying the infrastructure of existing health facilities and equipping them to improve their use","Increase infrastructure expansion at targeted facilities by 30%","√",null,"Jabal Habashi",{"v":323000,"d":"323,000"},null,null,"√","√",null,{"v":0,"d":"0%"},{"$nulls":3},"√","Local Authority | Local Partner"]
[null,17,"Construction of Salah Al-Din Health Center in Al-Matali","Construction of 12 rooms, including a second floor, doctors accommodation , and equipment as per the attached study.","Qualifying the infrastructure of existing health facilities and equipping them to improve their use","Increase infrastructure expansion at targeted facilities by 30%","√",null,"Al-Missrakh  ",{"v":207000,"d":"207,000"},null,"√",null,"√",null,{"v":0,"d":"0%"},{"$nulls":3},"√","Local Authority | Local Partner"]
[null,18,"Expansion of Al-Ta'awun Watir Health Center","Expansion consisting of eight rooms, a hall, doctors accommodation, guard room, an incinerator, a rainwater harvesting tank, and furnishing of the center as per the attached study.","Qualifying the infrastructure of existing health facilities and equipping them to improve their use","Increase infrastructure expansion at targeted facilities by 30%","√",null,"Al-Missrakh  ",{"v":207000,"d":"207,000"},null,"√",null,"√",null,{"v":0,"d":"0%"},{"$nulls":3},"√","Local Authority | Local Partner"]
[null,19,"Construction of a Primary Obstetric Emergency Center at Hawra Health Center","Construction and outfitting of a basic emergency obstetric center as per the attached study.","Qualifying the infrastructure of existing health facilities and equipping them to improve their use","Increase infrastructure expansion at targeted facilities by 30%","√",null,"Sama'",{"v":80000,"d":"80,000"},null,"√",null,"√",null,{"v":0,"d":"0%"},{"$nulls":3},"√","Local Authority | Local Partner"]
[null,20,"Expansion of February 11 Health Unit","Expansion, outfitting, and furnishing as per the attached study.","Qualifying the infrastructure of existing health facilities and equipping them to improve their use","Increase infrastructure expansion at targeted facilities by 30%","√",null,"Sama'",{"v":207000,"d":"207,000"},null,"√",null,"√",null,{"v":0,"d":"0%"},{"$nulls":3},"√","Local Authority | Local Partner"]
[null,21,"Renovation and Equipping of Al-Khabl Alqama Unit","Renovation, maintenance, and outfitting as per the attached study.","Qualifying the infrastructure of existing health facilities and equipping them to improve their use","Increase infrastructure expansion at targeted facilities by 30%","√",null,"Ash Shamayatayn",{"v":25000,"d":"25,000"},null,"√",null,"√",null,{"v":0,"d":"0%"},{"$nulls":3},"√","Local Authority | Local Partner"]
[null,22,"Expansion of Shuba'ah Health Unit","Building a boundary wall, guard room, doctors accommodation , storage room, generator room, 3 service rooms, and equipment according to the attached study.","Qualifying the infrastructure of existing health facilities and equipping them to improve their use","Increase infrastructure expansion at targeted facilities by 30%","√",null,"Ash Shamayatayn",{"v":40000,"d":"40,000"},null,"√",null,"√",null,{"v":0,"d":"0%"},{"$nulls":3},"√","Local Authority | Local Partner"]
[null,23,"Construction of Al-Sanmah Health Unit","Building and equipping (replacement) according to the attached study.","Qualifying the infrastructure of existing health facilities and equipping them to improve their use","Increase infrastructure expansion at targeted facilities by 30%","√",null,"Al-Wazi'iyah",{"v":80000,"d":"80,000"},null,"√",null,"√",null,{"v":0,"d":"0%"},{"$nulls":3},"√","Local Authority | Local Partner"]
[null,24,"Expansion of Al-Radf Health Unit","Building a unit consisting of 3 rooms and their associated facilities with medical equipment and furniture according to the initial study.","Qualifying the infrastructure of existing health facilities and equipping them to improve their use","Increase infrastructure expansion at targeted facilities by 30%","√",null,"Al-Wazi'iyah",{"v":40000,"d":"40,000"},null,"√",null,"√",null,{"v":0,"d":"0%"},{"$nulls":3},"√","Local Authority | Local Partner"]
[null,25,"Complete the Expansion of Hasib Al-Qobah Health Unit ","Building a unit consisting of 3 rooms and their associated facilities with medical equipment and furniture according to the initial study.","Qualifying the infrastructure of existing health facilities and equipping them to improve their use","Increase infrastructure expansion at targeted facilities by 30%","√",null,"Al-Wazi'iyah",{"v":55000,"d":"55,000"},null,"√",null,"√",null,{"v":0,"d":"0%"},{"$nulls":3},"√","Local Authority | Local Partner"]
[null,26,"Expansion of Al-Waheez Health Unit","Restoring a guard room, incinerator, doctors accommodation , generator room, and 3 rooms according to the attached study.","Qualifying the infrastructure of existing health facilities and equipping them to improve their use","Increase infrastructure expansion at targeted facilities by 30%","√",null,"Mawza",{"v":40000,"d":"40,000"},null,"√",null,"√",null,{"v":0,"d":"0%"},{"$nulls":3},"√","Local Authority | Local Partner"]
[null,27,"Expansion and Renovation of Al-Hamili Health Unit","Restoration, building 4 rooms, incinerator, generator room according to the attached study.","Qualifying the infrastructure of existing health facilities and equipping them to improve their use","Increase infrastructure expansion at targeted facilities by 30%","√",null,"Mawza",{"v":40000,"d":"40,000"},null,"√",null,"√",null,{"v":0,"d":"0%"},{"$nulls":3},"√","Local Authority | Local Partner"]
[null,28,"Construction of a Primary Emergency Center at Al-Barkani Health Center","Construction and equipping of an emergency center according to the attached study.","Qualifying the infrastructure of existing health facilities and equipping them to improve their use","Increase infrastructure expansion at targeted facilities by 30%","√",null,"Maqbana",{"v":207000,"d":"207,000"},null,"√",null,"√",null,{"v":0,"d":"0%"},{"$nulls":3},"√","Local Authority | Local Partner"]
[null,29,"Construction of Al-Bomiya Health Unit","Building and equipping a health unit according to the attached study.","Qualifying the infrastructure of existing health facilities and equipping them to improve their use","Increase infrastructure expansion at targeted facilities by 30%","√",null,"Maqbana",{"v":80000,"d":"80,000"},null,"√",null,"√",null,{"v":0,"d":"0%"},{"$nulls":3},"√","Local Authority | Local Partner"]
[null,30,"Complete the Expansion of Al-Mudhaffar General Hospital ","Completion of the third floor construction according to the attached study.","Qualifying the infrastructure of existing health facilities and equipping them to improve their use","Increase the expansion of the hospital's infrastructure by 100%","√",null,"Taiz City",{"v":468000,"d":"468,000"},null,"√",null,"√",null,{"v":0,"d":"0%"},{"$nulls":3},"√","Local Authority | Local Partner"]
[null,31,"Al-Nashamah Rural Hospital","Building two floors for the hospital with equipment and furnishings, including doctors accommodation, according to the attached study.","Qualifying the infrastructure of existing health facilities and equipping them to improve their use","Increase the expansion of the hospital's infrastructure by 60%","√",null,"Al-Ma'affer",{"v":457000,"d":"457,000"},null,"√",null,"√",null,{"v":0,"d":"0%"},{"$nulls":3},"√","Local Authority | Local Partner"]
[null,32,"Expansion of the \"7th of July\" Health Unit- Kawkab","Building a boundary wall, guard room, incinerator, 3 service rooms, and equipment according to the attached study.","Qualifying the infrastructure of existing health facilities and equipping them to improve their use","Increase infrastructure expansion at targeted facilities by 30%","√",null,"Al-Ma'affer",{"v":84000,"d":"84,000"},null,"√",null,"√",null,{"v":0,"d":"0%"},{"$nulls":3},"√","Local Authority | Local Partner"]
[null,33,"Expansion of \"Bir Al-Walidain\" Health Unit","Building a boundary wall, guard room, incinerator, and equipment according to the attached study.","Qualifying the infrastructure of existing health facilities and equipping them to improve their use","Increase infrastructure expansion at targeted facilities by 30%","√",null,"Al-Ma'affer",{"v":39000,"d":"39,000"},null,"√",null,"√",null,{"v":0,"d":"0%"},{"$nulls":3},"√","Local Authority | Local Partner"]
[null,34,"Provision of a 128-Slice CT Scanner for the Republic Education Hospital"," 128-slice CT scanner","Qualifying the infrastructure of existing health facilities and equipping them to improve their use"," One device  of 128-slice CT scanner is available in the hospital","√",null,"Al-Jumhuri Hospital/Al-Qahirah District",{"v":980000,"d":"980,000"},null,"√",null,"√",null,{"v":0,"d":"0%"},{"$nulls":3},"√","Local Authority | Local Partner"]
[null,35,"Rehabilitation and Maintenance of the Republic Education Hospital","Renovations and maintenance of buildings according to the attached study.","Qualifying the infrastructure of existing health facilities and equipping them to improve their use","Restorations and maintenance are 100% done","√",null,"Al-Jumhuri Hospital/Al-Qahirah District",{"v":239000,"d":"239,000"},"√",null,null,"√",null,{"v":0,"d":"0%"},{"$nulls":3},"√","Local Authority | Local Partner"]
[null,36,"Provision of an MRI Scanner (MRI 25) at Al-Thawra General Hospital Authority","Rehabilitation and maintenance of the diagnostic center with an MRI 25 machine according to the attached study. ","Qualifying the infrastructure of existing health facilities and equipping them to improve their use","Completing infrastructure and equipment at 80% of the need","√",null,"Al-Thawra Hospital Authority/ Salah District",{"v":1850000,"d":"1,850,000"},null,"√",null,"√",null,{"v":0,"d":"0%"},{"$nulls":3},"√","Local Authority | Local Partner"]
[null,37,"Equipping the Operation department and Endoscopy Unit at Al-Thawra General Hospital Authority","Equipment for the operating room (Laser stone lithotripsy -Wave Lithotripsy (ESWL) -  Urology endoscopes for adults and children - Digestive system endoscope with fiber optics - Lung endoscope - Mamatome breast biopsy and small tumor removal device - Surgical operating table with accessories - Silemj operating lights - Anesthesia machine with TFT monitor 12 - Integrated general surgery endoscope unit) according to the attached study.","Qualifying the infrastructure of existing health facilities and equipping them to improve their use","Completing infrastructure and equipment at 80% of the need","√",null,"Al-Thawra Hospital Authority/ Salah District",{"v":2000000,"d":"2,000,000"},null,"√",null,"√",null,{"v":0,"d":"0%"},{"$nulls":3},"√","Local Authority | Local Partner"]
[null,38,"Expansion of the Emergency Obstetric Care Center at Khalifa General Hospital","Expansion of a second floor building with equipment and furniture.","Qualifying the infrastructure of existing health facilities and equipping them to improve their use","Completing the infrastructure and equipment at Khalifa General Hospital by 50% of the need","√",null,"Khalifa Hospital: Ash Shamayatayn District",{"v":115000,"d":"115,000"},null,"√",null,"√",null,{"v":0,"d":"0%"},{"$nulls":3},"√","Local Authority | Local Partner"]
[null,39,"Construction of a Specialized Burns and Reconstructive Surgery Center at Khalifa General Hospital.","Construction with equipment and furnishing.","Qualifying the infrastructure of existing health facilities and equipping them to improve their use","Completing the infrastructure and equipment at Khalifa General Hospital by 50% of the need","√",null,"Khalifa Hospital: Ash Shamayatayn District",{"v":800000,"d":"800,000"},null,null,"√","√",null,{"v":0,"d":"0%"},{"$nulls":3},"√","Local Authority | Local Partner"]
[null,40,"Establishing a Medical Oxygen station at the Yemen-Swedish Children’s Hospital","Construction of an oxygen station with a capacity of 100 cylinders with a generation network according to the attached study.","Qualifying the infrastructure of existing health facilities and equipping them to improve their use","Provided an oxygen station by100% ","√",null,"Yemen-Swedish Children’s Hospital - Al-Qahirah District",{"v":102000,"d":"102,000"},null,"√",null,"√",null,{"v":0,"d":"0%"},{"$nulls":3},"√","Local Authority | Local Partner"]
[null,41,"Equipping the Hospital for Dermatological and Venereal Diseases","CBC 5 PART device, Laser treatment device (AEROLASE NEOELITE 650 microns), electric cautery device (HYFRECATOR 2000 FOR XANTHELASMA), ERBIUM VAG LASER device, CO2 Cryotherapy device, for psoriasis radiation - according to the attached study.","Qualifying the infrastructure of existing health facilities and equipping them to improve their use","Availability of equipment at 85% of the total need","√",null,"The Hospital for Dermatological and Venereal Diseases / Al-Mudhaffar District - ",{"v":600000,"d":"600,000"},null,null,"√","√",null,{"v":0,"d":"0%"},{"$nulls":3},"√","Local Authority | Local Partner"]
[null,42,"Rehabilitation and Equipping of Al-Daran Center","Restoration and equipping of the center.","Qualifying the infrastructure of existing health facilities and equipping them to improve their use","100% improvement in infrastructure and equipment","√",null," Al-Daran Center - Salah District",{"v":351000,"d":"351,000"},null,null,"√","√",null,{"v":0,"d":"0%"},{"$nulls":3},"√","Local Authority | Local Partner"]
[null,43,"Complete the Equipment of the Monitoring Department - Health Office - Taiz","Completing equipment for the Monitoring Management in the Health Office in Taiz Governorate (computer + printer + manager's desk + secretary's desk).","Improving the prevention and control of common infectious diseases and chronic diseases","Complete the equipment at a rate of 75% of the need",null,"√","Health Office - Governorate Center",{"v":2000,"d":"2,000"},null,"√",null,"√",null,{"v":0,"d":"0%"},{"$nulls":3},"√","Local Authority | Local Partner"]
[null,44,"Equipping the Central Maintenance Workshop - Health Office in the Governorate ","Equipping the central maintenance workshop.","Qualifying the infrastructure of existing health facilities and equipping them to improve their use","The maintenance workshop has been activated",null,"√","Health Office - Governorate Center",{"v":60000,"d":"60,000"},null,"√",null,"√",null,{"v":0,"d":"0%"},{"$nulls":3},"√","Local Authority | Local Partner"]
[null,45,"Establishment, Equipping, and Operation of the Physiotherapy and Rehabilitation Department at Al-Makha General Hospital.","Establishing and operating a physiotherapy department.","Improving the quality of diagnostic, therapeutic and rehabilitation services ","Increase the number of physical therapy centers by 40%",null,"√","Al-Mukha",{"v":125000,"d":"125,000"},null,null,"√","√",null,{"v":0,"d":"0%"},{"$nulls":3},"√","Local Authority | Local Partner"]
[null,46,"Rehabilitation of the School Health Clinic.","Restoration of the school health clinic service building, which consists of three floors with associated facilities, and furnishing clinics, the laboratory, and the pharmacy, according to the attached study.","Reducing health risks to mothers and children","100% restoration of the building","√",null,"Taiz Governorate Center",{"v":233000,"d":"233,000"},null,"√",null,"√",null,{"v":0,"d":"0%"},{"$nulls":3},"√","Local Authority | Local Partner"]
[null,47,"Construction of Al-Shifa Quradha Health Unit","Building a center consisting of 12 rooms with its with associated facilities + equipment.","Qualifying the infrastructure of existing health facilities and equipping them to improve their use","Increase infrastructure expansion at targeted facilities by 30%","√",null,"Sabir Al-Mawadim",{"v":150000,"d":"150,000"},null,"√",null,"√",null,{"v":0,"d":"0%"},{"$nulls":3},"√","Local Authority | Local Partner"]
[null,48,"Construction of Gharira Health Unit","Expanding the building by adding 4 service rooms with equipment and furnishing.","Qualifying the infrastructure of existing health facilities and equipping them to improve their use","Increase infrastructure expansion at targeted facilities by 30%","√",null,"Dhubab",{"v":90000,"d":"90,000"},null,null,"√","√",null,{"v":0,"d":"0%"},{"$nulls":3},"√","Local Authority | Local Partner"]
[null,49,"Expansion of Al-Kadaha Health Center ","Building 4 services rooms, doctors accommodation , storage room, generator room, guard room, equipment according to the attached study.","Qualifying the infrastructure of existing health facilities and equipping them to improve their use","Increase infrastructure expansion at targeted facilities by 30%","√",null,"Dhubab",{"v":160000,"d":"160,000"},null,"√",null,"√",null,{"v":0,"d":"0%"},{"$nulls":3},"√","Local Authority | Local Partner"]
[null,50,"Expansion of Alluqaia Health Center ","Building a third floor according to the attached study.","Qualifying the infrastructure of existing health facilities and equipping them to improve their use","Increase infrastructure expansion at targeted facilities by 30%","√",null,"Al-Mudhaffar",{"v":88000,"d":"88,000"},null,"√",null,"√",null,{"v":0,"d":"0%"},{"$nulls":3},"√","Local Authority | Local Partner"]
[null,51,"Construction of Al-Batana Health Unit","Building and equipping (replacement) according to the attached study.","Qualifying the infrastructure of existing health facilities and equipping them to improve their use","Increase infrastructure expansion at targeted facilities by 30%","√",null,"Al-Mawasit",{"v":130000,"d":"130,000"},null,"√",null,"√",null,{"v":0,"d":"0%"},{"$nulls":3},"√","Local Authority | Local Partner"]
[null,52,"Construction of Al-Janad Health Unit","Building and equipping (replacement) according to the attached study.","Qualifying the infrastructure of existing health facilities and equipping them to improve their use","Increase infrastructure expansion at targeted facilities by 30%","√",null,"Al-Mawasit",{"v":130000,"d":"130,000"},null,"√",null,"√",null,{"v":0,"d":"0%"},{"$nulls":3},"√","Local Authority | Local Partner"]
[null,53,"Construction of Sibn Health Unit","Building and equipping (replacement) according to the attached study.","Qualifying the infrastructure of existing health facilities and equipping them to improve their use","Increase infrastructure expansion at targeted facilities by 30%","√",null,"Al-Mawasit",{"v":130000,"d":"130,000"},null,"√",null,"√",null,{"v":0,"d":"0%"},{"$nulls":3},"√","Local Authority | Local Partner"]
[null,54,"Construction of the \"11th of February\" Health Unit","Building 4 rooms, doctors accommodation, equipment according to the attached study.","Qualifying the infrastructure of existing health facilities and equipping them to improve their use","Increase infrastructure expansion at targeted facilities by 30%","√",null,"Sabir Al-Mawadim",{"v":130000,"d":"130,000"},null,"√",null,"√",null,{"v":0,"d":"0%"},{"$nulls":3},"√","Local Authority | Local Partner"]
[null,55,"Construction of the \"26th of September\" Health Unit.","Building two-floors unit according to the attached study with its associated facilities.","Qualifying the infrastructure of existing health facilities and equipping them to improve their use","Increase infrastructure expansion at targeted facilities by 30%","√",null,"Sabir Al-Mawadim",{"v":162000,"d":"162,000"},null,"√",null,"√",null,{"v":0,"d":"0%"},{"$nulls":3},"√","Local Authority | Local Partner"]
[null,56,"Construction of Al-Maliha Health Center","Building and equipping according to the attached study.","Qualifying the infrastructure of existing health facilities and equipping them to improve their use","Increase infrastructure expansion at targeted facilities by 30%","√",null,"Sabir Al-Mawadim",{"v":65000,"d":"65,000"},null,"√",null,"√",null,{"v":0,"d":"0%"},{"$nulls":3},"√","Local Authority | Local Partner"]
[null,57,"Construction of Daimat Aden Health Center","Building and equipping according to the attached study.","Qualifying the infrastructure of existing health facilities and equipping them to improve their use","Increase infrastructure expansion at targeted facilities by 30%","√",null,"Mashra'ah Wa Hadnan",{"v":130000,"d":"130,000"},null,"√",null,"√",null,{"v":0,"d":"0%"},{"$nulls":3},"√","Local Authority | Local Partner"]
[null,58,"Expansion of Sailat Al-Arth Health Center ","Expansion, Building a boundary wall , guard room, incinerator, 3 service rooms, storage room, doctors accommodation  , and equipment according to the attached study.","Qualifying the infrastructure of existing health facilities and equipping them to improve their use","Increase infrastructure expansion at targeted facilities by 30%","√",null,"Al-Silw",{"v":30000,"d":"30,000"},null,"√",null,"√",null,{"v":0,"d":"0%"},{"$nulls":3},"√","Local Authority | Local Partner"]
[null,59,"Expansion of Al-Khair Health Center ","Building a boundary wall , guard room, incinerator, 3 service rooms, and doctors accommodation  , and equipment according to the attached study.","Qualifying the infrastructure of existing health facilities and equipping them to improve their use","Increase infrastructure expansion at targeted facilities by 30%","√",null,"Al-Silw",{"v":29000,"d":"29,000"},null,"√",null,"√",null,{"v":0,"d":"0%"},{"$nulls":3},"√","Local Authority | Local Partner"]
[null,60,"Expansion of Al-Huqaib Health Center ","Restoration of the Al-Huqaib unit - Building 4 rooms - Guard room - doctors accommodation  according to the attached study.","Qualifying the infrastructure of existing health facilities and equipping them to improve their use","Increase infrastructure expansion at targeted facilities by 30%","√",null,"Al-Silw",{"v":54000,"d":"54,000"},null,"√",null,"√",null,{"v":0,"d":"0%"},{"$nulls":3},"√","Local Authority | Local Partner"]
[null,61,"Expansion of Al-Okaisha Health Center ","Restoration of Al-Okaisha Health Center - Building a second floor according to the attached study.","Qualifying the infrastructure of existing health facilities and equipping them to improve their use","Increase infrastructure expansion at targeted facilities by 30%","√",null,"Al-Silw",{"v":86000,"d":"86,000"},null,"√",null,"√",null,{"v":0,"d":"0%"},{"$nulls":3},"√","Local Authority | Local Partner"]
[null,62,"Expansion of Al-wodoor Health Center ","Building 4 rooms - Guard room - doctors accommodation according to the attached study.","Qualifying the infrastructure of existing health facilities and equipping them to improve their use","Increase infrastructure expansion at targeted facilities by 30%","√",null,"Al-Silw",{"v":40000,"d":"40,000"},null,"√",null,"√",null,{"v":0,"d":"0%"},{"$nulls":3},"√","Local Authority | Local Partner"]
[null,63,"Expansion of Oraina Health Center ","Expansion and equipping according to the attached study.","Qualifying the infrastructure of existing health facilities and equipping them to improve their use","Increase infrastructure expansion at targeted facilities by 30%","√",null,"Jabal Habashi",{"v":53000,"d":"53,000"},null,"√",null,"√",null,{"v":0,"d":"0%"},{"$nulls":3},"√","Local Authority | Local Partner"]
[null,64,"Expansion of Al-Ashrooh Health Center ","Expansion and equipping according to the attached study.","Qualifying the infrastructure of existing health facilities and equipping them to improve their use","Increase infrastructure expansion at targeted facilities by 30%","√",null,"Jabal Habashi",{"v":70000,"d":"70,000"},null,"√",null,"√",null,{"v":0,"d":"0%"},{"$nulls":3},"√","Local Authority | Local Partner"]
[null,65,"Expansion of Al-Haql Health Center ","Building a  a boundary wall, guard room, incinerator, and 4 service rooms with equipment according to the attached study.","Qualifying the infrastructure of existing health facilities and equipping them to improve their use","Increase infrastructure expansion at targeted facilities by 30%","√",null,"Jabal Habashi",{"v":30000,"d":"30,000"},null,"√",null,"√",null,{"v":0,"d":"0%"},{"$nulls":3},"√","Local Authority | Local Partner"]
[null,66,"Establishing of Kuzam Health Center.","Building and equipping the center instead of the existing center in a school, according to the attached study.","Qualifying the infrastructure of existing health facilities and equipping them to improve their use","Increase infrastructure expansion at targeted facilities by 30%","√",null,"Jabal Habashi",{"v":207000,"d":"207,000"},null,"√",null,"√",null,{"v":0,"d":"0%"},{"$nulls":3},"√","Local Authority | Local Partner"]
[null,67,"Expansion of Al-Midhafa Health Center "," Expansion and equipping according to the attached study.","Qualifying the infrastructure of existing health facilities and equipping them to improve their use","Increase infrastructure expansion at targeted facilities by 30%","√",null,"Jabal Habashi",{"v":130000,"d":"130,000"},null,"√",null,"√",null,{"v":0,"d":"0%"},{"$nulls":3},"√","Local Authority | Local Partner"]
[null,68,"Expansion of Jiba Health Center ","Building 6 additional rooms with their associated facilities, incinerator, generator room, and guard room, according to the attached study.","Qualifying the infrastructure of existing health facilities and equipping them to improve their use","Increase infrastructure expansion at targeted facilities by 30%","√",null,"Al-Misrakh",{"v":103000,"d":"103,000"},null,"√",null,"√",null,{"v":0,"d":"0%"},{"$nulls":3},"√","Local Authority | Local Partner"]
[null,69,"Expansion of Talooq Health Center ","Building 4 rooms with their associated facilities, completing the boundary wall for the health facility according to the attached study.","Qualifying the infrastructure of existing health facilities and equipping them to improve their use","Increase infrastructure expansion at targeted facilities by 30%","√",null,"Al-Misrakh",{"v":27000,"d":"27,000"},null,null,"√","√",null,{"v":0,"d":"0%"},{"$nulls":3},"√","Local Authority | Local Partner"]
[null,70,"Expansion of Al-Shura  Health Center ","Building two service rooms according to the attached study.","Qualifying the infrastructure of existing health facilities and equipping them to improve their use","Increase infrastructure expansion at targeted facilities by 30%","√",null,"Al-Misrakh",{"v":8000,"d":"8,000"},null,"√",null,"√",null,{"v":0,"d":"0%"},{"$nulls":3},"√","Local Authority | Local Partner"]
[null,71," Expansion of Sarbeet Health Unit","Expansion and equipping and furnishing according to the attached study.","Qualifying the infrastructure of existing health facilities and equipping them to improve their use","Increase infrastructure expansion at targeted facilities by 30%","√",null,"Sama' District",{"v":207000,"d":"207,000"},null,"√",null,"√",null,{"v":0,"d":"0%"},{"$nulls":3},"√","Local Authority | Local Partner"]
[null,72,"Construction of Al-Budhaijah Kuwayrah Health Center","Building two floors with equipment and furniture (replacement) according to the attached study.","Qualifying the infrastructure of existing health facilities and equipping them to improve their use","Increase infrastructure expansion at targeted facilities by 30%","√",null,"Ash Shamayatayn",{"v":207000,"d":"207,000"},null,"√",null,"√",null,{"v":0,"d":"0%"},{"$nulls":3},"√","Local Authority | Local Partner"]
[null,73,"Expansion of Al-Rija'iyah Maternal and Child Health Center (MCHC)","Building 5 services rooms, a boundary wall, incinerator, guard room, storage, doctors accommodation, generator room, and equipment room according to the attached study.","Qualifying the infrastructure of existing health facilities and equipping them to improve their use","Increase infrastructure expansion at targeted facilities by 30%","√",null,"Ash Shamayatayn",{"v":160000,"d":"160,000"},null,"√",null,"√",null,{"v":0,"d":"0%"},{"$nulls":3},"√","Local Authority | Local Partner"]
[null,74,"Expansion of Al-Ghail Health Unit in Bani Omar","Building 2 services rooms, a boundary wall, incinerator, guard room, storage, doctors accommodation, and equipment according to the attached study","Qualifying the infrastructure of existing health facilities and equipping them to improve their use","Increase infrastructure expansion at targeted facilities by 30%","√",null,"Ash Shamayatayn",{"v":50000,"d":"50,000"},null,"√",null,"√",null,{"v":0,"d":"0%"},{"$nulls":3},"√","Local Authority | Local Partner"]
[null,75,"Expansion of Hanna Health Center ","Expansion of 12 rooms with equipment.","Qualifying the infrastructure of existing health facilities and equipping them to improve their use","Increase infrastructure expansion at targeted facilities by 30%","√",null,"Al-Wazi'iyah",{"v":160000,"d":"160,000"},null,"√",null,"√",null,{"v":0,"d":"0%"},{"$nulls":3},"√","Local Authority | Local Partner"]
[null,76,"Rehabilitation and Expansion of Al-Juraib Health Unit.","Repairing the roof and building a second floor with 3 service rooms and a guard room according to the attached study.","Qualifying the infrastructure of existing health facilities and equipping them to improve their use","Increase infrastructure expansion at targeted facilities by 30%","√",null,"Al-Wazi'iyah",{"v":45000,"d":"45,000"},null,"√",null,"√",null,{"v":0,"d":"0%"},{"$nulls":3},"√","Local Authority | Local Partner"]
[null,77,"Expansion of Al-Dharifa Health Center ","Building a second floor with its related facilities according to the attached study.","Qualifying the infrastructure of existing health facilities and equipping them to improve their use","Increase infrastructure expansion at targeted facilities by 30%","√",null,"Al-Wazi'iyah",{"v":100000,"d":"100,000"},null,"√",null,"√",null,{"v":0,"d":"0%"},{"$nulls":3},"√","Local Authority | Local Partner"]
[null,78,"Expansion of Al-Ahyouk Health Center ","Construction a building consisting of 3 rooms with an incinerator and its associated facilities, medical equipment, and furniture according to the list.","Qualifying the infrastructure of existing health facilities and equipping them to improve their use","Increase infrastructure expansion at targeted facilities by 30%","√",null,"Al-Wazi'iyah",{"v":90000,"d":"90,000"},null,"√",null,"√",null,{"v":0,"d":"0%"},{"$nulls":3},"√","Local Authority | Local Partner"]
[null,79,"Expansion of Al-Shaqira Health Center ","Building a second floor with associated facilities according to the attached study.","Qualifying the infrastructure of existing health facilities and equipping them to improve their use","Increase infrastructure expansion at targeted facilities by 30%","√",null,"Al-Wazi'iyah",{"v":150000,"d":"150,000"},null,"√",null,"√",null,{"v":0,"d":"0%"},{"$nulls":3},"√","Local Authority | Local Partner"]
[null,80,"Expansion of Al-Muqaise Health Center ","Upgrading to a health center, expanding the incinerator, and building a generator room according to the attached study.","Qualifying the infrastructure of existing health facilities and equipping them to improve their use","Increase infrastructure expansion at targeted facilities by 30%","√",null,"Mawza",{"v":60000,"d":"60,000"},null,null,"√","√",null,{"v":0,"d":"0%"},{"$nulls":3},"√","Local Authority | Local Partner"]
[null,81,"Expansion of Al-Fakika Health Center ","Building a boundary wall and constructing five rooms, a generator room, a guard room, and a Sewage pit according to the attached study.","Qualifying the infrastructure of existing health facilities and equipping them to improve their use","Increase infrastructure expansion at targeted facilities by 30%","√",null,"Maqbana",{"v":160000,"d":"160,000"},null,"√",null,"√",null,{"v":0,"d":"0%"},{"$nulls":3},"√","Local Authority | Local Partner"]
[null,82,"Expansion of Al-Wahiz Health Center ","Building a boundary wall, guard room, incinerator, and 4 service rooms with equipment according to the attached study.","Qualifying the infrastructure of existing health facilities and equipping them to improve their use","Increase infrastructure expansion at targeted facilities by 30%","√",null,"Al-Ma'affer",{"v":55000,"d":"55,000"},null,"√",null,"√",null,{"v":0,"d":"0%"},{"$nulls":3},"√","Local Authority | Local Partner"]
[null,83,"Project: Expansion of Al-Jibziyah Health Unit.","Building a boundary wall, guard room, incinerator, and 4 service rooms with equipment according to the attached study.","Qualifying the infrastructure of existing health facilities and equipping them to improve their use","Increase infrastructure expansion at targeted facilities by 30%","√",null,"Al-Ma'affer",{"v":55000,"d":"55,000"},null,"√",null,"√",null,{"v":0,"d":"0%"},{"$nulls":3},"√","Local Authority | Local Partner"]
[null,84,"Project: Expansion the Dialysis Center at Al-Gomhouri Teaching Hospital.","Expanding the kidney dialysis center to 50 beds according to the attached study.","Qualifying the infrastructure of existing health facilities and equipping them to improve their use","50 dialysis beds are available in the hospital ","√",null,"Al-Jumhuri Hospital/Al-Qahirah District",{"v":655000,"d":"655,000"},null,null,"√","√",null,{"v":0,"d":"0%"},{"$nulls":3},"√","Local Authority | Local Partner"]
[null,85,"Project: Construction of a Medical-Grade Central Laundry and Disinfection at Al-Gomhouri Teaching Hospital.","Building a central laundry unit consisting of one floor with seven rooms and equipment according to the attached study.","Qualifying the infrastructure of existing health facilities and equipping them to improve their use","Completing infrastructure and equipment at 70% of the need","√",null,"Al-Jumhuri Hospital/Al-Qahirah District",{"v":144000,"d":"144,000"},null,null,"√","√",null,{"v":0,"d":"0%"},{"$nulls":3},"√","Local Authority | Local Partner"]
[null,86,"Project: Provision of a 0.55T MRI System for Al-Gomhouri Teaching Hospital","Tesla MRI device, closed MRI system.","Qualifying the infrastructure of existing health facilities and equipping them to improve their use","1 MRI device is available in the hospital","√",null,"Al-Jumhuri Hospital/Al-Qahirah District",{"v":1400000,"d":"1,400,000"},null,null,"√","√",null,{"v":0,"d":"0%"},{"$nulls":3},"√","Local Authority | Local Partner"]
[null,87,"Project: Construction of the Specialized Consultant Clinics - at AlGomhouri Teaching Hospital.","Building consulting clinics above the first floor, consisting of two floors with equipment according to the attached study.","Qualifying the infrastructure of existing health facilities and equipping them to improve their use","Completing infrastructure and equipment at 70% of the need","√",null,"Al-Jumhuri Hospital/Al-Qahirah District",{"v":450000,"d":"450,000"},null,null,"√","√",null,{"v":0,"d":"0%"},{"$nulls":3},"√","Local Authority | Local Partner"]
[null,88,"Project: Construction of Four Educational Halls at Al-Gomhouri Teaching Hospital.","Building four additional halls with its service  associated facilities, for the training center and continuous education on the fifth floor, one of which is large (20m*10m).","Qualifying the infrastructure of existing health facilities and equipping them to improve their use","Completing infrastructure and equipment at 70% of the need","√",null,"Al-Jumhuri Hospital/Al-Qahirah District",{"v":433000,"d":"433,000"},null,null,"√","√",null,{"v":0,"d":"0%"},{"$nulls":3},"√","Local Authority | Local Partner"]
[null,89,"Project: Provision of a Specialized Endoscopy Unit for Al-Gomhouri Teaching Hospital","Providing a specialized diagnostic and therapeutic endoscopy unit, including: Digestive system endoscopes, which also include esophagus endoscopes.\nGenitourinary system endoscopes in addition to gynecological endoscopes. Nose and respiratory system and bronchial endoscopes.\nOrthopedic and knee surgery endoscopes.\nHeart and blood vessel endoscopes. \nKidney stone lithotripsy endoscopes.","Qualifying the infrastructure of existing health facilities and equipping them to improve their use","An integrated endoscope unit is provided in the hospital ","√",null,"Al-Jumhuri Hospital/Al-Qahirah District",{"v":690000,"d":"690,000"},null,null,"√","√",null,{"v":0,"d":"0%"},{"$nulls":3},"√","Local Authority | Local Partner"]
[null,90,"Project: Rehabilitation and Heightening of the Fence - AlThawra General Hospital Authority.","Rehabilitation of the fence and its elevation according to the attached study.","Qualifying the infrastructure of existing health facilities and equipping them to improve their use","Completing infrastructure and equipment at 80% of the need","√",null,"Al-Thawra Hospital Authority/ Salah District",{"v":100000,"d":"100,000"},null,"√",null,"√",null,{"v":0,"d":"0%"},{"$nulls":3},"√","Local Authority | Local Partner"]
[null,91,"Project: Construction and Equipping of a Kitchen at Al-Thawra General Hospital Authority.","Completion of the administration building, kitchen, and its related buildings.","Qualifying the infrastructure of existing health facilities and equipping them to improve their use","Completing infrastructure and equipment at 80% of the need","√",null,"Al-Thawra Hospital Authority/ Salah District",{"v":500000,"d":"500,000"},null,null,"√","√",null,{"v":0,"d":"0%"},{"$nulls":3},"√","Local Authority | Local Partner"]
[null,92,"Project: Construction of Outpatient Clinics, Medical Laboratory at Al-Thawra General Hospital Authority","Warehouses, external clinics, and a laboratory (basement floor - ground floor).","Qualifying the infrastructure of existing health facilities and equipping them to improve their use","Completing infrastructure and equipment at 80% of the need","√",null,"Al-Thawra Hospital Authority/ Salah District",{"v":845476,"d":"845,476"},null,"√",null,"√",null,{"v":0,"d":"0%"},{"$nulls":3},"√","Local Authority | Local Partner"]
[null,93,"Project: Construction of an Emergency Center at Al-Thawra General Hospital Authority","Construction of an emergency center.","Qualifying the infrastructure of existing health facilities and equipping them to improve their use","Completing infrastructure and equipment at 80% of the need","√",null,"Al-Thawra Hospital Authority/ Salah District",{"v":500000,"d":"500,000"},null,"√",null,"√",null,{"v":0,"d":"0%"},{"$nulls":3},"√","Local Authority | Local Partner"]
[null,94,"Project: Construction of a Cardiovascular Department at Khalifa General Hospital","Construction with equipment for diagnostic and therapeutic cardiac catheterization.","Qualifying the infrastructure of existing health facilities and equipping them to improve their use","Completing the infrastructure and equipment at Khalifa General Hospital by 50% of the need","√",null,"Khalifa Hospital: Ash Shamayatayn District",{"v":1300000,"d":"1,300,000"},null,null,"√","√",null,{"v":0,"d":"0%"},{"$nulls":3},"√","Local Authority | Local Partner"]
[null,95,"Project: Rehabilitation of the Eye Surgery Building at Al-Thawra General Hospital Authority","Rehabilitation of the eye surgery building.","Qualifying the infrastructure of existing health facilities and equipping them to improve their use","Completing infrastructure and equipment at 80% of the need","√",null,"Al-Thawra Hospital Authority/ Salah District",{"v":200000,"d":"200,000"},"√",null,null,"√",null,{"v":0,"d":"0%"},{"$nulls":3},"√","Local Authority | Local Partner"]
[null,96,"Project: Rehabilitation of the Burn and Reconstructive Plastic Surgery Center.","Rehabilitation of the burns and cosmetic surgery building.","Qualifying the infrastructure of existing health facilities and equipping them to improve their use","Completing infrastructure and equipment at 80% of the need","√",null,"Al-Thawra Hospital Authority/ Salah District",{"v":400000,"d":"400,000"},"√",null,null,"√",null,{"v":0,"d":"0%"},{"$nulls":3},"√","Local Authority | Local Partner"]
[null,97,"Project: Rehabilitation of the Medical Stores at Al-Thawra General Hospital Authority.","Rehabilitation of the authority's warehouse building.","Qualifying the infrastructure of existing health facilities and equipping them to improve their use","Completing infrastructure and equipment at 80% of the need","√",null,"Al-Thawra Hospital Authority/ Salah District",{"v":500000,"d":"500,000"},"√",null,null,"√",null,{"v":0,"d":"0%"},{"$nulls":3},"√","Local Authority | Local Partner"]
[null,98,"Project: Rehabilitation of the Maintenance and Service Management Buildings at Al-Thawra General Hospital Authority.","Rehabilitation of the Maintenance Building and the Services Management Building.","Qualifying the infrastructure of existing health facilities and equipping them to improve their use","Completing infrastructure and equipment at 80% of the need","√",null,"Al-Thawra Hospital Authority/ Salah District",{"v":200000,"d":"200,000"},"√",null,null,"√",null,{"v":0,"d":"0%"},{"$nulls":3},"√","Local Authority | Local Partner"]
[null,99,"Project: Provision of Medical Equipment and Technology for the Cardiology and Kidney Transplant Center.","DC Shock \nSyringe Pump \nEcho device through the esophagus \nVoltage meter - UPS 45w \n5 computers \nAutomatic washing and central drying \nCardiac Ultrasound \n 4D Ultrasound \n128-slice CT scanner \nCardiac stress test \nVital signs monitor \nSuction device \nDiagnostic and surgical endoscope unit \n200 kW generator \nVideo camera for operations \nDR device (X-ray processing","Qualifying the infrastructure of existing health facilities and equipping them to improve their use","DC Shock \nSyringe Pump \nEcho device through the esophagus \nVoltage meter - UPS 45w \n5 computers \nAutomatic washing and central drying \nCardiac Ultrasound \n 4D Ultrasound \n128-slice CT scanner \nCardiac stress test \nVital signs monitor \nSuction device \nDiagnostic and surgical endoscope unit \n200 kW generator \nVideo camera for operations \nDR device (X-ray processing","√",null,"Cardiology and Kidney Transplant Center / Al-Qahirah District",{"v":885000,"d":"885,000"},"√",null,null,"√",null,{"v":0,"d":"0%"},{"$nulls":3},"√","Local Authority | Local Partner"]
[null,100,"Project: Establishment and Equipping of a Radiotherapy Center at Al-Amal Cancer Center.","Building a radiology center with equipment (128-slice CT scanner) \nDigital mammogram device \n4D Ultrasound device \nMolecular testing unit (pcr) \n Flow Cytometer device.","Improving the diagnostic ability of different tumor conditions"," a radiology center with equipment (128-slice CT scanner) \nDigital mammogram device \n4D Ultrasound device \nMolecular testing unit (pcr) \n Flow Cytometer device.","√",null,"Al-Amal Oncology Center / Al-Qahirah District",{"v":988700,"d":"988,700"},null,"√",null,"√",null,{"v":0,"d":"0%"},{"$nulls":3},"√","Local Authority | Local Partner"]
[null,101,"Project: Enhancing Diagnostic Laboratory Capacities at Al-Amal Cancer Center."," Cobas e-411 device \nHematology 5-Part Analyzer device \nCobas Pure device \n3 of  modern microscopes \nCentral centrifuge for platelet separation \n2 of  Tissue Processor devices \n Fully Automatic Microtome \nCentrifuge \n Provision of special histopathology stains for cancer diagnosis \nProvision of cytology stains for cellular examinations \nPreparing an annual stock covering diagnostic needs \nUpdating quality protocols for using stains\n Provision of intravenous fluids of all types (Normal Saline, Dextrose, Ringer) \nProvision of laboratory reagents for blood and chemical tests and hormones.","Increase the laboratory's diagnostic capacity and improve the accuracy of laboratory results","Cobas e-411 device \nHematology 5-Part Analyzer device \nCobas Pure device \n3 of  modern microscopes \nCentral centrifuge for platelet separation \n2 of  Tissue Processor devices \n Fully Automatic Microtome \nCentrifuge \n Provision of special histopathology stains for cancer diagnosis \nProvision of cytology stains for cellular examinations \nPreparing an annual stock covering diagnostic needs \nUpdating quality protocols for using stains\n Provision of intravenous fluids of all types (Normal Saline, Dextrose, Ringer) \nProvision of laboratory reagents for blood and chemical tests and hormones.","√",null,"Al-Amal Oncology Center / Al-Qahirah District",{"v":382716,"d":"382,716"},null,"√",null,"√",null,{"v":0,"d":"0%"},{"$nulls":3},"√","Local Authority | Local Partner"]
[null,102,"Providing medical equipment, supplies and medicines to Al Amal Cancer Treatment Center","40 of Chemotherapy chairs \n40 of beds for departments \n Chemotherapy preparation departments \n 4 of  medication storage refrigerators \n1 of ambulance for patient transport \n200 kW generator \nIntegrated solar energy system \nBuilding a comprehensive hangar on the center's roof \nTriple Blood Bags\nOstomy bag\nProviding supportive medications during chemotherapy.\nProviding essential antibiotics in different concentrations (5% - 20% - 25%) - Providing a cold chain system and appropriate storage according to pharmaceutical quality standards \n \"Benzene/Diesel\" for generators \n storage tanks\n internal distribution system.","Raising the center's operational capacity and improving the quality of oncology services - ensuring the availability of essential vital supplies and reducing patient suffering","40 of Chemotherapy chairs \n40 of beds for departments \n Chemotherapy preparation departments \n 4 of  medication storage refrigerators \n1 of ambulance for patient transport \n200 kW generator \nIntegrated solar energy system \nBuilding a comprehensive hangar on the center's roof \nTriple Blood Bags\nOstomy bag\nProviding supportive medications during chemotherapy.\nProviding essential antibiotics in different concentrations (5% - 20% - 25%) - Providing a cold chain system and appropriate storage according to pharmaceutical quality standards \n \"Benzene/Diesel\" for generators \n storage tanks\n internal distribution system.","√",null,"Al-Amal Oncology Center / Al-Qahirah District",{"v":1186238,"d":"1,186,238"},null,"√",null,"√",null,{"v":0,"d":"0%"},{"$nulls":3},"√","Local Authority | Local Partner"]
[null,103,"Project: Developing a management and treatment system for hazardous medical waste at Al-Amal Cancer Center.","Providing a medical waste incinerator operating at a temperature of 1000°C, compliant with safety standards.\nProviding a medical waste transport vehicle equipped with a hydraulic lift.\nPurchasing a 10 kW generator.\nSupplying a special room for medical waste collection with temporary storage equipment.\nProviding waste sorting tools within departments.\nEstablishing a central collection point with a treated floor, sewage, and thermal insulation.\nTraining medical and technical staff on sorting, storage, transport, and safety procedures.\nEquipping the internal transport system (closed transport carts and designated containers).\nPreparing SOPs.\nImplementing an internal awareness campaign to ensure compliance in all departments.","Raising the occupational safety standards to protect staff from the risks associated with hazardous medical waste.\nMitigating environmental pollution resulting from improper medical waste disposal.\nAchieving 100% compliance in clinical waste segregation systems across all departments.\nImproving the working environment at Al-Amal Center in alignment with international health quality standards.\nReducing medical waste management violations to zero.\nStrengthening institutional readiness for quality accreditation (e.g., ISO 14001 certification).","# of employees trained in waste management (target: 100% of employees).\n% Compliance rate with correct waste sorting in departments (target: > 95%).\nQuantity of waste treated with incinerator per month (tons/month).\n# of violations or accidents related to waste handling (target: zero).\nReadiness and operation of the new incinerator (indicator: 100% operational during operating hours).\n % improvement in indoor environmental safety (according to the Quality Committee report)","√",null,"Al-Amal Oncology Center / Al-Qahirah District",{"v":127510,"d":"127,510"},null,"√",null,"√",null,{"v":0,"d":"0%"},{"$nulls":3},"√","Local Authority | Local Partner"]
[null,104,"Project: Provision of a Mobile Clinic for Early Detection of Breast Cancer in Taiz – Alamal Center","Purchasing and equipping a mobile clinic fully equipped for radiology and clinical examinations.\nDigital mammogram device integrated within the clinic.\nImage storage and analysis unit connected to the PACS system.\nMedical equipment for clinical examination (examination beds, examination tools, waiting chairs for patients).\nSmall generator inside the clinic to ensure continuous operation.\nTraining medical and technical staff on the operation and maintenance of mobile devices.\nCommunity awareness campaign in cooperation with the local community to encourage women to screen early.","Expanding outreach to remote and rural areas to provide early breast cancer screening services.\nIncreasing early detection rates while reducing the incidence of late-stage diagnoses.\nRaising community awareness regarding the critical importance of early breast screening.\nSupporting Al-Amal Oncology Center in scaling its services to reach patients beyond the central facility.","# of examinations performed annually in the mobile clinic.\n# of cases detected early.\n% of targeted women who benefited from screening.\n# of medical and technical personnel trained to operate the clinic.\nCovering the number of villages or areas benefiting from the service.","√",null,"Taiz Governorate",{"v":175000,"d":"175,000"},null,"√",null,"√",null,{"v":0,"d":"0%"},{"$nulls":3},"√","Local Authority | Local Partner"]
["Women's Development "]
[null,1,"Establishing a data and information management system","Preparing regulations \nBuilding a comprehensive and unified women's database accessible to everyone \nEstablishing a networking system between women's development departments at the three levels (ministry, governorate, and district) to facilitate data flow \nProviding necessary technical equipment \nProviding a specialized technical cadre \nTraining and qualifying the cadre.","Enhancing the quality of reliable information on the status of women in the governorate and directorates by 30% during the plan period","1 data and information management system has been established and equipped with the necessary provisions","√",null,"Governorate Center - Urban and Liberated Rural Districts",{"v":150000,"d":"150,000"},"√",null,null,"√",null,{"v":0,"d":"0%"},{"$nulls":3},"√","Local Authority | Local Partner"]
[null,2," Establishing a government media center on women and children's issues ","Office furniture, information and administrative systems, training workshops, and training courses\nQualified staff\nReporters \nJournalists \nMonthly subscription fees for the website.","Mitigating the prevalence of violence against women and children.\nAdvocating against critical social issues affecting women and children, including child marriage, harassment, and digital extortion.\nSupporting and advocating for women to reach decision-making positions     \n Reducing the spread of child labor\n","1 government media center for women and children's issues was established, rehabilitated, and provided with tools","√","√","Governorate Center",{"v":150000,"d":"150,000"},"√",null,null,"√",null,{"v":0,"d":"0%"},{"$nulls":3},"√","Local Authority | Local Partner"]
[null,3,"Project: Establishing a Training, Rehabilitation, and Psychosocial Support Center for Working Women.","Programs and training courses, workshops, seminars, and conferences \nTraining and laboratory hall \nOffice furniture, information and administrative systems, and training equipment for 1,200 women.","Enhancing women’s cognitive empowerment to build their capacity for problem-solving by applying evidence-based best practices.\nStrengthening women’s productive efficiency to enhance their competitive standing within the community and the labor market.\nPromoting the sustainable engagement of women in development programs to ensure long-term socio-economic impact.","1 training, rehabilitation and psychological support center for working women was established","√","√","Governorate Center",{"v":150000,"d":"150,000"},"√",null,null,"√",null,{"v":0,"d":"0%"},{"$nulls":3},"√","Local Authority | Local Partner"]
["Protection"]
[" Integrated Basic and Social Services",1,"Project: Restoration and Furnishing of Social Care Homes and Centers.","Restoration and furnishing of social care buildings and centers.","Child protection and care  ","Furnished and equipped buildings ",null,"√","Al-Mudhaffar District",{"v":60000,"d":"60,000"},null,"√",null,"√",null,{"v":0,"d":"0%"},{"$nulls":3},"√","Local Authority | Local Partner"]
[null,2,"Program for the Support and Protection of Survivors of Gender-Based Violence (GBV).","Training - Economic empowerment - Legal protection and consultations.","Protecting women from violence and providing training and empowerment to abused women","Implementing training and economic empowerment for 100 abused women and 2,000 women provided  with psychosocial support services and programs, legal services, and case management services",null,"√"," Al-Qahirah District - Al-Mudhaffar District - Salah  District",{"v":40000,"d":"40,000"},null,"√",null,"√",null,{"v":0,"d":"0%"},{"$nulls":3},"√","Local Authority | Local Partner"]
[null,3,"Community awareness of the dangers of mines and war remnants","Awareness programs - Accompanied promotional activity.","Protecting the lives of citizens and mitigating the effects of mines and remnants of war on the lives of residents","Implementing 20 awareness programs  ",null,"√","All affected districts",{"v":50000,"d":"50,000"},null,"√",null,"√",null,{"v":0,"d":"0%"},{"$nulls":3},"√","Local Authority | Local Partner"]
[null,4,"Project: Rehabilitation, Furnishing, and Equipping of the Social Affairs and Labor Office in Taiz.","Desks + chairs + computers + printers + electricity generators + etc..","Enabling the Social Affairs Office to provide all its services and improve the services provided","Furnished and equipped building","√",null,"Al-Mudhaffar District",{"v":100000,"d":"100,000"},null,"√",null,"√",null,{"v":0,"d":"0%"},{"$nulls":3},"√","Local Authority | Local Partner"]
[null,5,"Project: Rehabilitation and Equipping of the Institute for the Development of People with Special Needs (Deaf and Blind)"," Rehabilitation, Furnishing","Providing an appropriate educational environment for people with special needs ","Furnished and equipped institute",null,"√","Al-Mudhaffar District",{"v":100000,"d":"100,000"},null,"√",null,"√",null,{"v":0,"d":"0%"},{"$nulls":3},"√","Local Authority | Local Partner"]
[null,6,"Psychosocial support project for children and case management services through community centers","Psychosocial support services for children and case management services through community centers.","Implementing specialized case management systems to identify, assess, and support the needs of highly vulnerable and at-risk children.","30,000 boys and girls receive psychological and social services, legal services and case management services in the targeted directorates",null,"√","Al-Qahirah, Al-Mudhaffar, Salah, Al-Mawasit, Ash Shamayatayn, Jabal Habashi, Al-Misrakh, Al-Ma'affer, Al-Silw, Al-Mokha, Mawza', Al-Wazi'iyah, Dhubab",{"v":31000,"d":"31,000"},null,"√",null,"√",null,{"v":0,"d":"0%"},{"$nulls":3},"√","Local Authority | Local Partner"]
[null,7,"Project: Child Protection and Psychosocial Support Program (PSS) through the Education Sector.","Implementing psychosocial support activities for children and case management services - Awareness raising on the dangers of landmines and war remnants.","Implementing specialized case management systems to identify, assess, and support the needs of highly vulnerable and at-risk children.","24,000 boys and girls receive psychological and social services, legal services, case management services, life skills, and awareness of the dangers of mines and carob waste in the targeted directorates",null,"√","Jabal Habashi - Al-Misrakh",{"v":42000,"d":"42,000"},null,"√",null,"√",null,{"v":0,"d":"0%"},{"$nulls":3},"√","Local Authority | Local Partner"]
["The Executive Unit for IDPs (ExU)"]
[" Integrated Basic and Social Services",1,"Project: Institutional Support and Capacity Building for the Executive Unit for IDPs (ExU) Team.","Training the executive team in camp management, crisis and emergency management, effective communication, and data collection and analysis - Equipping the office with furniture, equipment, and stationery.","Strengthening the technical expertise and operational skills of the Executive Unit team, while providing the necessary logistical and administrative support to enhance their institutional effectiveness.","Number of trained individuals (70)","√",null,"Al-Mudhaffar, Salah, Al-Qahirah, Ash Shamayatayn, Al-Ma'afir, Al-Misrakh, Jabal Habashi, Maqbanah, Sabir Al-Mawadim, Mawza', Al-Mukha, Dhubab, Al-Wazi'iyah, Al-Mawasit, Mashra'ah Wa Hadnan, At Ta'iziyah, and Al-Silw.",{"v":100000,"d":"100,000"},null,null,"√","√",null,{"v":0,"d":"0%"},{"$nulls":3},"√","Local Authority | Local Partner"]
[null,2,"Project: Provision of Safe and Adequate Shelter for IDPs and Returnees – Phase I","Building 500 residential units for IDPs consisting of two rooms, a bathroom, and a kitchen - Managing and coordinating IDPs camps - Rehabilitating 800 partially damaged houses - Providing shelter materials for 5,000 displaced families - Paying rent for 1,000 displaced families whose houses are threatened and who are the most vulnerable and unable to pay rent - Providing 600 transitional shelters for displaced families - Providing emergency shelter and maintenance for 1,500 displaced families - Providing equipment and building protection walls for displaced person camps for 3,000 families.","Improving living conditions and restoring human dignity for displaced households by providing safe, sustainable shelter, thereby promoting psychosocial well-being and social stability for both IDPs and returnees.","500 residential units for IDPs consisting of two rooms, a bathroom, and a kitchen \n#  of camps managed and coordinated: 144 camps\nImproving the level of security and safety in camps by 85% of camps\nIncreasing the efficiency of service provision: 90% of camps\n( 800) partially damaged homes are eligible\nShelter materials for displaced people is Provided to (5000) families\nA rent to families threatened with eviction, is paid to  (1000) displaced and most vulnerable families  \n600 transitional shelters\nEmergency shelter and shelter maintenance is Provided  for (1500) displaced families\nEquipment and building firewalls  is Provided (3000) displaced persons camp","√","√","Salah, Al-Mudhaffer ,Al-Qahirah, Al-Ma'affer,  Al-Misrakh,  Jabal Habashi, Al-Mokha, Dhubab, Maqbana , Al-Wazi'iyah,  Ash Shamayatayn, Sabir Al-Mawadim , Mashra'ah Wa Hadnan , Al-Silw, Mawza,  Al-Mawasit",{"v":9745000,"d":"9,745,000"}," ",null,"√","√",null,{"v":0,"d":"0%"},{"$nulls":3},"√","Local Authority | Local Partner"]
[null,3,"Economic empowerment and livelihoods for IDPs  and returnees","Organizing training courses in professional skill fields (Tailoring- carpentry - cheese making - agriculture - plumbing - hairdressing - engraving - etc.) - Establishing small projects to support IDPs in founding small businesses - Providing small interest-free loans to help families start their projects.","Ensuring the fulfillment of essential nutritional needs for displaced households to prevent food insecurity.\n\nEquipping displaced populations with marketable vocational skills to enhance their employment opportunities.\n\nProviding sustainable income-generating activities to promote self-reliance among displaced communities.","Implementing (50) training courses in professional skills \nEstablishing small projects and providing loans to 5,000 families ","√",null,"Salah, Al-Mudhaffer ,Al-Qahirah, Al-Ma'affer,  Al-Misrakh,  Jabal Habashi, Al-Mokha, Dhubab, Maqbana , Al-Wazi'iyah,  Ash Shamayatayn, Sabir Al-Mawadim , Mashra'ah Wa Hadnan , Al-Silw, Mawza,  Al-Mawasit, At Ta'iziyah",{"v":6800000,"d":"6,800,000"},null,null,"√","√",null,{"v":0,"d":"0%"},{"$nulls":3},"√","Local Authority | Local Partner"]
[null,4,"WASH Services Project for IDP Camps and Displacement Sites","Improving water sources by providing 100 water tanks - Building 1,000 toilets - Maintaining 2,000 toilets - Conducting 142 awareness campaigns on personal hygiene and the importance of clean water - Distributing 10,000 personal hygiene kits - Connecting the water network for the AlSha'aooba project for temporary residential units in Wadi Obad, AlSha'aooba , AlMa'affer District - Rehabilitating the damaged water network in Al-Harthy and Al-Haraziya sites, Salah District - Rehabilitating the collecting tank in the Al-Jamaliyah Al-Wosta site.","Ensuring access to safe and sufficient drinking water for all camp residents.\nImproving hygiene standards and mitigating the risks of waterborne diseases.\nEnhancing regional water services through the rehabilitation and modernization of damaged water networks.","Providing clean drinking water to the camps\nProviding bathrooms \nImplementing (142) workshops and awareness campaigns\nDistributing cleaning bags \nWater network rehabilitation",null,"√","All internally displaced persons (IDP) sites across the targeted districts, comprising a total of 142 camps and settlements.",{"v":228030,"d":"228,030"},null,null,"√","√",null,{"v":0,"d":"0%"},{"$nulls":3},"√","Local Authority | Local Partner"]
[null,5,"Project: Protection of Internally Displaced Persons (IDPs) and Enhancing Their Safety and Security.","Providing documentation services (birth certificates - personal ID cards - death certificates) - Creating safe spaces and providing psychological support - Providing individual and group legal consultations for displaced persons and returnees - Organizing 50 workshops to educate displaced persons on their legal rights - Providing emergency cash assistance for protection cases - Protecting network members in displaced camps and training them on their tasks - Mine clearance and awareness on mine risks.","Ensuring that displaced persons have access to essential legal documentation to safeguard their rights.\nRaising legal awareness among displaced populations, empowering them to claim and exercise their rights.","Displaced persons obtain documents\nImplementation of (50) workshops \nObtaining cash assistance \nFind members of a protection network\nDemining",null,"√","Salah, Al-Mudhaffer ,Al-Qahirah, Al-Ma'affer,  Al-Misrakh,  Jabal Habashi, Al-Mokha, Dhubab, Maqbana , Al-Wazi'iyah,  Ash Shamayatayn, Sabir Al-Mawadim , Mashra'ah Wa Hadnan , Al-Silw, Mawza,  Al-Mawasit, At Ta'iziyah",{"v":425945,"d":"425,945"},null,null,"√","√",null,{"v":0,"d":"0%"},{"$nulls":3},"√","Local Authority | Local Partner"]
[null,6,"Improving the level of care and public health for IDPs ","Establishing 10 mobile medical clinics in camps that provide primary healthcare services to IDPs  gatherings - Organizing vaccination campaigns for children and adults against infectious diseases in camps and IDPs   gatherings - 50 sessions for psychological support and consultations for IDPs  - Organizing 50 workshops and campaigns on public health and personal hygiene - Distributing basic medicines and medical supplies to IDPs  in camps and medical gathering sites near the camps - Providing healthcare services for mothers and children, including periodic examinations for medical centers near the camps - Establishing ambulance units to provide urgent care for IDPs  to medical centers near the camps.","Ensuring that displaced populations have access to primary healthcare services and disease prevention programs.","Providing (10) medical clinics \nImplementing vaccination campaigns\nProviding mental health services\nImplementing (50) health awareness campaigns\nDistribution of essential medicines\nProviding motherhood and childhood services \nProvides health units",null,"√","Salah, Al-Mudhaffer ,Al-Qahirah, Al-Ma'affer,  Al-Misrakh,  Jabal Habashi, Al-Mokha, Dhubab, Maqbana , Al-Wazi'iyah,  Ash Shamayatayn, Sabir Al-Mawadim , Mashra'ah Wa Hadnan , Al-Silw, Mawza,  Al-Mawasit, At Ta'iziyah",{"v":760000,"d":"760,000"},null,null,"√","√",null,{"v":0,"d":"0%"},{"$nulls":3},"√","Local Authority | Local Partner"]
[null,7,"Improving the level of education for displaced children in sites and camps","Establishing study classrooms in schools near camps or temporary classrooms in remote camps for students - Distributing books, school bags, and uniforms to students - Organizing 12 workshops to train volunteer teachers on modern teaching methods and provide teachers with monthly incentives - Implementing compensatory  and accelerated education programs for displaced students - Establishing psychological and social support programs for displaced students - Organizing 50 awareness workshops for parents on the importance of children's education and enrollment in education - Providing transportation and food allowances for displaced students.","Providing a safe and supportive learning environment for displaced children to ensure the continuity of their education amidst challenging circumstances.","Provide classrooms\n Distributing books, school supplies and school uniforms to students.\nHolding (12) workshops to train volunteer teachers on modern teaching methods, supporting volunteer teachers, and monthly incentives.\nImplementing compensatory and accelerated education programs for displaced students\nEstablishing psychological and social support programs for displaced students.\nHolding (50) awareness workshops for parents on the importance of children's education and enrollment in education.\nProviding transportation and food allowance for displaced students",null,"√","Salah, Al-Mudhaffer ,Al-Qahirah, Al-Ma'affer,  Al-Misrakh,  Jabal Habashi, Al-Mokha, Dhubab, Maqbana , Al-Wazi'iyah,  Ash Shamayatayn, Sabir Al-Mawadim , Mashra'ah Wa Hadnan , Al-Silw, Mawza,  Al-Mawasit, At Ta'iziyah",{"v":380000,"d":"380,000"},null,null,"√","√",null,{"v":0,"d":"0%"},{"$nulls":3},"√","Local Authority | Local Partner"]
["Antiquities  "]
[" Integrated Basic and Social Services",1,"Urgent Project for the Structural Stabilization of Cairo Castle Walls","Restoration of walls and towers - Restoration and reconstruction of destroyed walls - Cleaning squares and debris removal - Excavation for archaeological artifacts under the castle's ruins - Rebuilding the castle museum.","Preserving the historical and archaeological landmarks.","Rehabilitation of external walls (2), towers (6), wall reconstruction (3), and cleaning of eastern, western, northern, and southern plazas (17).\n\nExcavation of artifacts (850 pieces), supply of artifacts to museum warehouses (850 pieces), removal of debris (6 tons), and reconstruction/restoration of the Castle Museum (1).",null,"√","Old Taiz City - Al-Mudhaffar District",{"v":1500000,"d":"1,500,000"},"√",null,null,"√",null,{"v":0,"d":"0%"},{"$nulls":3},"√","The General Authority for Antiquities & Museums (Taiz Branch)"]
[null,2,"Project: Furnishing and Equipping the National Museum of Taiz.","Training and qualifying museum staff - Provision of museum display tools - Powering the museum with electricity - Documenting and restoring archaeological artifacts - Qualifying museum storage facilities - Providing the museum with protection and safety systems.","Preserving archaeological landmarks while enhancing staff technical capacities and professional skills.","Training staff in museum display, documentation, and restoration; providing museum display equipment; supplying power generators and solar power systems; restoration of artifacts; warehouse development; providing security systems (control room + 10 alarm and monitoring devices).","√",null,"Salah District - Al-Ordi",{"v":170000,"d":"170,000"},null,"√",null,"√",null,{"v":0,"d":"0%"},{"$nulls":3},"√","Local Authority | Local Partner"]
[null,3,"Project: Rehabilitation of the General Department of Antiquities Building.","Restoration and qualification - Providing office furniture - Providing an electric generator - Providing a solar energy system - Providing work tools (laptop + printer).","Optimizing service delivery and advancing operational standards and institutional performance.","Rehabilitated/furnished building; power generator and solar system installation","√",null,"Salah District - Al-Ordi",{"v":16000,"d":"16,000"},null,"√",null,"√",null,{"v":0,"d":"0%"},"√","√",null,"√","Local Authority | Local Partner"]
[null,4,"Project: Restoration and Rehabilitation of the Fine Arts Museum in Taiz.","Debris removal - Restoration and rebuilding of walls - Restoration and rebuilding of roofs.","Preserving the historical and archaeological landmarks.","waste removal outside the city (6 tons); reconstruction of walls (12) and windows/doors (11); restoration of roofs","√",null,"Salah District - Al-Ordi",{"v":85000,"d":"85,000"},null,"√",null,"√",null,{"v":0,"d":"0%"},{"$nulls":3},"√","Local Authority | Local Partner"]
[null,5,"Emergency project for Al-Mudhaffer Mosque","Site discovery work for foundations - Repair and maintenance work for load-bearing pillars for domes - Dome maintenance.","Preserving the historical and archaeological landmarks."," restoration/maintenance of load-bearing pillars for domes (6) and domes (5).",null,"√","Old Taiz City - Al-Mudhaffar District",{"v":93140,"d":"93,140"},null,"√",null,"√",null,{"v":0,"d":"0%"},{"$nulls":3},"√","Local Authority | Local Partner"]
[null,6,"Project: Restoration of the Historic \"Ahl Al-Kahf\" Mosque ","Site discovery work for foundations - Repair and maintenance work for walls - Repair and maintenance work for the mosque roof - Minaret restoration work.","Preserving the historical and archaeological landmarks.","Rehabilitated walls\nRehabilitated roof\nRehabilitated lighthouse","√",null,"Sabir Al-Mawadim District",{"v":164635,"d":"164,635"},null,"√",null,"√",null,{"v":0,"d":"0%"},{"$nulls":3},"√","Local Authority | Local Partner"]
[null,7,"Project: Restoration of the Historic \"Al-Husayniya\" Dome in the Old City of Taiz.","Site discovery work for foundations - Repair and maintenance work for internal and external walls - Repair and maintenance work for the dome - Work on the site around the dome ","Preserving the historical and archaeological landmarks.","4 Rehabilitated walls \nRehabilitated dome","√",null,"Old Taiz City - Al-Mudhaffar District",{"v":144360,"d":"144,360"},null,"√",null,"√",null,{"v":0,"d":"0%"},{"$nulls":3},"√","Local Authority | Local Partner"]
[null,8,"Restoration of the Historic Al-Mahwali Dome"," Restoration and reconstruction of external and internal walls and the dome roof ","Preserving the historical and archaeological landmarks.","Rehabilitated dome",null,"√","Mawza",{"v":145300,"d":"145,300"},null,"√",null,"√",null,{"v":0,"d":"0%"},{"$nulls":3},"√","Local Authority | Local Partner"]
[null,9,"Restoration of the Historic Ba Asa'ad Dome."," Restoration and reconstruction of external and internal walls and the dome roof ","Preserving the historical and archaeological landmarks.","Rehabilitated dome",null,"√","Mawza",{"v":167956,"d":"167,956"},null,"√",null,"√",null,{"v":0,"d":"0%"},{"$nulls":3},"√","Local Authority | Local Partner"]
["Culture",{"$nulls":20},"Cultural livelihoods projects have been transitioned to the Livelihoods and Economic Empowerment Cluster."]
[" Integrated Basic and Social Services",1,"Equipping and furnishing the Culture Office and developing the organizational governance of the office and its sub-offices ","Office furniture, musical instruments, photography equipment and computers, Audio Equipment unit - internet - Developing administrative and organizational literature and office documents - Digital furnishing - Developing a strategy for the Culture Office - Linking the Culture Office between the main office and its sub-districts - Launching a Guide of cultural service providers in Taiz Governorate.","Enhancing the workplace environment and overall institutional performance.","Rehabilitated Building","√",null,"All Districts",{"v":76500,"d":"76,500"},null,"√",null,"√",null,{"v":0,"d":"0%"},null,"√",null,"√","Local Authority | Local Partner"]
[null,2," Administrative and technical qualification of the Culture Office employees and its sub-offices","Theoretical and practical training.","Improving administrative efficiency and elevating the quality of cultural programs and community-based activities.\nStrengthening institutional capacity in strategic planning, implementation, and monitoring.","# of employees who received technical administrative training %  of implementation of developed administrative systems and procedures \nlevel of beneficiaries' satisfaction with cultural services through questionnaires","√",null,"All Districts",{"v":35000,"d":"35,000"},null,null,"√","√",null,{"v":0,"d":"0%"},{"$nulls":3},"√","Local Authority | Local Partner"]
[null,3,"Restoring and Revitalizing Cultural Spaces in Taiz.","\nRehabilitation of the Cultural Center: rehabilitation of the theatrical and cinematic Exhibition Hall + Equipping a training space for youth (writing - photography - music) + Establishing a small library inside the center for reading and books borrowing \n\n Renovation of Taiz Cinema (renovating the cinema and the Exhibition Hall) + Launching the cinema club with weekly screenings \n\n\nRestoration of the Taiz Radio archive (restoring the archive and converting it into high-quality audio files) + Creating a database.","Revitalizing the cultural landscape in Taiz.\nSystematizing and professionalizing cultural and artistic production.\nReviving and archiving Taiz’s broadcast heritage.","The cultural center has been restored and rehabilitated \n Taiz Cinema has been restored and rehabilitated\nTaiz Radio archives have been restored and rehabilitated","√",null,"Governorate Center",{"v":1500000,"d":"1,500,000"},null,null,"√","√",null,{"v":0,"d":"0%"},{"$nulls":3},"√","‎ Basement Cultural Foundation"]
[null,4,"Project: Provision of Musical Instruments for the Culture Office Ensemble","Provision of musical instruments, along with training and capacity building for the musical band members.","Enhancing the artistic work with musical instruments and a band trained to play all instruments ","sophisticated artwork ","√",null,"The Culture Office ",{"v":50000,"d":"50,000"},null,null,"√","√",null,{"v":0,"d":"0%"},null,"√","√",null,"Local Authority | Local Partner"]
[null,5,"Project: Supporting Active Cultural Institutions.","Provision of operational and project financial grants, administrative , financial technical capacity-building programs, and provision of shared workspaces and technical resources.","Ensuring the sustainability of active cultural institutions, increasing their operational capacity, and diversifying the quality and volume of locally produced cultural activities.","# of cultural institutions supported - Percentage of safe, purposeful cultural activities \n# of cultural workers supported \n","√",null,"All Districts",{"v":65000,"d":"65,000"},null,"√",null,"√",null,{"v":0,"d":"0%"},{"$nulls":3},"√","Local Authority | Local Partner"]
[null,6,"Project: The Arts and Theatre Troupe  of the Culture Office","Training and building theatrical and artistic capabilities - Producing theatrical performances - Providing equipment and basic theater machines- Preparing training spaces and rehearsals - Executing performances and social interaction - Cultural and artistic documentation and media for performances - Building cultural and technical partnerships - Sustainability, monitoring, and evaluation.","Reinvigorating the theatrical and artistic scene in Taiz Governorate.\nBuilding the capacity of young artists to produce sustainable theatrical performances.\nPromoting cultural and community awareness through theater and the performing arts.","# of theatrical and artistic performances performed\n# of participating artists and trainees\nlevel of audience attendance and interaction with the performances\n# of training workshops performed.\nQuality of presentations as assessed by specialists\nvolume of media coverage and documentation provided","√",null,"All Districts",{"v":40000,"d":"40,000"},null,"√",null,"√",null,{"v":0,"d":"0%"},null,"√",null,"√","Local Authority | Local Partner"]
[null,7,"Project: Support for Handicrafts, Textiles, and Cultural and Creative Industries (CCIs) for Women in Taiz.","Selection of crafts and textiles, workshops on quality and marketing, organizing exhibitions and sales markets for handicrafts, and linking crafts to external markets.","Promoting the economic empowerment of women in Taiz, preserving traditional handicrafts and textiles, and creating sustainable income-generating opportunities for female artisans.","It is measured by the number of female craftsmen participating, total sales volume (a direct economic indicator), # of new products developed\n% of female craftsmen who have obtained employment/sales contracts.","√",null,"All Districts",{"v":58000,"d":"58,000"},null,"√",null,"√",null,{"v":0,"d":"0%"},null,"√","√","√","Mayyon Foundation for Culture and Media"]
[null,8,"Taiz International Book Fair","Creative writing workshops - Book fair - Participation of Arab publishing houses - Literary sessions - Printing of new publications.","Enhancing Taiz Governorate’s cultural profile at both local and international levels.\n\nFacilitating youth employment and stimulating local markets for cultural products.\n\nProviding institutional support to writers and literary figures.","# of new publications\n# of participating offices\n# of addresses displayed ","√",null,"Governorate Center",{"v":42500,"d":"42,500"},null,"√",null,"√",null,{"v":0,"d":"0%"},null,"√","√","√","Local Authority | Local Partner"]
[null,9,"Cultural Awareness Project  ","Preparation of digital and printed awareness content, implementation of awareness workshops in schools and universities, and establishment of a hotline for psychological and legal support, in addition to training community cadres on digital guidance.","Mitigating the prevalence of Digital exploitation, raising awareness of digital risks, and empowering victims to report incidents and access essential support services.","Increased awareness of digital risks (measured through pre- and post-test assessments).\n# of beneficiaries reached through workshops and campaigns.\n# of digital reports and incidents successfully resolved.","√",null,"All Districts",{"v":30000,"d":"30,000"},null,"√",null,"√",null,{"v":0,"d":"0%"},null,"√","√","√","Local Authority | Local Partner"]
[null,10,"Project: Reviving and Preserving Traditional Knowledge for Irrigation Canal Management in Taiz Governorate","Inventory and documentation of the historical aspect of water channels - Rehabilitation of water channels","Promoting environmental stewardship and integrating cultural heritage into sustainable development frameworks.","Surveying and documenting the historical aspect of water canals.\nRestoration and rehabilitation of water canals.","√",null,"All Districts",{"v":150000,"d":"150,000"},null,null,"√","√",null,{"v":0,"d":"0%"},null,null,"√","√","Local Authority | Local Partner"]
[null,11,"Advocacy Through Art Project","\"Peace for Taiz\" Festival (joint musical performances - short films on coexistence - drawing workshops for children - dialogue sessions between artists and activists) \n\n\"Stories from Taiz\" (training youth to produce short documentary films expressing tolerance and coexistence in Taiz city - documenting local coexistence stories and initiatives that have achieved tangible impact in Taiz city) \n\n\"The Street Art for Peace\" (short theater performances in public areas- murals on Taiz streets expressing the coexistence , women's rights and rejecting violence - participation of youth artists and local institutions) \n\n\"My Art of My Country \", (Stage):  (annual/semi-annual event modeled after TEDX, providing an event for creative groups, artists, and youth to present 5-7 minute performances about their artistic project and its social impact)","Catalyzing positive societal change by leveraging the arts as a strategic tool for advocacy, awareness-raising, and influencing priority humanitarian and development issues.","# of artistic works produced.\n# of events conducted.\n# of participating artists and youth.\n% increase in community awareness regarding targeted issues.","√",null,"All Districts",{"v":100000,"d":"100,000"},null,"√",null,"√",null,{"v":0,"d":"0%"},{"$nulls":3},"√","‎ Basement Cultural Foundation"]
[null,12," (Voice of Development) Project: Enhancing the Role of Journalism in Sustainable Development -Taiz Governorate","Training and qualification - Network for journalists - Specialized platform - Discussion sessions bringing together journalists, local authority officials, and community representatives.","Strengthening professional journalism to effectively advocate for and support sustainable development goals.","Enhancing the knowledge and capabilities of 24 journalists (50% female) in Taiz Governorate regarding the principles and tools of development journalism.\nEmpowering journalists to play an effective role in monitoring and evaluating the Social and Economic Development Plan in Taiz Governorate during 2026.\nEstablishing a \"Journalists for Sustainable Development Network\" in Taiz to foster collaboration and knowledge exchange among journalists in this field.\nCreating a specialized \"Development Media Unit\" and launching a digital media platform under the name \"Voice of Development) \" to cover sustainable development issues in Taiz Governorate.\nFacilitating local community access in Taiz to information regarding development projects and their impact on their lives.\nContributing indirectly to promoting peace opportunities in Yemen by prioritizing a narrative of development and peace over a narrative of war and hatred.","√",null,"Taiz City ( Al-Qahirah, Al-Mudhaffar, Salah)",{"v":21440,"d":"21,440"},"√"," ",null,"√",null,{"v":0,"d":"0%"},{"$nulls":3},"Friedrich Ebert","Press House"]

{"sheet":"summary of 2026 priorities","index":1,"n_rows":19,"n_cols":8,"rows_kept":19,"merged":[[0,0,0,7],[1,0,1,7],[2,0,3,1],[2,2,2,3],[2,4,2,5],[2,6,2,7],[4,0,17,0],[18,0,18,1]]}
[]
["\nSummary   "]
["Sector / Pillar ",null,"Emergency Projects",null,"Developmental Projects",null,"Total"]
[null,null,"Number","Cost $","Number","Cost $","Number","Cost $"]
["Pillar 3: Integrated Basic and Social Services","Local Corporation for Water & Sanitation",15,{"v":2406342,"d":"2,406,342"},29,{"v":12217211,"d":"12,217,211"},{"$f":"SUM(C5,E5)","v":44},{"$f":"SUM(D5,F5)","v":{"v":14623553,"d":"14,623,553"}}]
[null,"Rural Water",34,{"v":7425784,"d":"7,425,784"},61,{"v":8385281,"d":"8,385,281"},{"$f":"SUM(C6,E6)","v":95},{"v":15811065,"d":"15,811,065"}]
[null,"Public Works and Roads",1,{"v":48297509,"d":"48,297,509"},50,{"v":18906791,"d":"18,906,791"},51,{"v":67204300,"d":"67,204,300"}]
[null,"Energy ",0,0,6,{"v":53335888,"d":"53,335,888"},6,{"v":53335888,"d":"53,335,888"}]
[null,"Cleaning and Improvement Fund",1,{"v":45000,"d":"45,000"},6,{"v":4152364,"d":"4,152,364"},7,{"v":4197364,"d":"4,197,364"}]
[null,"General Education",2,{"v":857871,"d":"857,871"},15,{"v":10662790,"d":"10,662,790"},{"$f":"SUM(C10,E10)","v":17},{"$f":"SUM(D10,F10)","v":{"v":11520661,"d":"11,520,661"}}]
[null,"Technical Education",0,0,7,{"v":2883570,"d":"2,883,570"},7,{"v":2883570,"d":"2,883,570"}]
[null,"Higher Education",0,0,8,{"v":1975604,"d":"1,975,604"},8,{"v":1975604,"d":"1,975,604"}]
[null,"Health",3,{"v":187000,"d":"187,000"},101,{"v":29963000,"d":"29,963,000"},104,{"v":30150000,"d":"30,150,000"}]
[null,"Women's Development",2,{"v":300000,"d":"300,000"},1,{"v":150000,"d":"150,000"},3,{"v":450000,"d":"450,000"}]
[null,"Protection",6,{"v":323000,"d":"323,000"},1,{"v":100000,"d":"100,000"},7,{"v":423000,"d":"423,000"}]
[null,"Executive Unit for IDPs",5,{"v":11538975,"d":"11,538,975"},2,{"v":6900000,"d":"6,900,000"},7,{"v":18438975,"d":"18,438,975"}]
[null,"Antiquities",4,{"v":1906396,"d":"1,906,396"},5,{"v":579995,"d":"579,995"},9,{"v":2486391,"d":"2,486,391"}]
[null,"Culture",0,0,12,{"v":2168440,"d":"2,168,440"},12,{"v":2168440,"d":"2,168,440"}]
["Total of Third Pillar  ",null,{"$f":"SUM(C5:C18)","v":73},{"$f":"SUM(D5:D18)","v":{"v":73287877,"d":"73,287,877"}},304,{"v":152380934,"d":"152,380,934"},377,{"$f":"SUM(H5:H18)","v":{"v":225668811,"d":"225,668,811"}}]